Local authority department which incurred the expenditure,Service Division,Cost Centre,Summary of the Purpose of Expenditure,Expense Type,Expense Code,Detailed Expense Type,Date of Transaction,Transaction Number,Beneficiary,Merchant Category Number,Merchant Category,Gross Amount,VAT,Net Amount
"Regeneration, Economy and Growth",Business Durham CL0850,030689,Inward Investment and Aftercare,Supplies and Services,336005,Advertising E336,01-Feb-2021,000009391775235,LINKEDIN IRELAND,7311,Advertising other than for staff,33.06,0.00,33.06
"Regeneration, Economy and Growth",Business Durham CL0850,030689,Inward Investment and Aftercare,Supplies and Services,342033,Computers and Communications,01-Feb-2021,000009391775237,PROFESSIONAL-MEMBERSHI,7372,Computer hardware,4.01,0.00,4.01
Children and Young Peoples Services,Head of Childrens Social Care,085341,High Etherley Satelite Home,Supplies and Services,324117,Provisions E324,01-Feb-2021,000009395956665,TESCO STORES 6329,5411,Catering costs - provisions,59.22,0.00,59.22
Children and Young Peoples Services,Head of Childrens Social Care,085341,High Etherley Satelite Home,Supplies and Services,324117,Provisions E324,01-Feb-2021,000009395956671,TESCO STORES 6329,5411,Catering costs - provisions,6.03,0.00,6.03
"Regeneration, Economy and Growth",Business Durham CL0850,030689,Inward Investment and Aftercare,Supplies and Services,336005,Advertising E336,01-Feb-2021,000009395956683,LINKEDIN-628 9697244,7311,Advertising other than for staff,21.99,0.00,21.99
"Regeneration, Economy and Growth",Development and Housing,031576,B& B - Temp Accom,Supplies and Services,364320,Grants to Voluntary Organisations,01-Feb-2021,000009395956789,THE HONEST LAWYER,7011,Accommodation assistance,79.95,0.00,79.95
"Regeneration, Economy and Growth",Development and Housing,031576,B& B - Temp Accom,Supplies and Services,364320,Grants to Voluntary Organisations,01-Feb-2021,000009395956791,THE HONEST LAWYER,7011,Accommodation assistance,319.80,0.00,319.80
Children and Young Peoples Services,Head of Childrens Social Care,085357,LAC Bespoke Placements,Supplies and Services,352001,Conference Expenses,01-Feb-2021,000009395956817,Hotel on Booking.com,7011,Conferencesseminars fees etc,"1,019.20",0.00,1019.20
"Regeneration, Economy and Growth",Development and Housing,030773,CLLD North,Employees,040149,Recruitment Instruction and Training,01-Feb-2021,000009395956853,MINERLPRDCTSQULFCN,8220,Training-all costs,138.00,23.00,115.00
Children and Young Peoples Services,Head of Education and Skills,075021,Youth Employment Initiative,Supplies and Services,364301,Grants to Voluntary Organisations,01-Feb-2021,000009395956893,LIVERPOOL CITY COUNCIL,9399,Hardship,11.00,0.00,11.00
Neighbourhoods and Climate Change,Environmental Services,010367,C&G - South Grounds Maintenance,Supplies and Services,304221,Equipment and Materials,01-Feb-2021,000009395957267,SCREWFIX DIRECT,5211,Direct materials,49.99,0.00,49.99
Children and Young Peoples Services,Head of Early Help Inclusion & Vulnerable Children.,071489,Winter Family Fund,Supplies and Services,384700,Miscellaneous Expenses,01-Feb-2021,000009395957355,J DODDS CARPETS LTD,5713,Miscellaneous grants,460.00,0.00,460.00
Children and Young Peoples Services,Head of Early Help Inclusion & Vulnerable Children.,071489,Winter Family Fund,Supplies and Services,384700,Miscellaneous Expenses,01-Feb-2021,000009395957363,ASDA GEORGE COM LEEDS,5411,Miscellaneous grants,79.99,13.33,66.66
Children and Young Peoples Services,Head of Early Help Inclusion & Vulnerable Children.,071489,Winter Family Fund,Supplies and Services,384700,Miscellaneous Expenses,01-Feb-2021,000009395957369,ASDA GEORGE COM LEEDS,5411,Miscellaneous grants,56.34,9.39,46.95
Children and Young Peoples Services,Head of Early Help Inclusion & Vulnerable Children.,071489,Winter Family Fund,Supplies and Services,384700,Miscellaneous Expenses,01-Feb-2021,000009395957369 - 1,ASDA GEORGE COM LEEDS,5411,Miscellaneous grants,24.91,,24.91
"Regeneration, Economy and Growth",Development and Housing,031576,B& B - Temp Accom,Supplies and Services,364320,Grants to Voluntary Organisations,01-Feb-2021,000009395957501,THE HONEST LAWYER,7011,Accommodation assistance,319.80,0.00,319.80
"Regeneration, Economy and Growth",Development and Housing,031576,B& B - Temp Accom,Supplies and Services,364320,Grants to Voluntary Organisations,01-Feb-2021,000009395957515,THE HONEST LAWYER,7011,Accommodation assistance,319.80,0.00,319.80
Children and Young Peoples Services,Head of Early Help Inclusion & Vulnerable Children.,085955,Auckland,Supplies and Services,304403,Equipment and Materials,01-Feb-2021,000009395957565,AMZNMKTPLACE AMAZON.CO,5999,Other consumables,263.92,44.00,219.92
Children and Young Peoples Services,Head of Early Help Inclusion & Vulnerable Children.,085955,Auckland,Supplies and Services,324117,Provisions E324,01-Feb-2021,000009395957569,TESCO STORES 6329,5411,Catering costs - provisions,141.01,0.00,141.01
Children and Young Peoples Services,Head of Childrens Social Care,085362,LAC & Permanence Team 2,Supplies and Services,304403,Equipment and Materials,01-Feb-2021,000009395957613,AMZNMktplace,5999,Other consumables,14.99,2.50,12.49
Children and Young Peoples Services,Head of Early Help Inclusion & Vulnerable Children.,073998,TTF-Co-ordinator Grant,Transfer Payments,525033,Other,01-Feb-2021,000009395957671,THE FLOORING STORE,5713,Grants to individuals,250.00,0.00,250.00
Neighbourhoods and Climate Change,Environmental Services,010864,Fleet - Hackworth Road Fleet,Transport,215013,Running Costs of Vehicles,01-Feb-2021,000009395957801,DVLA VEHICLE TAX,9311,Vehicle Excise Duty (VED),302.50,0.00,302.50
Neighbourhoods and Climate Change,Environmental Services,010900,Fleet - Meadowfield Fleet,Transport,215013,Running Costs of Vehicles,01-Feb-2021,000009395957809,DVLA VEHICLE TAX,9311,Vehicle Excise Duty (VED),267.50,0.00,267.50
Neighbourhoods and Climate Change,Environmental Services,010864,Fleet - Hackworth Road Fleet,Transport,215013,Running Costs of Vehicles,01-Feb-2021,000009395957815,DVLA VEHICLE TAX,9311,Vehicle Excise Duty (VED),302.50,0.00,302.50
Neighbourhoods and Climate Change,Environmental Services,010864,Fleet - Hackworth Road Fleet,Transport,215013,Running Costs of Vehicles,01-Feb-2021,000009395957823,DVLA VEHICLE TAX,9311,Vehicle Excise Duty (VED),302.50,0.00,302.50
Neighbourhoods and Climate Change,Environmental Services,010864,Fleet - Hackworth Road Fleet,Transport,215013,Running Costs of Vehicles,01-Feb-2021,000009395957831,DVLA VEHICLE TAX,9311,Vehicle Excise Duty (VED),302.50,0.00,302.50
Children and Young Peoples Services,Head of Education and Skills,071732,Dean Bank Childcare,Supplies and Services,324117,Provisions E324,01-Feb-2021,000009395957935,ASDA GROCERIES ONLINE,5411,Catering costs - provisions,49.88,0.00,49.88
Children and Young Peoples Services,Head of Education and Skills,071732,Dean Bank Childcare,Supplies and Services,324117,Provisions E324,01-Feb-2021,000009395957945,Wm Morrisons Store Pic,5411,Catering costs - provisions,56.11,0.00,56.11
Children and Young Peoples Services,Head of Education and Skills,071732,Dean Bank Childcare,Supplies and Services,324117,Provisions E324,01-Feb-2021,000009395957955,ASDA GROCERIES ONLINE,5411,Catering costs - provisions,-0.92,0.00,-0.92
Children and Young Peoples Services,Head of Childrens Social Care,085334,West Rainton Satelite Home,Supplies and Services,384999,Miscellaneous Expenses,01-Feb-2021,000009395958031,SMYTHSTOYS.COM,5945,Other expenses,199.99,0.00,199.99
"Regeneration, Economy and Growth",Development and Housing,031500,Housing Solutions - Core Team,Supplies and Services,352001,Conference Expenses,01-Feb-2021,000009395958203,TOAST LETTINGS,7011,Conferencesseminars fees etc,350.00,0.00,350.00
Children and Young Peoples Services,Head of Childrens Social Care,085632,Families First Seaham,Supplies and Services,304403,Equipment and Materials,01-Feb-2021,000009395958357,AMZNMktplace,5999,Other consumables,13.98,0.00,13.98
Children and Young Peoples Services,Head of Early Help Inclusion & Vulnerable Children.,088117,East Area - Teenage Parent Programme,Supplies and Services,324117,Provisions E324,01-Feb-2021,000009395958365,ASDA GROCERIES ONLINE,5411,Catering costs - provisions,26.75,0.00,26.75
Children and Young Peoples Services,Head of Early Help Inclusion & Vulnerable Children.,088117,East Area - Teenage Parent Programme,Supplies and Services,324117,Provisions E324,01-Feb-2021,000009395958377,ASDA GROCERIES ONLINE,5411,Catering costs - provisions,-3.00,0.00,-3.00
Children and Young Peoples Services,Head of Early Help Inclusion & Vulnerable Children.,088117,East Area - Teenage Parent Programme,Supplies and Services,324117,Provisions E324,01-Feb-2021,000009395958383,ASDA GROCERIES ONLINE,5411,Catering costs - provisions,-1.50,0.00,-1.50
Children and Young Peoples Services,Head of Early Help Inclusion & Vulnerable Children.,088106,Ferryhill & N.Aycliffe 0-19 Targeted Family Support,Supplies and Services,304259,Equipment and Materials,01-Feb-2021,000009395958901,PP FAMILYLINKS,8398,Equipment-purchase and rental,131.40,0.00,131.40
Children and Young Peoples Services,Head of Early Help Inclusion & Vulnerable Children.,088108,Spennymoor & Shildon 0-19 Targeted Family Support,Supplies and Services,304259,Equipment and Materials,01-Feb-2021,000009395958911,TESCO STORES 6329,5411,Equipment-purchase and rental,17.96,0.00,17.96
Children and Young Peoples Services,Head of Early Help Inclusion & Vulnerable Children.,088109,Spennymoor & Shildon 0-19 Community Family Hub,Supplies and Services,364301,Grants to Voluntary Organisations,01-Feb-2021,000009395958915,ARGOS LTD,5310,Hardship,116.95,0.00,116.95
Children and Young Peoples Services,Head of Early Help Inclusion & Vulnerable Children.,088109,Spennymoor & Shildon 0-19 Community Family Hub,Supplies and Services,364301,Grants to Voluntary Organisations,01-Feb-2021,000009395958921,ARGOS LTD,5310,Hardship,182.00,0.00,182.00
Adult and Health Services,Head of Adults,055643,Hawthorn House LD Respite Unit,Supplies and Services,304403,Equipment and Materials,01-Feb-2021,000009395959045,AMZNMktplace,5999,Other consumables,29.98,0.00,29.98
Children and Young Peoples Services,Head of Childrens Social Care,085352,Tow Law CU,Supplies and Services,384999,Miscellaneous Expenses,01-Feb-2021,000009395959279,Amazon.co.uk MV2QQ4IZ4,5969,Other expenses,55.13,9.19,45.94
Children and Young Peoples Services,Head of Childrens Social Care,085352,Tow Law CU,Supplies and Services,304403,Equipment and Materials,01-Feb-2021,000009395959291,AMZNMktplace,5999,Other consumables,31.92,5.32,26.60
Children and Young Peoples Services,Head of Childrens Social Care,085352,Tow Law CU,Supplies and Services,304403,Equipment and Materials,01-Feb-2021,000009395959291 - 1,AMZNMktplace,5999,Other consumables,0.04,,0.04
Children and Young Peoples Services,Head of Childrens Social Care,085352,Tow Law CU,Supplies and Services,324117,Provisions E324,01-Feb-2021,000009395959301,SAINSBURYS 0776,5411,Catering costs - provisions,85.76,0.00,85.76
Children and Young Peoples Services,Head of Childrens Social Care,085352,Tow Law CU,Supplies and Services,324117,Provisions E324,01-Feb-2021,000009395959315,ASDA GROCERIES ONLINE,5411,Catering costs - provisions,48.87,0.00,48.87
Children and Young Peoples Services,Head of Childrens Social Care,085352,Tow Law CU,Supplies and Services,384999,Miscellaneous Expenses,01-Feb-2021,000009395959321,Amazon.co.uk MV3M51WD4,5969,Other expenses,57.02,9.50,47.52
Children and Young Peoples Services,Head of Childrens Social Care,085352,Tow Law CU,Supplies and Services,324117,Provisions E324,01-Feb-2021,000009395959331,ASDA GROCERIES ONLINE,5411,Catering costs - provisions,-4.00,0.00,-4.00
Children and Young Peoples Services,Head of Childrens Social Care,085352,Tow Law CU,Supplies and Services,324117,Provisions E324,01-Feb-2021,000009395959339,ASDA GROCERIES ONLINE,5411,Catering costs - provisions,-2.00,0.00,-2.00
Adult and Health Services,Head of Adults,055643,Hawthorn House LD Respite Unit,Supplies and Services,324117,Provisions E324,01-Feb-2021,000009395959477,JR HOLLAND FOODSERVICE,5499,Catering costs - provisions,15.98,0.00,15.98
Resources BK0010,Digital and Customer Services,065335,School Services - Implementations,Supplies and Services,304639,Equipment and Materials,01-Feb-2021,000009395959701,KICKTEK LTD,5732,Technicians-supplies,193.40,0.00,193.40
Resources BK0010,Digital and Customer Services,065335,School Services - Implementations,Supplies and Services,304639,Equipment and Materials,01-Feb-2021,000009395959707,REPLACEBASE,5732,Technicians-supplies,34.72,0.00,34.72
Children and Young Peoples Services,Head of Childrens Social Care,085372,Young Peoples Service Team 2,Supplies and Services,308011,Furniture,01-Feb-2021,000009395959831,ARGOS LTD,5310,Furniture repair and replacement,73.00,0.00,73.00
"Regeneration, Economy and Growth",Development and Housing,031576,B& B - Temp Accom,Supplies and Services,364320,Grants to Voluntary Organisations,01-Feb-2021,000009395960015,TOAST LETTINGS,7011,Accommodation assistance,240.00,0.00,240.00
"Regeneration, Economy and Growth",Development and Housing,031576,B& B - Temp Accom,Supplies and Services,364320,Grants to Voluntary Organisations,01-Feb-2021,000009395960023,THE HONEST LAWYER,7011,Accommodation assistance,239.85,0.00,239.85
Children and Young Peoples Services,Head of Childrens Social Care,085342,16 Hickstead Rise (previously 9 Cedar Ave),Supplies and Services,324117,Provisions E324,01-Feb-2021,000009395960111,TESCO STORES 2916,5411,Catering costs - provisions,92.18,0.00,92.18
Resources BK0010,Business Support,065503,Business Support - Spectrum,Supplies and Services,328041,Clothing uniforms and laundry E328,01-Feb-2021,000009395960165,ARGOS LTD,5310,Clothing uniforms and laundry,103.95,0.00,103.95
Children and Young Peoples Services,Head of Childrens Social Care,085332,Middlestone Moor CU,Supplies and Services,304999,Equipment and Materials,01-Feb-2021,000009395960295,GoGroopie,7278,Misc equipment tools and materials,40.00,0.00,40.00
Children and Young Peoples Services,Head of Childrens Social Care,085332,Middlestone Moor CU,Supplies and Services,304259,Equipment and Materials,01-Feb-2021,000009395960303,CURRYS ONLINE,5732,Equipment-purchase and rental,209.99,0.00,209.99
Children and Young Peoples Services,Head of Childrens Social Care,085333,Coxhoe Satelite Home,Supplies and Services,328041,Clothing uniforms and laundry E328,01-Feb-2021,000009395960471,eBay O 03-06507-27933,5311,Clothing uniforms and laundry,1.49,0.00,1.49
Children and Young Peoples Services,Head of Childrens Social Care,085333,Coxhoe Satelite Home,Supplies and Services,324117,Provisions E324,01-Feb-2021,000009395960479,SAINSBURYS (2303),5411,Catering costs - provisions,110.54,0.00,110.54
Children and Young Peoples Services,Head of Childrens Social Care,085333,Coxhoe Satelite Home,Supplies and Services,328041,Clothing uniforms and laundry E328,01-Feb-2021,000009395960489,Ultimate Flowers,5992,Clothing uniforms and laundry,38.50,0.00,38.50
Adult and Health Services,Head of Adults,055309,Peterlee Pathways,Supplies and Services,304403,Equipment and Materials,01-Feb-2021,000009395960817,AMZNMktplace,5999,Other consumables,36.99,6.17,30.82
"Regeneration, Economy and Growth",Development and Housing,030771,Durham Advance Flexible Fund,Supplies and Services,328041,Clothing uniforms and laundry E328,01-Feb-2021,000009395961013,WWW.BURTON.CO.UK,5691,Clothing uniforms and laundry,103.05,0.00,103.05
Children and Young Peoples Services,Head of Childrens Social Care,085342,16 Hickstead Rise (previously 9 Cedar Ave),Supplies and Services,328041,Clothing uniforms and laundry E328,01-Feb-2021,000009401295795,NEW LOOK INTERNET,5621,Clothing uniforms and laundry,77.92,0.00,77.92
Children and Young Peoples Services,Head of Childrens Social Care,085342,16 Hickstead Rise (previously 9 Cedar Ave),Supplies and Services,304999,Equipment and Materials,01-Feb-2021,000009401295797,SAVERS HEALTH & BEAUTY,5912,Misc equipment tools and materials,30.29,0.00,30.29
Children and Young Peoples Services,Head of Early Help Inclusion & Vulnerable Children.,088117,East Area - Teenage Parent Programme,Supplies and Services,304403,Equipment and Materials,02-Feb-2021,000009395958369,AMZNMktplace,5999,Other consumables,302.70,0.00,302.70
Children and Young Peoples Services,Head of Early Help Inclusion & Vulnerable Children.,071489,Winter Family Fund,Supplies and Services,364301,Grants to Voluntary Organisations,02-Feb-2021,000009398424893,ASDA GEORGE COM LEEDS,5411,Hardship,80.00,0.00,80.00
Children and Young Peoples Services,Head of Education and Skills,071801,Selby Cottage Childcare Centre,Supplies and Services,324117,Provisions E324,02-Feb-2021,000009398424899,ASDA GROCERIES ONLINE,5411,Catering costs - provisions,87.36,0.00,87.36
Children and Young Peoples Services,Head of Education and Skills,071801,Selby Cottage Childcare Centre,Supplies and Services,324117,Provisions E324,02-Feb-2021,000009398424905,ASDA GROCERIES ONLINE,5411,Catering costs - provisions,0.10,0.00,0.10
"Regeneration, Economy and Growth",Development and Housing,031617,Project Beta Sustainability Fund,Supplies and Services,352001,Conference Expenses,02-Feb-2021,000009398424909,TOAST LETTINGS,7011,Conferencesseminars fees etc,420.00,0.00,420.00
Children and Young Peoples Services,Head of Childrens Social Care,085358,Orchard House Sacriston Solo Home,Supplies and Services,342033,Computers and Communications,02-Feb-2021,000009398424919,Amazon.co.uk MV5O67YB4,5969,Computer hardware,72.99,12.17,60.82
"Regeneration, Economy and Growth",Development and Housing,031576,B& B - Temp Accom,Supplies and Services,364320,Grants to Voluntary Organisations,02-Feb-2021,000009398424961,THE HONEST LAWYER,7011,Accommodation assistance,79.95,0.00,79.95
Children and Young Peoples Services,Head of Childrens Social Care,085501,Child Care Cases Legal Expenses,Supplies and Services,304403,Equipment and Materials,02-Feb-2021,000009398424965,GEN REGISTER OFFICE,9399,Other consumables,35.00,0.00,35.00
Children and Young Peoples Services,Head of Education and Skills,075021,Youth Employment Initiative,Supplies and Services,364301,Grants to Voluntary Organisations,02-Feb-2021,000009398424969,PAYPAL DBSSERVICES,9399,Hardship,23.22,3.87,19.35
Children and Young Peoples Services,Head of Education and Skills,075021,Youth Employment Initiative,Supplies and Services,364301,Grants to Voluntary Organisations,02-Feb-2021,000009398424969 - 1,PAYPAL DBSSERVICES,9399,Hardship,39.98,,39.98
"Regeneration, Economy and Growth",Culture Sport and Tourism,030708,VCD - Marketing & Information,Supplies and Services,384199,Miscellaneous Expenses,02-Feb-2021,000009398424985,MAILCHIMP MONTHLY,5968,Other hired and contracted services,236.13,0.00,236.13
Children and Young Peoples Services,Head of Childrens Social Care,085332,Middlestone Moor CU,Supplies and Services,324117,Provisions E324,02-Feb-2021,000009398424993,TESCO STORES 2371,5411,Catering costs - provisions,176.16,0.00,176.16
Children and Young Peoples Services,Head of Early Help Inclusion & Vulnerable Children.,071489,Winter Family Fund,Supplies and Services,384700,Miscellaneous Expenses,02-Feb-2021,000009398425047,AMZNMktplace,5999,Miscellaneous grants,99.99,16.67,83.32
Children and Young Peoples Services,Head of Early Help Inclusion & Vulnerable Children.,071489,Winter Family Fund,Supplies and Services,384700,Miscellaneous Expenses,02-Feb-2021,000009398425049,ASDA GEORGE COM LEEDS,5411,Miscellaneous grants,30.95,5.16,25.79
Children and Young Peoples Services,Head of Early Help Inclusion & Vulnerable Children.,071489,Winter Family Fund,Supplies and Services,384700,Miscellaneous Expenses,02-Feb-2021,000009398425053,ASDA GROCERIES ONLINE,5411,Miscellaneous grants,24.88,0.00,24.88
Children and Young Peoples Services,Head of Childrens Social Care,085332,Middlestone Moor CU,Supplies and Services,304403,Equipment and Materials,02-Feb-2021,000009398425059,TESCO STORES 6329,5411,Other consumables,13.09,0.00,13.09
Children and Young Peoples Services,Head of Childrens Social Care,085332,Middlestone Moor CU,Supplies and Services,304403,Equipment and Materials,02-Feb-2021,000009398425065,TESCO STORES 6329,5411,Other consumables,11.18,0.00,11.18
Children and Young Peoples Services,Head of Childrens Social Care,085332,Middlestone Moor CU,Supplies and Services,304403,Equipment and Materials,02-Feb-2021,000009398425069,TESCO STORES 6329,5411,Other consumables,9.59,0.00,9.59
Neighbourhoods and Climate Change,Environmental Services,010367,C&G - South Grounds Maintenance,Supplies and Services,304999,Equipment and Materials,02-Feb-2021,000009398425079,Snowballs,5251,Misc equipment tools and materials,187.20,0.00,187.20
Children and Young Peoples Services,Head of Early Help Inclusion & Vulnerable Children.,085956,Lumley,Supplies and Services,304403,Equipment and Materials,02-Feb-2021,000009398425091,AMZNMktplace,5999,Other consumables,24.99,4.17,20.82
Children and Young Peoples Services,Head of Childrens Social Care,085361,LAC & Permanence Team 1,Supplies and Services,304403,Equipment and Materials,02-Feb-2021,000009398425121,LONDON BOROUGH OF NEWH,9399,Other consumables,11.00,0.00,11.00
"Regeneration, Economy and Growth",Culture Sport and Tourism,011217,Commercial Management 011217,Supplies and Services,342033,Computers and Communications,02-Feb-2021,000009398425131,SurveyMonkey,7372,Computer hardware,384.00,0.00,384.00
Children and Young Peoples Services,Head of Early Help Inclusion & Vulnerable Children.,073998,TTF-Co-ordinator Grant,Transfer Payments,525033,Other,02-Feb-2021,000009398425133,Amazon.co.uk MV34C7YW4,5969,Grants to individuals,26.99,4.50,22.49
Children and Young Peoples Services,Head of Early Help Inclusion & Vulnerable Children.,073998,TTF-Co-ordinator Grant,Transfer Payments,525033,Other,02-Feb-2021,000009398425139,Amazon.co.uk MV54H1YN4,5969,Grants to individuals,26.99,4.50,22.49
Children and Young Peoples Services,Head of Early Help Inclusion & Vulnerable Children.,073998,TTF-Co-ordinator Grant,Transfer Payments,525033,Other,02-Feb-2021,000009398425141,Amazon.co.uk MV7HC0YZ4,5969,Grants to individuals,26.99,4.50,22.49
Children and Young Peoples Services,Head of Early Help Inclusion & Vulnerable Children.,073998,TTF-Co-ordinator Grant,Transfer Payments,525033,Other,02-Feb-2021,000009398425145,Amazon.co.uk MF2Z33CW4,5969,Grants to individuals,26.99,4.50,22.49
Children and Young Peoples Services,Head of Early Help Inclusion & Vulnerable Children.,073998,TTF-Co-ordinator Grant,Transfer Payments,525033,Other,02-Feb-2021,000009398425149,Amazon.co.uk MF46R2CX4,5969,Grants to individuals,26.99,4.50,22.49
Children and Young Peoples Services,Head of Early Help Inclusion & Vulnerable Children.,073998,TTF-Co-ordinator Grant,Transfer Payments,525033,Other,02-Feb-2021,000009398425153,Amazon.co.uk MF8Z75CK4,5969,Grants to individuals,26.99,4.50,22.49
Children and Young Peoples Services,Head of Education and Skills,071732,Dean Bank Childcare,Supplies and Services,324117,Provisions E324,02-Feb-2021,000009398425173,TESCO STORES 2916,5411,Catering costs - provisions,39.00,0.00,39.00
Children and Young Peoples Services,Head of Education and Skills,071732,Dean Bank Childcare,Supplies and Services,324117,Provisions E324,02-Feb-2021,000009398425177,TESCO STORES 2916,5411,Catering costs - provisions,16.56,0.00,16.56
"Regeneration, Economy and Growth",Culture Sport and Tourism,054967,Theatre - Technical Staffing,Supplies and Services,304403,Equipment and Materials,02-Feb-2021,000009398425181,Prime Now UK MV15Y4YF4,5999,Other consumables,25.00,4.17,20.83
Children and Young Peoples Services,Head of Education and Skills,071903,Early Years Sustainability,Supplies and Services,304999,Equipment and Materials,02-Feb-2021,000009398425203,Adobe.com,5817,Misc equipment tools and materials,23.99,0.00,23.99
Neighbourhoods and Climate Change,Environmental Services,019100,Fleet - Strategic Fleet,Supplies and Services,304259,Equipment and Materials,02-Feb-2021,000009398425249,DVSA,9399,Equipment-purchase and rental,410.00,0.00,410.00
Resources BK0010,Finance & Transactional Services,065116,Creditors/Purchasing,Supplies and Services,304999,Equipment and Materials,02-Feb-2021,000009398425275,POSTURITE LTD,7399,Misc equipment tools and materials,81.54,13.59,67.95
Adult and Health Services,Head of Adults,055643,Hawthorn House LD Respite Unit,Supplies and Services,304403,Equipment and Materials,02-Feb-2021,000009398425329,AMZNMKTPLACE AMAZON.CO,5999,Other consumables,16.40,0.00,16.40
Children and Young Peoples Services,Head of Education and Skills,071802,Louisa Cent Nursery,Supplies and Services,304999,Equipment and Materials,02-Feb-2021,000009398425333,HOME BARGAINS,5251,Misc equipment tools and materials,17.90,0.00,17.90
Children and Young Peoples Services,Head of Childrens Social Care,085352,Tow Law CU,Supplies and Services,304403,Equipment and Materials,02-Feb-2021,000009398425363,AMZNMktplace,5999,Other consumables,107.92,18.00,89.92
Children and Young Peoples Services,Head of Education and Skills,078100,Curric and Professional Development 078100,Supplies and Services,352001,Conference Expenses,02-Feb-2021,000009398425373,EB WRM PRIMARY MATHS,7399,Conferencesseminars fees etc,15.00,0.00,15.00
Children and Young Peoples Services,Head of Childrens Social Care,085334,West Rainton Satelite Home,Supplies and Services,384999,Miscellaneous Expenses,02-Feb-2021,000009398425381,Amazon.co.uk MF1UI6C54,5969,Other expenses,25.50,0.00,25.50
Children and Young Peoples Services,Head of Childrens Social Care,085334,West Rainton Satelite Home,Supplies and Services,328041,Clothing uniforms and laundry E328,02-Feb-2021,000009398425385,WWW.THEWORKS.CO.UK,5310,Clothing uniforms and laundry,26.99,0.00,26.99
Children and Young Peoples Services,Head of Childrens Social Care,085363,LAC & Permanence Team 3,Supplies and Services,338045,Services,02-Feb-2021,000009398425397,STOCKTON BOROUGH COUNC,9399,Legal expenses 338045,22.00,0.00,22.00
Resources BK0010,Business Support,065503,Business Support - Spectrum,Supplies and Services,304403,Equipment and Materials,02-Feb-2021,000009398425411,AMZNMktplace,5999,Other consumables,16.93,2.82,14.11
Resources BK0010,Business Support,065503,Business Support - Spectrum,Supplies and Services,304403,Equipment and Materials,02-Feb-2021,000009398425413,AMZNMktplace,5999,Other consumables,8.99,1.50,7.49
Resources BK0010,Digital and Customer Services,065335,School Services - Implementations,Supplies and Services,304639,Equipment and Materials,02-Feb-2021,000009398425417,REPLACEBASE,5732,Technicians-supplies,155.89,0.00,155.89
Children and Young Peoples Services,Head of Early Help Inclusion & Vulnerable Children.,085955,Auckland,Supplies and Services,304649,Equipment and Materials,02-Feb-2021,000009398425425,AMZNMktplace,5999,Toys,73.99,12.33,61.66
Children and Young Peoples Services,Head of Early Help Inclusion & Vulnerable Children.,085955,Auckland,Supplies and Services,304649,Equipment and Materials,02-Feb-2021,000009398425429,AMZNMktplace,5999,Toys,73.99,12.33,61.66
Children and Young Peoples Services,Head of Early Help Inclusion & Vulnerable Children.,085957,Secure Management,Supplies and Services,304245,Equipment and Materials,02-Feb-2021,000009398425431,AMZNMktplace,5999,Materials,21.98,3.66,18.32
Children and Young Peoples Services,Head of Childrens Social Care,085561,Social Work Academy,Supplies and Services,312009,Newspapers books and periodicals E312,02-Feb-2021,000009398425435,AMZNMKTPLACE AMAZON.CO,5999,Newspapers books and periodicals,18.95,0.00,18.95
Children and Young Peoples Services,Head of Childrens Social Care,085561,Social Work Academy,Supplies and Services,312009,Newspapers books and periodicals E312,02-Feb-2021,000009398425437,AMZNMKTPLACE AMAZON.CO,5999,Newspapers books and periodicals,45.94,0.00,45.94
Children and Young Peoples Services,Head of Childrens Social Care,085561,Social Work Academy,Supplies and Services,312009,Newspapers books and periodicals E312,02-Feb-2021,000009398425441,Amazon.co.uk MF3LC4CJ4,5969,Newspapers books and periodicals,94.07,0.00,94.07
Children and Young Peoples Services,Head of Childrens Social Care,085372,Young Peoples Service Team 2,Supplies and Services,308011,Furniture,02-Feb-2021,000009398425445,ARGOS LTD,5310,Furniture repair and replacement,219.99,0.00,219.99
Children and Young Peoples Services,Head of Education and Skills,071903,Early Years Sustainability,Third Party Payments,430100,Rendered by Private Contractors,02-Feb-2021,000009398425449,EB BUILDING A DEVELOP,7399,Payments to sub-contractors,20.00,0.00,20.00
Children and Young Peoples Services,Head of Education and Skills,071903,Early Years Sustainability,Third Party Payments,430100,Rendered by Private Contractors,02-Feb-2021,000009398425453,EB WRM PRIMARY MATHS,7399,Payments to sub-contractors,15.00,0.00,15.00
Children and Young Peoples Services,Head of Childrens Social Care,085332,Middlestone Moor CU,Supplies and Services,348037,Subsistence E348,02-Feb-2021,000009398425467,SUBWAY THINGFORD NORTH,5814,Subsistence,7.39,0.00,7.39
Children and Young Peoples Services,Head of Childrens Social Care,085332,Middlestone Moor CU,Supplies and Services,324117,Provisions E324,02-Feb-2021,000009398425469,ASDA SUPERSTORE 4987,5411,Catering costs - provisions,15.94,0.00,15.94
Resources BK0010,Business Support,065503,Business Support - Spectrum,Supplies and Services,324117,Provisions E324,02-Feb-2021,000009398425477,ASDA GEORGE COM LEEDS,5411,Catering costs - provisions,114.50,0.00,114.50
Resources BK0010,Business Support,065503,Business Support - Spectrum,Supplies and Services,304259,Equipment and Materials,02-Feb-2021,000009398425481,CURRYS ONLINE,5732,Equipment-purchase and rental,39.99,0.00,39.99
Children and Young Peoples Services,Head of Early Help Inclusion & Vulnerable Children.,071445,Chester le Street One Point Hub,Supplies and Services,340001,Postages E340,02-Feb-2021,000009398425493,ROYAL MAIL ONLINE SHOP,9402,Postages,82.69,0.00,82.69
Adult and Health Services,Head of Adults,055310,Positive Journeys (Tudhoe),Supplies and Services,324117,Provisions E324,02-Feb-2021,000009398425497,TESCO STORES 6329,5411,Catering costs - provisions,4.97,0.00,4.97
"Regeneration, Economy and Growth",Development and Housing,030771,Durham Advance Flexible Fund,Transport,235057,Public Transport,02-Feb-2021,000009398425539,GO NORTH EAST LIMITED,4131,Staff travelling,7.00,0.00,7.00
"Regeneration, Economy and Growth",Development and Housing,030771,Durham Advance Flexible Fund,Supplies and Services,328041,Clothing uniforms and laundry E328,02-Feb-2021,000009398425543,ARGOS LTD,5310,Clothing uniforms and laundry,6.99,0.00,6.99
"Regeneration, Economy and Growth",Development and Housing,030771,Durham Advance Flexible Fund,Supplies and Services,304259,Equipment and Materials,02-Feb-2021,000009398425545,Durham County CNCL,9399,Equipment-purchase and rental,11.00,0.00,11.00
Neighbourhoods and Climate Change,Partnerships & Community Engagement Div.,060472,Syrian Vulnerable Persons Scheme,Supplies and Services,308011,Furniture,02-Feb-2021,000009398425547,ASDA GEORGE COM LEEDS,5411,Furniture repair and replacement,-25.00,0.00,-25.00
Children and Young Peoples Services,Head of Early Help Inclusion & Vulnerable Children.,088103,Consett & Stanley 0-19 Community Family Hub,Supplies and Services,384302,Miscellaneous Expenses,02-Feb-2021,000009401297497,AMZNMKTPLACE AMAZON.CO,5999,Activity expenses,17.85,2.98,14.87
Children and Young Peoples Services,Head of Childrens Social Care,085351,Framwellgate Moor CU,Supplies and Services,348037,Subsistence E348,02-Feb-2021,000009414337313,HARDWICK HALL HOTEL,5812,Subsistence,-35.00,0.00,-35.00
Children and Young Peoples Services,Head of Early Help Inclusion & Vulnerable Children.,071489,Winter Family Fund,Supplies and Services,384700,Miscellaneous Expenses,03-Feb-2021,000009398425055,Amazon.co.uk MF6FR2OG4,5969,Miscellaneous grants,29.96,4.99,24.97
Children and Young Peoples Services,Head of Childrens Social Care,085341,High Etherley Satelite Home,Supplies and Services,324117,Provisions E324,03-Feb-2021,000009401295571,TESCO STORES 6329,5411,Catering costs - provisions,110.26,0.00,110.26
Children and Young Peoples Services,Head of Education and Skills,071801,Selby Cottage Childcare Centre,Supplies and Services,324117,Provisions E324,03-Feb-2021,000009401295621,JR HOLLAND FOODSERVICE,5499,Catering costs - provisions,312.55,0.00,312.55
Children and Young Peoples Services,Head of Education and Skills,071801,Selby Cottage Childcare Centre,Supplies and Services,304999,Equipment and Materials,03-Feb-2021,000009401295633,APPLE.COM/BILL,5815,Misc equipment tools and materials,9.99,0.00,9.99
Adult and Health Services,Commissioning inc Supporting People,052100,Supporting the Provider Market,Supplies and Services,338057,Services,03-Feb-2021,000009401295653,PAYPAL WESSEX MED,5047,Medical fees 338057,819.00,0.00,819.00
"Regeneration, Economy and Growth",Development and Housing,031576,B& B - Temp Accom,Supplies and Services,364320,Grants to Voluntary Organisations,03-Feb-2021,000009401295717,THE HONEST LAWYER,7011,Accommodation assistance,154.60,0.00,154.60
"Regeneration, Economy and Growth",Development and Housing,031576,B& B - Temp Accom,Supplies and Services,364320,Grants to Voluntary Organisations,03-Feb-2021,000009401295725,THE HONEST LAWYER,7011,Accommodation assistance,22.86,3.81,19.05
"Regeneration, Economy and Growth",Development and Housing,031576,B& B - Temp Accom,Supplies and Services,364320,Grants to Voluntary Organisations,03-Feb-2021,000009401295725 - 1,THE HONEST LAWYER,7011,Accommodation assistance,57.09,,57.09
"Regeneration, Economy and Growth",Development and Housing,031576,B& B - Temp Accom,Supplies and Services,364320,Grants to Voluntary Organisations,03-Feb-2021,000009401295731,THE HONEST LAWYER,7011,Accommodation assistance,500.00,0.00,500.00
"Regeneration, Economy and Growth",Culture Sport and Tourism,030705,Visit County Durham 030705,Supplies and Services,384199,Miscellaneous Expenses,03-Feb-2021,000009401295763,FASTHOSTS INTERNET,4816,Other hired and contracted services,6.34,0.00,6.34
Children and Young Peoples Services,Head of Childrens Social Care,085341,High Etherley Satelite Home,Supplies and Services,304403,Equipment and Materials,03-Feb-2021,000009401295835,AMZNMktplace,5999,Other consumables,9.39,0.00,9.39
Neighbourhoods and Climate Change,Environmental Services,010367,C&G - South Grounds Maintenance,Supplies and Services,304221,Equipment and Materials,03-Feb-2021,000009401295965,MKM PETERLEE,5211,Direct materials,87.98,0.00,87.98
Children and Young Peoples Services,Head of Childrens Social Care,085624,Families First Crook,Supplies and Services,364301,Grants to Voluntary Organisations,03-Feb-2021,000009401296053,ARGOS LTD,5310,Hardship,283.95,47.33,236.62
Children and Young Peoples Services,Head of Early Help Inclusion & Vulnerable Children.,079599,Psychological-HQ,Supplies and Services,304403,Equipment and Materials,03-Feb-2021,000009401296239,PSYCH EXCELLENCE,5999,Other consumables,69.00,0.00,69.00
Children and Young Peoples Services,Head of Early Help Inclusion & Vulnerable Children.,085956,Lumley,Supplies and Services,304403,Equipment and Materials,03-Feb-2021,000009401296257,AMZNMktplace,5999,Other consumables,28.98,4.84,24.14
Children and Young Peoples Services,Head of Early Help Inclusion & Vulnerable Children.,085956,Lumley,Supplies and Services,304403,Equipment and Materials,03-Feb-2021,000009401296279,AMZNMktplace,5999,Other consumables,59.97,10.00,49.97
Children and Young Peoples Services,Head of Early Help Inclusion & Vulnerable Children.,085956,Lumley,Supplies and Services,328041,Clothing uniforms and laundry E328,03-Feb-2021,000009401296289,PRETTYLITTLETHING.COM,5691,Clothing uniforms and laundry,25.00,0.00,25.00
Children and Young Peoples Services,Head of Early Help Inclusion & Vulnerable Children.,085956,Lumley,Supplies and Services,304403,Equipment and Materials,03-Feb-2021,000009401296301,AMZNMKTPLACE AMAZON.CO,5999,Other consumables,14.90,2.48,12.42
Children and Young Peoples Services,Head of Early Help Inclusion & Vulnerable Children.,085962,Aycliffe Secure - Durham,Supplies and Services,324117,Provisions E324,03-Feb-2021,000009401296311,TESCO STORES 6329,5411,Catering costs - provisions,81.30,0.00,81.30
Children and Young Peoples Services,Head of Early Help Inclusion & Vulnerable Children.,085956,Lumley,Supplies and Services,304259,Equipment and Materials,03-Feb-2021,000009401296329,JD SPORTS INTERNET,5941,Equipment-purchase and rental,23.99,0.00,23.99
Children and Young Peoples Services,Head of Early Help Inclusion & Vulnerable Children.,085965,Barnard,Supplies and Services,304259,Equipment and Materials,03-Feb-2021,000009401296339,JD SPORTS INTERNET,5941,Equipment-purchase and rental,75.00,0.00,75.00
"Regeneration, Economy and Growth",Development and Housing,030772,CLLD South,Employees,040149,Recruitment Instruction and Training,03-Feb-2021,000009401296353,HTTPS://WWW.CITB.CO.UK,8249,Training-all costs,99.00,0.00,99.00
Children and Young Peoples Services,Head of Childrens Social Care,085362,LAC & Permanence Team 2,Supplies and Services,304403,Equipment and Materials,03-Feb-2021,000009401296367,HARTLEPOOL BC,9399,Other consumables,11.00,0.00,11.00
Children and Young Peoples Services,Head of Childrens Social Care,085362,LAC & Permanence Team 2,Supplies and Services,304403,Equipment and Materials,03-Feb-2021,000009401296375,HM PASSPORT OFFICE,9399,Other consumables,49.00,0.00,49.00
Children and Young Peoples Services,Head of Childrens Social Care,085361,LAC & Permanence Team 1,Supplies and Services,304403,Equipment and Materials,03-Feb-2021,000009401296383,HM PASSPORT OFFICE,9399,Other consumables,49.00,0.00,49.00
"Regeneration, Economy and Growth",Culture Sport and Tourism,011217,Commercial Management 011217,Supplies and Services,384999,Miscellaneous Expenses,03-Feb-2021,000009401296425,DISPLAYSENSE.CO.UK,5046,Other expenses,128.00,0.00,128.00
Children and Young Peoples Services,Head of Early Help Inclusion & Vulnerable Children.,073998,TTF-Co-ordinator Grant,Transfer Payments,525033,Other,03-Feb-2021,000009401296459,THE FLOORING STORE,5713,Grants to individuals,190.02,31.67,158.35
Children and Young Peoples Services,Head of Early Help Inclusion & Vulnerable Children.,073998,TTF-Co-ordinator Grant,Transfer Payments,525033,Other,03-Feb-2021,000009401296459 - 1,THE FLOORING STORE,5713,Grants to individuals,59.98,,59.98
"Regeneration, Economy and Growth",Development and Housing,031576,B& B - Temp Accom,Supplies and Services,352001,Conference Expenses,03-Feb-2021,000009401296469,TOAST LETTINGS,7011,Conferencesseminars fees etc,490.00,0.00,490.00
"Regeneration, Economy and Growth",Development and Housing,031576,B& B - Temp Accom,Supplies and Services,352001,Conference Expenses,03-Feb-2021,000009401296475,TOAST LETTINGS,7011,Conferencesseminars fees etc,140.00,0.00,140.00
Children and Young Peoples Services,Head of Childrens Social Care,085551,Short Break Services-Park Hse Sher,Supplies and Services,340001,Postages E340,03-Feb-2021,000009401296537,POST OFFICE COUNTER,9402,Postages,14.25,0.00,14.25
Children and Young Peoples Services,Head of Childrens Social Care,085551,Short Break Services-Park Hse Sher,Supplies and Services,324117,Provisions E324,03-Feb-2021,000009401296551,CO-OP GROUP 010486,5411,Catering costs - provisions,3.94,0.00,3.94
Children and Young Peoples Services,Head of Education and Skills,071732,Dean Bank Childcare,Supplies and Services,324117,Provisions E324,03-Feb-2021,000009401296571,ASDA GROCERIES ONLINE,5411,Catering costs - provisions,78.00,0.00,78.00
Children and Young Peoples Services,Head of Education and Skills,071732,Dean Bank Childcare,Supplies and Services,324117,Provisions E324,03-Feb-2021,000009401296583,ASDA SUPERSTORE 4987,5411,Catering costs - provisions,31.11,0.00,31.11
Children and Young Peoples Services,Head of Education and Skills,071732,Dean Bank Childcare,Supplies and Services,324117,Provisions E324,03-Feb-2021,000009401296589,ASDA GROCERIES ONLINE,5411,Catering costs - provisions,-13.00,0.00,-13.00
"Regeneration, Economy and Growth",Culture Sport and Tourism,054967,Theatre - Technical Staffing,Supplies and Services,304403,Equipment and Materials,03-Feb-2021,000009401296595,AMZNMktplace,5999,Other consumables,15.99,0.00,15.99
"Regeneration, Economy and Growth",Culture Sport and Tourism,054967,Theatre - Technical Staffing,Supplies and Services,304403,Equipment and Materials,03-Feb-2021,000009401296605,AMZNMktplace,5999,Other consumables,30.40,0.00,30.40
"Regeneration, Economy and Growth",Culture Sport and Tourism,054967,Theatre - Technical Staffing,Supplies and Services,384999,Miscellaneous Expenses,03-Feb-2021,000009401296611,WWW.LYNVALE.CO.UK,5046,Other expenses,30.18,0.00,30.18
"Regeneration, Economy and Growth",Development and Housing,030771,Durham Advance Flexible Fund,Supplies and Services,304259,Equipment and Materials,03-Feb-2021,000009401296653,GEN REGISTER OFFICE,9399,Equipment-purchase and rental,38.00,0.00,38.00
"Regeneration, Economy and Growth",Development and Housing,031623,Rough,Supplies and Services,352001,Conference Expenses,03-Feb-2021,000009401296681,AYCLIFFE BIZ,7011,Conferencesseminars fees etc,266.00,0.00,266.00
"Regeneration, Economy and Growth",Development and Housing,031623,Rough,Supplies and Services,352001,Conference Expenses,03-Feb-2021,000009401296691,AYCLIFFE BIZ,7011,Conferencesseminars fees etc,114.00,0.00,114.00
"Regeneration, Economy and Growth",Development and Housing,031623,Rough,Supplies and Services,352001,Conference Expenses,03-Feb-2021,000009401296699,AYCLIFFE BIZ,7011,Conferencesseminars fees etc,456.00,0.00,456.00
"Regeneration, Economy and Growth",Development and Housing,031623,Rough,Supplies and Services,352001,Conference Expenses,03-Feb-2021,000009401296707,AYCLIFFE BIZ,7011,Conferencesseminars fees etc,266.00,0.00,266.00
"Regeneration, Economy and Growth",Development and Housing,031623,Rough,Supplies and Services,352001,Conference Expenses,03-Feb-2021,000009401296715,AYCLIFFE BIZ,7011,Conferencesseminars fees etc,114.00,0.00,114.00
"Regeneration, Economy and Growth",Development and Housing,031623,Rough,Supplies and Services,304999,Equipment and Materials,03-Feb-2021,000009401296727,DUNCAN BELTON TA K,6513,Misc equipment tools and materials,500.00,0.00,500.00
"Regeneration, Economy and Growth",Development and Housing,031623,Rough,Supplies and Services,304999,Equipment and Materials,03-Feb-2021,000009401296735,DUNCAN BELTON TA K,6513,Misc equipment tools and materials,500.00,0.00,500.00
"Regeneration, Economy and Growth",Development and Housing,031623,Rough,Supplies and Services,304999,Equipment and Materials,03-Feb-2021,000009401296747,DUNCAN BELTON TA K,6513,Misc equipment tools and materials,500.00,0.00,500.00
"Regeneration, Economy and Growth",Development and Housing,031623,Rough,Supplies and Services,304999,Equipment and Materials,03-Feb-2021,000009401296753,DUNCAN BELTON TA K,6513,Misc equipment tools and materials,500.00,0.00,500.00
"Regeneration, Economy and Growth",Development and Housing,031623,Rough,Supplies and Services,304999,Equipment and Materials,03-Feb-2021,000009401296767,DUNCAN BELTON TA K,6513,Misc equipment tools and materials,200.00,0.00,200.00
Children and Young Peoples Services,Head of Early Help Inclusion & Vulnerable Children.,088112,Seaham & Central Durham 0-19 Targeted Family Support,Supplies and Services,304403,Equipment and Materials,03-Feb-2021,000009401296789,AMZNMKTPLACE AMAZON.CO,5999,Other consumables,18.95,0.00,18.95
Children and Young Peoples Services,Head of Early Help Inclusion & Vulnerable Children.,088112,Seaham & Central Durham 0-19 Targeted Family Support,Employees,040149,Recruitment Instruction and Training,03-Feb-2021,000009401296795,NE-AS.ORG.UK,8398,Training-all costs,15.00,0.00,15.00
Children and Young Peoples Services,Head of Early Help Inclusion & Vulnerable Children.,088119,Durham 0-19 Community Family Hub,Employees,040149,Recruitment Instruction and Training,03-Feb-2021,000009401296803,NE-AS.ORG.UK,8398,Training-all costs,15.00,0.00,15.00
Children and Young Peoples Services,Head of Early Help Inclusion & Vulnerable Children.,088117,East Area - Teenage Parent Programme,Supplies and Services,304403,Equipment and Materials,03-Feb-2021,000009401296815,AMZNMktplace,5999,Other consumables,20.76,0.00,20.76
Children and Young Peoples Services,Head of Early Help Inclusion & Vulnerable Children.,088117,East Area - Teenage Parent Programme,Supplies and Services,324117,Provisions E324,03-Feb-2021,000009401296823,WILKO.COM,5399,Catering costs - provisions,44.00,0.00,44.00
Children and Young Peoples Services,Head of Early Help Inclusion & Vulnerable Children.,088117,East Area - Teenage Parent Programme,Supplies and Services,384999,Miscellaneous Expenses,03-Feb-2021,000009401296833,Amazon.co.uk MF2Y93F04,5969,Other expenses,26.95,0.00,26.95
Children and Young Peoples Services,Head of Early Help Inclusion & Vulnerable Children.,088117,East Area - Teenage Parent Programme,Supplies and Services,328041,Clothing uniforms and laundry E328,03-Feb-2021,000009401296839,WWW.THEWORKS.CO.UK,5310,Clothing uniforms and laundry,48.00,0.00,48.00
Neighbourhoods and Climate Change,Environmental Services,010367,C&G - South Grounds Maintenance,Supplies and Services,304999,Equipment and Materials,03-Feb-2021,000009401296857,GUSTHARTS,5072,Misc equipment tools and materials,182.18,0.00,182.18
"Regeneration, Economy and Growth",Development and Housing,031576,B& B - Temp Accom,Supplies and Services,364320,Grants to Voluntary Organisations,03-Feb-2021,000009401296945,THE HONEST LAWYER,7011,Accommodation assistance,79.95,0.00,79.95
Children and Young Peoples Services,Head of Childrens Social Care,085625,Families First Spennymoor,Supplies and Services,338045,Services,03-Feb-2021,000009401297059,DARLINGTON BC INTERNET,9399,Legal expenses 338045,11.00,0.00,11.00
Children and Young Peoples Services,Head of Early Help Inclusion & Vulnerable Children.,071489,Winter Family Fund,Supplies and Services,364301,Grants to Voluntary Organisations,03-Feb-2021,000009401297069,SMYTHSTOYS.COM,5945,Hardship,139.99,0.00,139.99
Children and Young Peoples Services,Head of Childrens Social Care,085342,16 Hickstead Rise (previously 9 Cedar Ave),Supplies and Services,324117,Provisions E324,03-Feb-2021,000009401297251,TESCO STORES 2916,5411,Catering costs - provisions,8.00,0.00,8.00
Children and Young Peoples Services,Head of Early Help Inclusion & Vulnerable Children.,071489,Winter Family Fund,Supplies and Services,364301,Grants to Voluntary Organisations,03-Feb-2021,000009401297365,WWW.ONLINE4BABY.COM,5999,Hardship,77.95,0.00,77.95
Children and Young Peoples Services,Head of Early Help Inclusion & Vulnerable Children.,071489,Winter Family Fund,Supplies and Services,364301,Grants to Voluntary Organisations,03-Feb-2021,000009401297375,ASDA GEORGE COM LEEDS,5411,Hardship,117.00,0.00,117.00
Children and Young Peoples Services,Head of Early Help Inclusion & Vulnerable Children.,071489,Winter Family Fund,Supplies and Services,364301,Grants to Voluntary Organisations,03-Feb-2021,000009401297385,AMZNMktplace,5999,Hardship,10.39,1.73,8.66
Adult and Health Services,Head of Adults,055643,Hawthorn House LD Respite Unit,Supplies and Services,324117,Provisions E324,03-Feb-2021,000009401297399,HOPWELLS LTD,5811,Catering costs - provisions,8.46,1.41,7.05
Adult and Health Services,Head of Adults,055643,Hawthorn House LD Respite Unit,Supplies and Services,324117,Provisions E324,03-Feb-2021,000009401297399 - 1,HOPWELLS LTD,5811,Catering costs - provisions,39.34,,39.34
Adult and Health Services,Head of Adults,055643,Hawthorn House LD Respite Unit,Supplies and Services,324117,Provisions E324,03-Feb-2021,000009401297409,JR HOLLAND FOODSERVICE,5499,Catering costs - provisions,17.65,0.00,17.65
Adult and Health Services,Head of Adults,055643,Hawthorn House LD Respite Unit,Supplies and Services,324117,Provisions E324,03-Feb-2021,000009401297419,JR HOLLAND FOODSERVICE,5499,Catering costs - provisions,9.74,0.00,9.74
"Regeneration, Economy and Growth",Culture Sport and Tourism,011263,Louisa Centre 011263,Supplies and Services,324117,Provisions E324,03-Feb-2021,000009401297443,WILKO RETAIL LIMITED,5399,Catering costs - provisions,35.00,0.00,35.00
Resources BK0010,Business Support,065503,Business Support - Spectrum,Supplies and Services,304403,Equipment and Materials,03-Feb-2021,000009401297513,AMZNMktplace,5999,Other consumables,6.29,1.05,5.24
Resources BK0010,Business Support,065503,Business Support - Spectrum,Supplies and Services,304403,Equipment and Materials,03-Feb-2021,000009401297519,AMZNMktplace,5999,Other consumables,11.81,1.97,9.84
Resources BK0010,Business Support,065503,Business Support - Spectrum,Supplies and Services,304403,Equipment and Materials,03-Feb-2021,000009401297527,AMZNMktplace,5999,Other consumables,8.99,1.50,7.49
Resources BK0010,Business Support,065503,Business Support - Spectrum,Supplies and Services,304403,Equipment and Materials,03-Feb-2021,000009401297535,AMZNMktplace,5999,Other consumables,124.95,20.85,104.10
Resources BK0010,Business Support,065503,Business Support - Spectrum,Supplies and Services,304403,Equipment and Materials,03-Feb-2021,000009401297541,AMZNMktplace,5999,Other consumables,80.91,13.50,67.41
Resources BK0010,Business Support,065503,Business Support - Spectrum,Supplies and Services,304403,Equipment and Materials,03-Feb-2021,000009401297551,AMZNMktplace,5999,Other consumables,76.43,12.75,63.68
Resources BK0010,Business Support,065503,Business Support - Spectrum,Supplies and Services,304403,Equipment and Materials,03-Feb-2021,000009401297559,AMZNMktplace,5999,Other consumables,215.70,36.02,179.68
Resources BK0010,Business Support,065503,Business Support - Spectrum,Supplies and Services,304403,Equipment and Materials,03-Feb-2021,000009401297563,AMZNMktplace,5999,Other consumables,124.95,20.85,104.10
Resources BK0010,Business Support,065503,Business Support - Spectrum,Supplies and Services,304403,Equipment and Materials,03-Feb-2021,000009401297577,AMZNMktplace,5999,Other consumables,98.91,16.49,82.42
Children and Young Peoples Services,Head of Childrens Social Care,085342,16 Hickstead Rise (previously 9 Cedar Ave),Supplies and Services,344033,Telephones,03-Feb-2021,000009401297595,MIP TESCO MOBILE TOPUP,4814,Telephones general-all costs,10.00,0.00,10.00
Children and Young Peoples Services,Head of Childrens Social Care,085342,16 Hickstead Rise (previously 9 Cedar Ave),Supplies and Services,344033,Telephones,03-Feb-2021,000009401297607,MIP TESCO MOBILE TOPUP,4814,Telephones general-all costs,10.00,0.00,10.00
Resources BK0010,Business Support,065501,Business Support - Executive Support,Supplies and Services,340001,Postages E340,03-Feb-2021,000009401297631,WWW.NEOPOST.CO.UK,5111,Postages,500.00,0.00,500.00
Children and Young Peoples Services,Head of Early Help Inclusion & Vulnerable Children.,071489,Winter Family Fund,Supplies and Services,364301,Grants to Voluntary Organisations,03-Feb-2021,000009401297649,SAINSBURY`S,5411,Hardship,127.45,0.00,127.45
Children and Young Peoples Services,Head of Early Help Inclusion & Vulnerable Children.,071489,Winter Family Fund,Supplies and Services,364301,Grants to Voluntary Organisations,03-Feb-2021,000009401297659,ASDA GEORGE COM LEEDS,5411,Hardship,26.95,0.00,26.95
"Regeneration, Economy and Growth",Business Durham CL0850,030608,Tanfield Lea Business Centre,Supplies and Services,332047,Printing Stationery and Gen Off Exps,03-Feb-2021,000009401297775,WWW.NISBETS.COM,5964,Stationery,80.37,0.00,80.37
Children and Young Peoples Services,Head of Early Help Inclusion & Vulnerable Children.,085801,CDYJS - Support,Supplies and Services,304403,Equipment and Materials,03-Feb-2021,000009401297789,AMZNMktplace,5999,Other consumables,202.23,33.76,168.47
Children and Young Peoples Services,Head of Early Help Inclusion & Vulnerable Children.,085801,CDYJS - Support,Supplies and Services,304403,Equipment and Materials,03-Feb-2021,000009401297797,AMZNMktplace,5999,Other consumables,34.47,5.76,28.71
Children and Young Peoples Services,Head of Early Help Inclusion & Vulnerable Children.,085801,CDYJS - Support,Supplies and Services,304403,Equipment and Materials,03-Feb-2021,000009401297807,AMZNMktplace,5999,Other consumables,41.94,6.99,34.95
Children and Young Peoples Services,Head of Early Help Inclusion & Vulnerable Children.,085801,CDYJS - Support,Supplies and Services,304403,Equipment and Materials,03-Feb-2021,000009401297807 - 1,AMZNMktplace,5999,Other consumables,0.03,,0.03
Children and Young Peoples Services,Head of Childrens Social Care,085342,16 Hickstead Rise (previously 9 Cedar Ave),Supplies and Services,324117,Provisions E324,03-Feb-2021,000009401297835,TESCO STORES 2916,5411,Catering costs - provisions,65.61,0.00,65.61
Children and Young Peoples Services,Head of Education and Skills,071802,Louisa Cent Nursery,Supplies and Services,324117,Provisions E324,03-Feb-2021,000009401297847,ASDA SUPERSTORE,5411,Catering costs - provisions,15.50,0.00,15.50
Children and Young Peoples Services,Head of Education and Skills,071802,Louisa Cent Nursery,Supplies and Services,324117,Provisions E324,03-Feb-2021,000009401297855,ASDA SUPERSTORE,5411,Catering costs - provisions,9.43,0.00,9.43
Children and Young Peoples Services,Head of Childrens Social Care,085332,Middlestone Moor CU,Supplies and Services,304403,Equipment and Materials,03-Feb-2021,000009401297885,AMZNMktplace,5999,Other consumables,6.25,1.04,5.21
Children and Young Peoples Services,Head of Childrens Social Care,085331,New Lea Childrens Home,Supplies and Services,332047,Printing Stationery and Gen Off Exps,03-Feb-2021,000009401297929,VIKING UK,5111,Stationery,30.12,0.00,30.12
Adult and Health Services,Commissioning inc Supporting People,052100,Supporting the Provider Market,Supplies and Services,312011,Newspapers books and periodicals E312,03-Feb-2021,000009401297937,Amazon.co.uk MF0YU2FH4,5969,Books-school library,16.60,0.00,16.60
Resources BK0010,Digital and Customer Services,011103,Digital Solutions,Supplies and Services,372009,Subscriptions E372,03-Feb-2021,000009401297949,DRI MSP360TM,5734,Subscriptions 372009,28.80,0.00,28.80
"Regeneration, Economy and Growth",Development and Housing,031500,Housing Solutions - Core Team,Supplies and Services,352001,Conference Expenses,03-Feb-2021,000009401297985,THE HONEST LAWYER,7011,Conferencesseminars fees etc,159.90,0.00,159.90
Neighbourhoods and Climate Change,Partnerships & Community Engagement Div.,060472,Syrian Vulnerable Persons Scheme,Supplies and Services,308011,Furniture,03-Feb-2021,000009401298063,The Range,5311,Furniture repair and replacement,262.36,43.73,218.63
Children and Young Peoples Services,Head of Early Help Inclusion & Vulnerable Children.,071489,Winter Family Fund,Supplies and Services,324117,Provisions E324,03-Feb-2021,000009401298121,WILKO.COM,5399,Catering costs - provisions,40.90,0.00,40.90
Children and Young Peoples Services,Head of Early Help Inclusion & Vulnerable Children.,071489,Winter Family Fund,Supplies and Services,328041,Clothing uniforms and laundry E328,03-Feb-2021,000009401298135,ARGOS LTD,5310,Clothing uniforms and laundry,252.90,0.00,252.90
"Regeneration, Economy and Growth",Development and Housing,030771,Durham Advance Flexible Fund,Supplies and Services,304259,Equipment and Materials,03-Feb-2021,000009404198629,GEN REGISTER OFFICE,9399,Equipment-purchase and rental,-31.50,0.00,-31.50
Children and Young Peoples Services,Head of Childrens Social Care,085332,Middlestone Moor CU,Supplies and Services,304259,Equipment and Materials,03-Feb-2021,000009404199447,SPORTSDIRECT.COM,5941,Equipment-purchase and rental,94.19,0.00,94.19
Resources BK0010,Legal & Democratic Services,067801,Registrars,Supplies and Services,332047,Printing Stationery and Gen Off Exps,03-Feb-2021,000009404199567,AMZNMKTPLACE AMAZON.CO,5999,Stationery,102.60,17.10,85.50
Children and Young Peoples Services,Head of Early Help Inclusion & Vulnerable Children.,071489,Winter Family Fund,Supplies and Services,324117,Provisions E324,03-Feb-2021,000009407790031,WILKO.COM,5399,Catering costs - provisions,-1.70,0.00,-1.70
Resources BK0010,Business Support,065503,Business Support - Spectrum,Supplies and Services,304403,Equipment and Materials,04-Feb-2021,000009401297583,AMZNMktplace,5999,Other consumables,159.84,26.64,133.20
Resources BK0010,Business Support,065503,Business Support - Spectrum,Supplies and Services,304403,Equipment and Materials,04-Feb-2021,000009401297583 - 1,AMZNMktplace,5999,Other consumables,0.08,,0.08
Resources BK0010,Business Support,065503,Business Support - Spectrum,Supplies and Services,304403,Equipment and Materials,04-Feb-2021,000009401297589,AMZNMktplace,5999,Other consumables,44.91,7.50,37.41
Children and Young Peoples Services,Head of Childrens Social Care,085332,Middlestone Moor CU,Supplies and Services,304999,Equipment and Materials,04-Feb-2021,000009401297739,Microsoft Console 1-Mo,5816,Misc equipment tools and materials,7.99,0.00,7.99
"Regeneration, Economy and Growth",Business Durham CL0850,030689,Inward Investment and Aftercare,Supplies and Services,304403,Equipment and Materials,04-Feb-2021,000009404197911,ADOBE CREATIVE CLOUD,5734,Other consumables,49.94,0.00,49.94
"Regeneration, Economy and Growth",Business Durham CL0850,030689,Inward Investment and Aftercare,Supplies and Services,336005,Advertising E336,04-Feb-2021,000009404197919,GOOGLE ADS6853017821,7311,Advertising other than for staff,142.31,0.00,142.31
"Regeneration, Economy and Growth",Business Durham CL0850,030689,Inward Investment and Aftercare,Supplies and Services,336005,Advertising E336,04-Feb-2021,000009404197923,LINKEDIN-630 0495694,7311,Advertising other than for staff,19.20,0.00,19.20
"Regeneration, Economy and Growth",Business Durham CL0850,030689,Inward Investment and Aftercare,Supplies and Services,342222,Computers and Communications,04-Feb-2021,000009404197929,FASTHOSTS INTERNET,4816,Comp hardware purch-network servers,67.20,0.00,67.20
"Regeneration, Economy and Growth",Business Durham CL0850,030689,Inward Investment and Aftercare,Supplies and Services,342222,Computers and Communications,04-Feb-2021,000009404197935,FASTHOSTS INTERNET,4816,Comp hardware purch-network servers,7.54,0.00,7.54
"Regeneration, Economy and Growth",Business Durham CL0850,030689,Inward Investment and Aftercare,Supplies and Services,342222,Computers and Communications,04-Feb-2021,000009404197939,FASTHOSTS INTERNET,4816,Comp hardware purch-network servers,102.66,0.00,102.66
Children and Young Peoples Services,Head of Education and Skills,071801,Selby Cottage Childcare Centre,Supplies and Services,324117,Provisions E324,04-Feb-2021,000009404197971,TESCO STORES 2371,5411,Catering costs - provisions,63.35,0.00,63.35
Children and Young Peoples Services,Head of Childrens Social Care,085561,Social Work Academy,Supplies and Services,384999,Miscellaneous Expenses,04-Feb-2021,000009404197979,Amazon.co.uk MF1MG8LA4,5969,Other expenses,304.68,0.00,304.68
Children and Young Peoples Services,Head of Childrens Social Care,085561,Social Work Academy,Supplies and Services,384999,Miscellaneous Expenses,04-Feb-2021,000009404197989,Amazon.co.uk MF2EU4434,5969,Other expenses,244.67,0.00,244.67
Children and Young Peoples Services,Head of Childrens Social Care,085561,Social Work Academy,Supplies and Services,384999,Miscellaneous Expenses,04-Feb-2021,000009404197999,Amazon.co.uk MF26U7LY4,5969,Other expenses,149.90,0.00,149.90
Children and Young Peoples Services,Head of Childrens Social Care,085561,Social Work Academy,Supplies and Services,384999,Miscellaneous Expenses,04-Feb-2021,000009404198007,Amazon.co.uk MF64V14S4,5969,Other expenses,144.00,0.00,144.00
Adult and Health Services,Head of Adults,053812,Maple Court Extra,Supplies and Services,304403,Equipment and Materials,04-Feb-2021,000009404198017,AMZNMktplace,5999,Other consumables,14.95,2.49,12.46
Adult and Health Services,Head of Adults,055302,Durham Pathways,Supplies and Services,304403,Equipment and Materials,04-Feb-2021,000009404198023,AMZNMktplace,5999,Other consumables,209.00,34.83,174.17
Children and Young Peoples Services,Head of Childrens Social Care,085373,Young Persons Supported Lodgings,Supplies and Services,304403,Equipment and Materials,04-Feb-2021,000009404198031,AMZNMktplace,5999,Other consumables,8.99,1.50,7.49
"Regeneration, Economy and Growth",Development and Housing,031576,B& B - Temp Accom,Supplies and Services,364320,Grants to Voluntary Organisations,04-Feb-2021,000009404198047,TOAST LETTINGS,7011,Accommodation assistance,455.00,0.00,455.00
"Regeneration, Economy and Growth",Development and Housing,031576,B& B - Temp Accom,Supplies and Services,364320,Grants to Voluntary Organisations,04-Feb-2021,000009404198061,THE HONEST LAWYER,7011,Accommodation assistance,22.86,3.81,19.05
"Regeneration, Economy and Growth",Development and Housing,031576,B& B - Temp Accom,Supplies and Services,364320,Grants to Voluntary Organisations,04-Feb-2021,000009404198061 - 1,THE HONEST LAWYER,7011,Accommodation assistance,57.09,,57.09
"Regeneration, Economy and Growth",Development and Housing,031576,B& B - Temp Accom,Supplies and Services,364320,Grants to Voluntary Organisations,04-Feb-2021,000009404198067,THE HONEST LAWYER,7011,Accommodation assistance,479.70,0.00,479.70
Neighbourhoods and Climate Change,Environmental Services,010383,C&G - South Street Cleansing,Supplies and Services,304221,Equipment and Materials,04-Feb-2021,000009404198123,S&A BUILDERS MERCHANTS,5211,Direct materials,96.00,0.00,96.00
Children and Young Peoples Services,Head of Childrens Social Care,085332,Middlestone Moor CU,Supplies and Services,304999,Equipment and Materials,04-Feb-2021,000009404198137,WILKO RETAIL LIMITED,5399,Misc equipment tools and materials,3.20,0.00,3.20
Children and Young Peoples Services,Head of Childrens Social Care,085332,Middlestone Moor CU,Supplies and Services,324117,Provisions E324,04-Feb-2021,000009404198147,W BOYES & CO LTD NEWTO,5310,Catering costs - provisions,3.99,0.00,3.99
Children and Young Peoples Services,Head of Childrens Social Care,085341,High Etherley Satelite Home,Supplies and Services,328041,Clothing uniforms and laundry E328,04-Feb-2021,000009404198173,ARGOS LTD,5310,Clothing uniforms and laundry,9.99,0.00,9.99
Neighbourhoods and Climate Change,Environmental Services,010367,C&G - South Grounds Maintenance,Supplies and Services,304221,Equipment and Materials,04-Feb-2021,000009404198231,MKM PETERLEE,5211,Direct materials,175.97,0.00,175.97
Children and Young Peoples Services,Head of Early Help Inclusion & Vulnerable Children.,071489,Winter Family Fund,Supplies and Services,384700,Miscellaneous Expenses,04-Feb-2021,000009404198267,FRANKS THE FLOORIN,5713,Miscellaneous grants,394.00,65.67,328.33
Children and Young Peoples Services,Head of Early Help Inclusion & Vulnerable Children.,088104,BA/BC/Crook 0-19 Targeted Family Support,Supplies and Services,312009,Newspapers books and periodicals E312,04-Feb-2021,000009404198273,WHSMITH.CO.UK,5943,Newspapers books and periodicals,12.48,0.00,12.48
Children and Young Peoples Services,Head of Early Help Inclusion & Vulnerable Children.,071489,Winter Family Fund,Supplies and Services,384700,Miscellaneous Expenses,04-Feb-2021,000009404198279,AMZ Amazon.co.uk,5969,Miscellaneous grants,-29.96,-4.99,-24.97
Children and Young Peoples Services,Head of Childrens Social Care,085380,Operations Manager LAC Resources,Supplies and Services,384999,Miscellaneous Expenses,04-Feb-2021,000009404198285,AMZ Amazon.co.uk,5969,Other expenses,-12.99,0.00,-12.99
Children and Young Peoples Services,Head of Early Help Inclusion & Vulnerable Children.,079599,Psychological-HQ,Employees,040149,Recruitment Instruction and Training,04-Feb-2021,000009404198341,SCHOOLWELLBEINGCARDS,8299,Training-all costs,7.50,0.00,7.50
Children and Young Peoples Services,Head of Early Help Inclusion & Vulnerable Children.,079599,Psychological-HQ,Supplies and Services,384999,Miscellaneous Expenses,04-Feb-2021,000009404198347,Amazon.co.uk MF6NQ1L34,5969,Other expenses,27.56,0.00,27.56
Children and Young Peoples Services,Head of Early Help Inclusion & Vulnerable Children.,085955,Auckland,Supplies and Services,304403,Equipment and Materials,04-Feb-2021,000009404198353,AMZNMktplace,5999,Other consumables,57.90,9.66,48.24
Children and Young Peoples Services,Head of Early Help Inclusion & Vulnerable Children.,085955,Auckland,Supplies and Services,304403,Equipment and Materials,04-Feb-2021,000009404198365,AMZNMKTPLACE AMAZON.CO,5999,Other consumables,14.67,0.00,14.67
Children and Young Peoples Services,Head of Early Help Inclusion & Vulnerable Children.,085956,Lumley,Supplies and Services,304403,Equipment and Materials,04-Feb-2021,000009404198373,AMZNMKTPLACE AMAZON.CO,5999,Other consumables,9.99,1.67,8.32
Children and Young Peoples Services,Head of Early Help Inclusion & Vulnerable Children.,085955,Auckland,Supplies and Services,304403,Equipment and Materials,04-Feb-2021,000009404198381,AMZNMKTPLACE AMAZON.CO,5999,Other consumables,49.95,8.35,41.60
Children and Young Peoples Services,Head of Early Help Inclusion & Vulnerable Children.,085955,Auckland,Supplies and Services,304403,Equipment and Materials,04-Feb-2021,000009404198385,AMZNMKTPLACE AMAZON.CO,5999,Other consumables,55.92,0.00,55.92
Children and Young Peoples Services,Head of Early Help Inclusion & Vulnerable Children.,085954,Walworth,Supplies and Services,328041,Clothing uniforms and laundry E328,04-Feb-2021,000009404198391,REPERTOIRE FASHION,5691,Clothing uniforms and laundry,92.52,15.42,77.10
Children and Young Peoples Services,Head of Early Help Inclusion & Vulnerable Children.,085954,Walworth,Supplies and Services,328041,Clothing uniforms and laundry E328,04-Feb-2021,000009404198391 - 1,REPERTOIRE FASHION,5691,Clothing uniforms and laundry,4.97,,4.97
Children and Young Peoples Services,Head of Early Help Inclusion & Vulnerable Children.,085954,Walworth,Supplies and Services,304259,Equipment and Materials,04-Feb-2021,000009404198397,WWW.TESSUTI.CO.UK,5941,Equipment-purchase and rental,69.99,0.00,69.99
Children and Young Peoples Services,Head of Early Help Inclusion & Vulnerable Children.,085962,Aycliffe Secure - Durham,Supplies and Services,304259,Equipment and Materials,04-Feb-2021,000009404198403,JD SPORTS INTERNET,5941,Equipment-purchase and rental,-55.00,0.00,-55.00
Children and Young Peoples Services,Head of Childrens Social Care,085362,LAC & Permanence Team 2,Supplies and Services,304403,Equipment and Materials,04-Feb-2021,000009404198433,HARTLEPOOL BC,9399,Other consumables,-11.00,0.00,-11.00
"Regeneration, Economy and Growth",Culture Sport and Tourism,054775,Durham Town Hall 054775,Supplies and Services,304259,Equipment and Materials,04-Feb-2021,000009404198439,Amazon Music MF99I2L84,5735,Equipment-purchase and rental,7.99,0.00,7.99
Children and Young Peoples Services,Head of Early Help Inclusion & Vulnerable Children.,073998,TTF-Co-ordinator Grant,Transfer Payments,525033,Other,04-Feb-2021,000009404198457,WILKO.COM,5399,Grants to individuals,65.00,10.83,54.17
Children and Young Peoples Services,Head of Early Help Inclusion & Vulnerable Children.,073998,TTF-Co-ordinator Grant,Transfer Payments,525033,Other,04-Feb-2021,000009404198463,J DODDS CARPETS LTD,5713,Grants to individuals,250.00,0.00,250.00
Children and Young Peoples Services,Head of Early Help Inclusion & Vulnerable Children.,073998,TTF-Co-ordinator Grant,Transfer Payments,525033,Other,04-Feb-2021,000009404198467,ASDA GEORGE COM LEEDS,5411,Grants to individuals,37.95,6.33,31.62
Children and Young Peoples Services,Head of Education and Skills,071732,Dean Bank Childcare,Supplies and Services,324117,Provisions E324,04-Feb-2021,000009404198529,ASDA GROCERIES ONLINE,5411,Catering costs - provisions,78.00,0.00,78.00
Children and Young Peoples Services,Head of Education and Skills,071732,Dean Bank Childcare,Supplies and Services,324117,Provisions E324,04-Feb-2021,000009404198535,TESCO STORE 2638,5411,Catering costs - provisions,73.80,0.00,73.80
Children and Young Peoples Services,Head of Education and Skills,071732,Dean Bank Childcare,Supplies and Services,324117,Provisions E324,04-Feb-2021,000009404198541,ASDA GROCERIES ONLINE,5411,Catering costs - provisions,-39.00,0.00,-39.00
"Regeneration, Economy and Growth",Culture Sport and Tourism,054967,Theatre - Technical Staffing,Supplies and Services,304221,Equipment and Materials,04-Feb-2021,000009404198549,Akzonobel,5198,Direct materials,277.38,0.00,277.38
"Regeneration, Economy and Growth",Culture Sport and Tourism,054967,Theatre - Technical Staffing,Supplies and Services,304403,Equipment and Materials,04-Feb-2021,000009404198555,AMZNMKTPLACE AMAZON.CO,5999,Other consumables,19.98,0.00,19.98
Children and Young Peoples Services,Head of Childrens Social Care,085334,West Rainton Satelite Home,Supplies and Services,324117,Provisions E324,04-Feb-2021,000009404198581,TESCO STORES 2371,5411,Catering costs - provisions,86.13,0.00,86.13
Children and Young Peoples Services,Head of Childrens Social Care,085332,Middlestone Moor CU,Supplies and Services,324117,Provisions E324,04-Feb-2021,000009404198601,TESCO STORES 2916,5411,Catering costs - provisions,7.00,0.00,7.00
Neighbourhoods and Climate Change,Environmental Services,010301,C&G - North Grounds Maintenance,Supplies and Services,304221,Equipment and Materials,04-Feb-2021,000009404198651,AZTEC CHEMICALS LTD,5169,Direct materials,434.95,72.49,362.46
"Regeneration, Economy and Growth",Development and Housing,031623,Rough,Supplies and Services,352001,Conference Expenses,04-Feb-2021,000009404198661,TOAST LETTINGS,7011,Conferencesseminars fees etc,260.00,0.00,260.00
"Regeneration, Economy and Growth",Development and Housing,031623,Rough,Supplies and Services,352001,Conference Expenses,04-Feb-2021,000009404198667,TOAST LETTINGS,7011,Conferencesseminars fees etc,260.00,0.00,260.00
"Regeneration, Economy and Growth",Development and Housing,031623,Rough,Supplies and Services,352001,Conference Expenses,04-Feb-2021,000009404198673,HI NEWCASTLE WASHI,7011,Conferencesseminars fees etc,450.00,0.00,450.00
"Regeneration, Economy and Growth",Development and Housing,031623,Rough,Supplies and Services,352001,Conference Expenses,04-Feb-2021,000009404198683,HI NEWCASTLE WASHI,7011,Conferencesseminars fees etc,450.00,0.00,450.00
"Regeneration, Economy and Growth",Development and Housing,031623,Rough,Supplies and Services,352001,Conference Expenses,04-Feb-2021,000009404198687,HI NEWCASTLE WASHI,7011,Conferencesseminars fees etc,335.00,0.00,335.00
Children and Young Peoples Services,Head of Early Help Inclusion & Vulnerable Children.,088107,Ferryhill & Newton Aycliffe 0-19 Community Family Hub,Supplies and Services,304403,Equipment and Materials,04-Feb-2021,000009404198697,ARGOS LTD,5310,Other consumables,-48.00,0.00,-48.00
Children and Young Peoples Services,Head of Early Help Inclusion & Vulnerable Children.,071489,Winter Family Fund,Supplies and Services,304403,Equipment and Materials,04-Feb-2021,000009404198727,AMZNMKTPLACE AMAZON.CO,5999,Other consumables,59.99,0.00,59.99
Children and Young Peoples Services,Head of Early Help Inclusion & Vulnerable Children.,088117,East Area - Teenage Parent Programme,Supplies and Services,304403,Equipment and Materials,04-Feb-2021,000009404198733,AMZNMktplace,5999,Other consumables,45.39,0.00,45.39
Children and Young Peoples Services,Head of Early Help Inclusion & Vulnerable Children.,088112,Seaham & Central Durham 0-19 Targeted Family Support,Supplies and Services,324117,Provisions E324,04-Feb-2021,000009404198743,THORNTONS LTD,5441,Catering costs - provisions,54.95,0.00,54.95
"Regeneration, Economy and Growth",Development and Housing,031576,B& B - Temp Accom,Supplies and Services,364320,Grants to Voluntary Organisations,04-Feb-2021,000009404198835,BUDGET H EXPRESS HOTEL,7011,Accommodation assistance,356.00,0.00,356.00
"Regeneration, Economy and Growth",Development and Housing,031576,B& B - Temp Accom,Supplies and Services,364320,Grants to Voluntary Organisations,04-Feb-2021,000009404198841,HI NEWCASTLE WASHI,7011,Accommodation assistance,455.00,0.00,455.00
Children and Young Peoples Services,Head of Early Help Inclusion & Vulnerable Children.,088119,Durham 0-19 Community Family Hub,Supplies and Services,384999,Miscellaneous Expenses,04-Feb-2021,000009404198851,Amazon.co.uk MF8MA7L04,5969,Other expenses,71.55,11.97,59.58
Children and Young Peoples Services,Head of Early Help Inclusion & Vulnerable Children.,088119,Durham 0-19 Community Family Hub,Supplies and Services,304403,Equipment and Materials,04-Feb-2021,000009404198855,AMZNMktplace,5999,Other consumables,9.50,1.58,7.92
Children and Young Peoples Services,Head of Early Help Inclusion & Vulnerable Children.,088119,Durham 0-19 Community Family Hub,Supplies and Services,304403,Equipment and Materials,04-Feb-2021,000009404198861,AMZNMktplace,5999,Other consumables,145.89,24.33,121.56
"Regeneration, Economy and Growth",Development and Housing,031576,B& B - Temp Accom,Supplies and Services,364320,Grants to Voluntary Organisations,04-Feb-2021,000009404198911,TOAST LETTINGS,7011,Accommodation assistance,500.00,0.00,500.00
"Regeneration, Economy and Growth",Development and Housing,031576,B& B - Temp Accom,Supplies and Services,364320,Grants to Voluntary Organisations,04-Feb-2021,000009404198919,TOAST LETTINGS,7011,Accommodation assistance,500.00,0.00,500.00
"Regeneration, Economy and Growth",Development and Housing,031576,B& B - Temp Accom,Supplies and Services,364320,Grants to Voluntary Organisations,04-Feb-2021,000009404198923,TOAST LETTINGS,7011,Accommodation assistance,500.00,0.00,500.00
"Regeneration, Economy and Growth",Development and Housing,031576,B& B - Temp Accom,Supplies and Services,364320,Grants to Voluntary Organisations,04-Feb-2021,000009404198929,TOAST LETTINGS,7011,Accommodation assistance,255.00,0.00,255.00
Children and Young Peoples Services,Head of Early Help Inclusion & Vulnerable Children.,088106,Ferryhill & N.Aycliffe 0-19 Targeted Family Support,Supplies and Services,304259,Equipment and Materials,04-Feb-2021,000009404198969,Amazon.co.uk MF24G7484,5969,Equipment-purchase and rental,13.99,0.00,13.99
Children and Young Peoples Services,Head of Early Help Inclusion & Vulnerable Children.,088106,Ferryhill & N.Aycliffe 0-19 Targeted Family Support,Supplies and Services,304259,Equipment and Materials,04-Feb-2021,000009404198977,Amazon.co.uk MF54D5454,5969,Equipment-purchase and rental,13.99,0.00,13.99
Children and Young Peoples Services,Head of Early Help Inclusion & Vulnerable Children.,088106,Ferryhill & N.Aycliffe 0-19 Targeted Family Support,Supplies and Services,304259,Equipment and Materials,04-Feb-2021,000009404198987,AMZNMktplace,5999,Equipment-purchase and rental,19.95,3.33,16.62
Children and Young Peoples Services,Head of Early Help Inclusion & Vulnerable Children.,088106,Ferryhill & N.Aycliffe 0-19 Targeted Family Support,Supplies and Services,304259,Equipment and Materials,04-Feb-2021,000009404198993,AMZNMktplace,5999,Equipment-purchase and rental,55.92,9.33,46.59
Neighbourhoods and Climate Change,Environmental Services,010367,C&G - South Grounds Maintenance,Supplies and Services,304221,Equipment and Materials,04-Feb-2021,000009404199031,HARELAW SAWMILL,5211,Direct materials,186.98,0.00,186.98
Adult and Health Services,Head of Adults,055643,Hawthorn House LD Respite Unit,Supplies and Services,304403,Equipment and Materials,04-Feb-2021,000009404199075,AMZNMktplace,5999,Other consumables,35.45,0.00,35.45
Adult and Health Services,Head of Adults,055643,Hawthorn House LD Respite Unit,Supplies and Services,324117,Provisions E324,04-Feb-2021,000009404199081,SAINSBURYS SACAT 0776,5411,Catering costs - provisions,8.40,0.00,8.40
Neighbourhoods and Climate Change,Environmental Services,019100,Fleet - Strategic Fleet,Supplies and Services,312009,Newspapers books and periodicals E312,04-Feb-2021,000009404199145,WWW.FTA.CO.UK,4011,Newspapers books and periodicals,240.00,0.00,240.00
Children and Young Peoples Services,Head of Childrens Social Care,085352,Tow Law CU,Supplies and Services,304403,Equipment and Materials,04-Feb-2021,000009404199153,AMZNMktplace,5999,Other consumables,50.99,8.50,42.49
Children and Young Peoples Services,Head of Early Help Inclusion & Vulnerable Children.,071489,Winter Family Fund,Supplies and Services,364301,Grants to Voluntary Organisations,04-Feb-2021,000009404199183,Amazon.co.uk MF8TY94Y4,5969,Hardship,7.00,1.17,5.83
Children and Young Peoples Services,Head of Education and Skills,070264,EDC Premises,Premises,145023,Cleaning and Domestic Supplies,04-Feb-2021,000009404199199,AMZN Mktp UK MF1N984Y4,5942,Cleaning and domestic materials,138.57,23.10,115.47
Children and Young Peoples Services,Head of Education and Skills,070264,EDC Premises,Supplies and Services,312009,Newspapers books and periodicals E312,04-Feb-2021,000009404199209,AMZN Mktp UK MF7PJ54G4,5942,Newspapers books and periodicals,169.00,28.17,140.83
Resources BK0010,Digital and Customer Services,065335,School Services - Implementations,Supplies and Services,304639,Equipment and Materials,04-Feb-2021,000009404199223,REPLACEBASE,5732,Technicians-supplies,150.53,0.00,150.53
Children and Young Peoples Services,Head of Early Help Inclusion & Vulnerable Children.,085957,Secure Management,Supplies and Services,304403,Equipment and Materials,04-Feb-2021,000009404199247,AMZNMktplace,5999,Other consumables,59.74,9.98,49.76
Children and Young Peoples Services,Head of Early Help Inclusion & Vulnerable Children.,085955,Auckland,Supplies and Services,312009,Newspapers books and periodicals E312,04-Feb-2021,000009404199257,Amazon.co.uk MF2NN9LL4,5969,Newspapers books and periodicals,16.95,0.00,16.95
Children and Young Peoples Services,Head of Early Help Inclusion & Vulnerable Children.,085957,Secure Management,Supplies and Services,304403,Equipment and Materials,04-Feb-2021,000009404199261,AMZNMktplace,5999,Other consumables,31.74,5.30,26.44
Children and Young Peoples Services,Head of Childrens Social Care,085561,Social Work Academy,Supplies and Services,312009,Newspapers books and periodicals E312,04-Feb-2021,000009404199267,Amazon.co.uk MF74U24N4,5969,Newspapers books and periodicals,35.40,0.00,35.40
Children and Young Peoples Services,Head of Childrens Social Care,085372,Young Peoples Service Team 2,Employees,040149,Recruitment Instruction and Training,04-Feb-2021,000009404199271,CONSTRUCTIONCERTIFICAT,8299,Training-all costs,43.00,0.00,43.00
Children and Young Peoples Services,Head of Childrens Social Care,085372,Young Peoples Service Team 2,Supplies and Services,304259,Equipment and Materials,04-Feb-2021,000009404199277,GEN REGISTER OFFICE,9399,Equipment-purchase and rental,14.00,0.00,14.00
Children and Young Peoples Services,Head of Early Help Inclusion & Vulnerable Children.,071489,Winter Family Fund,Supplies and Services,364301,Grants to Voluntary Organisations,04-Feb-2021,000009404199287,WILKO.COM,5399,Hardship,29.60,4.93,24.67
Children and Young Peoples Services,Head of Early Help Inclusion & Vulnerable Children.,071489,Winter Family Fund,Supplies and Services,364301,Grants to Voluntary Organisations,04-Feb-2021,000009404199291,ASDA GEORGE COM LEEDS,5411,Hardship,97.00,0.00,97.00
"Regeneration, Economy and Growth",Development and Housing,031576,B& B - Temp Accom,Supplies and Services,364320,Grants to Voluntary Organisations,04-Feb-2021,000009404199309,TOAST LETTINGS,7011,Accommodation assistance,320.00,0.00,320.00
"Regeneration, Economy and Growth",Development and Housing,031576,B& B - Temp Accom,Supplies and Services,364320,Grants to Voluntary Organisations,04-Feb-2021,000009404199313,THE HONEST LAWYER,7011,Accommodation assistance,334.80,0.00,334.80
"Regeneration, Economy and Growth",Development and Housing,031576,B& B - Temp Accom,Supplies and Services,364320,Grants to Voluntary Organisations,04-Feb-2021,000009404199319,BUDGET H EXPRESS HOTEL,7011,Accommodation assistance,356.00,0.00,356.00
Neighbourhoods and Climate Change,Environmental Services,010301,C&G - North Grounds Maintenance,Supplies and Services,304999,Equipment and Materials,04-Feb-2021,000009404199323,GUSTHARTS,5072,Misc equipment tools and materials,258.00,0.00,258.00
Children and Young Peoples Services,Head of Early Help Inclusion & Vulnerable Children.,085801,CDYJS - Support,Supplies and Services,324117,Provisions E324,04-Feb-2021,000009404199331,B&M 373 - GATESHEAD,5399,Catering costs - provisions,35.00,0.00,35.00
Children and Young Peoples Services,Head of Early Help Inclusion & Vulnerable Children.,085801,CDYJS - Support,Supplies and Services,304259,Equipment and Materials,04-Feb-2021,000009404199335,JD SPORTS INTERNET,5941,Equipment-purchase and rental,28.99,0.00,28.99
Children and Young Peoples Services,Head of Early Help Inclusion & Vulnerable Children.,085801,CDYJS - Support,Supplies and Services,304259,Equipment and Materials,04-Feb-2021,000009404199341,JD SPORTS INTERNET,5941,Equipment-purchase and rental,-28.99,0.00,-28.99
Children and Young Peoples Services,Head of Childrens Social Care,085342,16 Hickstead Rise (previously 9 Cedar Ave),Supplies and Services,324117,Provisions E324,04-Feb-2021,000009404199361,SAINSBURYS 2199,5411,Catering costs - provisions,140.00,0.00,140.00
Children and Young Peoples Services,Head of Childrens Social Care,085342,16 Hickstead Rise (previously 9 Cedar Ave),Supplies and Services,324117,Provisions E324,04-Feb-2021,000009404199369,WALKERS BUTCHERS & BAK,5499,Catering costs - provisions,7.55,0.00,7.55
Resources BK0010,Business Support,065503,Business Support - Spectrum,Supplies and Services,308011,Furniture,04-Feb-2021,000009404199385,WWW.THERANGE.CO.UK,5712,Furniture repair and replacement,107.86,0.00,107.86
Children and Young Peoples Services,Head of Childrens Social Care,085332,Middlestone Moor CU,Supplies and Services,384999,Miscellaneous Expenses,04-Feb-2021,000009404199441,Amazon.co.uk MF5QD04U4,5969,Other expenses,12.99,2.17,10.82
Adult and Health Services,Commissioning inc Supporting People,052100,Supporting the Provider Market,Supplies and Services,312009,Newspapers books and periodicals E312,04-Feb-2021,000009404199497,Amazon.co.uk MF5MJ9404,5969,Newspapers books and periodicals,16.60,0.00,16.60
Adult and Health Services,Commissioning inc Supporting People,052100,Supporting the Provider Market,Supplies and Services,312009,Newspapers books and periodicals E312,04-Feb-2021,000009404199503,Amazon.co.uk MF0TK34G4,5969,Newspapers books and periodicals,16.60,0.00,16.60
Adult and Health Services,Commissioning inc Supporting People,052100,Supporting the Provider Market,Supplies and Services,312009,Newspapers books and periodicals E312,04-Feb-2021,000009404199511,Amazon.co.uk MF07Q94Y4,5969,Newspapers books and periodicals,16.60,0.00,16.60
Adult and Health Services,Commissioning inc Supporting People,052100,Supporting the Provider Market,Supplies and Services,312009,Newspapers books and periodicals E312,04-Feb-2021,000009404199519,Amazon.co.uk MF2IN94Z4,5969,Newspapers books and periodicals,16.60,0.00,16.60
Adult and Health Services,Commissioning inc Supporting People,052100,Supporting the Provider Market,Supplies and Services,312009,Newspapers books and periodicals E312,04-Feb-2021,000009404199523,Amazon.co.uk MF2TF14P4,5969,Newspapers books and periodicals,16.60,0.00,16.60
Adult and Health Services,Commissioning inc Supporting People,052100,Supporting the Provider Market,Supplies and Services,312009,Newspapers books and periodicals E312,04-Feb-2021,000009404199529,Amazon.co.uk MF3XI5484,5969,Newspapers books and periodicals,16.60,0.00,16.60
Adult and Health Services,Commissioning inc Supporting People,052100,Supporting the Provider Market,Supplies and Services,312009,Newspapers books and periodicals E312,04-Feb-2021,000009404199537,Amazon.co.uk MF60C94X4,5969,Newspapers books and periodicals,16.60,0.00,16.60
Adult and Health Services,Commissioning inc Supporting People,052100,Supporting the Provider Market,Supplies and Services,312009,Newspapers books and periodicals E312,04-Feb-2021,000009404199545,Amazon.co.uk MF7Q78434,5969,Newspapers books and periodicals,16.60,0.00,16.60
Adult and Health Services,Commissioning inc Supporting People,052100,Supporting the Provider Market,Supplies and Services,312009,Newspapers books and periodicals E312,04-Feb-2021,000009404199551,Amazon.co.uk MF9TQ24B4,5969,Newspapers books and periodicals,16.60,0.00,16.60
Adult and Health Services,Commissioning inc Supporting People,052100,Supporting the Provider Market,Supplies and Services,312009,Newspapers books and periodicals E312,04-Feb-2021,000009404199557,Amazon.co.uk MF3VB3LE4,5969,Newspapers books and periodicals,16.60,0.00,16.60
Resources BK0010,Business Support,065501,Business Support - Executive Support,Supplies and Services,304335,Equipment and Materials,04-Feb-2021,000009404199573,AMZNMktplace,5999,ICT supplies etc,17.99,0.00,17.99
Resources BK0010,COVID19 - Resources,091007,COVID19 - Resources,Supplies and Services,340001,Postages E340,04-Feb-2021,000009404199577,ROYAL MAIL REDIRECTION,9402,Postages,216.00,0.00,216.00
Resources BK0010,COVID19 - Resources,091007,COVID19 - Resources,Supplies and Services,340001,Postages E340,04-Feb-2021,000009404199585,ROYAL MAIL REDIRECTION,9402,Postages,216.00,0.00,216.00
Resources BK0010,COVID19 - Resources,091007,COVID19 - Resources,Supplies and Services,340001,Postages E340,04-Feb-2021,000009404199593,ROYAL MAIL REDIRECTION,9402,Postages,216.00,0.00,216.00
"Regeneration, Economy and Growth",Development and Housing,031500,Housing Solutions - Core Team,Supplies and Services,352001,Conference Expenses,04-Feb-2021,000009404199611,BUDGET H EXPRESS HOTEL,7011,Conferencesseminars fees etc,178.00,0.00,178.00
"Regeneration, Economy and Growth",Development and Housing,031500,Housing Solutions - Core Team,Supplies and Services,352001,Conference Expenses,04-Feb-2021,000009404199623,HI NEWCASTLE WASHI,7011,Conferencesseminars fees etc,450.00,0.00,450.00
"Regeneration, Economy and Growth",Development and Housing,031500,Housing Solutions - Core Team,Supplies and Services,352001,Conference Expenses,04-Feb-2021,000009404199631,HI NEWCASTLE WASHI,7011,Conferencesseminars fees etc,450.00,0.00,450.00
"Regeneration, Economy and Growth",Development and Housing,031500,Housing Solutions - Core Team,Supplies and Services,352001,Conference Expenses,04-Feb-2021,000009404199639,HI NEWCASTLE WASHI,7011,Conferencesseminars fees etc,450.00,0.00,450.00
"Regeneration, Economy and Growth",Development and Housing,031500,Housing Solutions - Core Team,Supplies and Services,352001,Conference Expenses,04-Feb-2021,000009404199645,HI NEWCASTLE WASHI,7011,Conferencesseminars fees etc,150.24,0.00,150.24
Neighbourhoods and Climate Change,Partnerships & Community Engagement Div.,060472,Syrian Vulnerable Persons Scheme,Supplies and Services,308011,Furniture,04-Feb-2021,000009404199707,SP TERRYS FABRICS,5691,Furniture repair and replacement,-143.94,0.00,-143.94
Adult and Health Services,Head of Adults,055302,Durham Pathways,Supplies and Services,304403,Equipment and Materials,04-Feb-2021,000009407788361,AMZNMKTPLACE AMAZON.CO,5999,Other consumables,31.89,5.32,26.57
Adult and Health Services,Head of Adults,055302,Durham Pathways,Supplies and Services,304403,Equipment and Materials,04-Feb-2021,000009407788369,AMZNMKTPLACE AMAZON.CO,5999,Other consumables,6.99,1.17,5.82
Children and Young Peoples Services,Head of Early Help Inclusion & Vulnerable Children.,085955,Auckland,Supplies and Services,304403,Equipment and Materials,04-Feb-2021,000009407788575,AMZNMKTPLACE AMAZON.CO,5999,Other consumables,12.99,2.17,10.82
Children and Young Peoples Services,Head of Childrens Social Care,085352,Tow Law CU,Supplies and Services,304403,Equipment and Materials,04-Feb-2021,000009407789253,AMZNMKTPLACE AMAZON.CO,5999,Other consumables,29.98,5.00,24.98
Children and Young Peoples Services,Head of Early Help Inclusion & Vulnerable Children.,088106,Ferryhill & N.Aycliffe 0-19 Targeted Family Support,Supplies and Services,304259,Equipment and Materials,05-Feb-2021,000009404198997,Amazon.co.uk MF4054L14,5969,Equipment-purchase and rental,17.37,0.00,17.37
Children and Young Peoples Services,Head of Childrens Social Care,085352,Tow Law CU,Supplies and Services,304403,Equipment and Materials,05-Feb-2021,000009404199159,AMZNMktplace,5999,Other consumables,197.98,33.00,164.98
Children and Young Peoples Services,Head of Childrens Social Care,085341,High Etherley Satelite Home,Supplies and Services,324117,Provisions E324,05-Feb-2021,000009407788247,TESCO STORES 6329,5411,Catering costs - provisions,45.82,0.00,45.82
Children and Young Peoples Services,Head of Education and Skills,071801,Selby Cottage Childcare Centre,Supplies and Services,324117,Provisions E324,05-Feb-2021,000009407788281,WILKO.COM,5399,Catering costs - provisions,240.00,0.00,240.00
"Regeneration, Economy and Growth",Development and Housing,031576,B& B - Temp Accom,Transport,235073,Public Transport,05-Feb-2021,000009407788299,BLUE LINE TAXIS,4121,Travel-clients/students/children,26.70,0.00,26.70
"Regeneration, Economy and Growth",Development and Housing,031576,B& B - Temp Accom,Supplies and Services,364320,Grants to Voluntary Organisations,05-Feb-2021,000009407788301,BUDGET H EXPRESS HOTEL,7011,Accommodation assistance,267.00,0.00,267.00
"Regeneration, Economy and Growth",Development and Housing,031576,B& B - Temp Accom,Supplies and Services,364320,Grants to Voluntary Organisations,05-Feb-2021,000009407788307,HI NEWCASTLE WASHI,7011,Accommodation assistance,240.00,0.00,240.00
"Regeneration, Economy and Growth",Development and Housing,031576,B& B - Temp Accom,Supplies and Services,364320,Grants to Voluntary Organisations,05-Feb-2021,000009407788329,TOAST LETTINGS,7011,Accommodation assistance,420.00,0.00,420.00
Adult and Health Services,Head of Adults,055302,Durham Pathways,Supplies and Services,304403,Equipment and Materials,05-Feb-2021,000009407788373,AMZNMKTPLACE AMAZON.CO,5999,Other consumables,5.99,1.00,4.99
Children and Young Peoples Services,Head of Childrens Social Care,085341,High Etherley Satelite Home,Supplies and Services,324117,Provisions E324,05-Feb-2021,000009407788389,SAINSBURYS 2199,5411,Catering costs - provisions,22.60,0.00,22.60
Children and Young Peoples Services,Head of Childrens Social Care,085341,High Etherley Satelite Home,Supplies and Services,324117,Provisions E324,05-Feb-2021,000009407788395,SAINSBURYS 2199,5411,Catering costs - provisions,10.00,0.00,10.00
Neighbourhoods and Climate Change,Environmental Services,010367,C&G - South Grounds Maintenance,Supplies and Services,304221,Equipment and Materials,05-Feb-2021,000009407788471,SCREWFIX DIRECT,5211,Direct materials,135.00,0.00,135.00
Children and Young Peoples Services,Head of Childrens Social Care,085332,Middlestone Moor CU,Supplies and Services,304403,Equipment and Materials,05-Feb-2021,000009407788509,AMZNMktplace,5999,Other consumables,10.98,1.83,9.15
Children and Young Peoples Services,Head of Early Help Inclusion & Vulnerable Children.,085956,Lumley,Supplies and Services,324117,Provisions E324,05-Feb-2021,000009407788581,TESCO STORES 6329,5411,Catering costs - provisions,56.79,0.00,56.79
Children and Young Peoples Services,Head of Early Help Inclusion & Vulnerable Children.,085965,Barnard,Supplies and Services,304259,Equipment and Materials,05-Feb-2021,000009407788583,JD SPORTS INTERNET,5941,Equipment-purchase and rental,115.00,0.00,115.00
Children and Young Peoples Services,Head of Early Help Inclusion & Vulnerable Children.,085962,Aycliffe Secure - Durham,Supplies and Services,304259,Equipment and Materials,05-Feb-2021,000009407788589,JD SPORTS INTERNET,5941,Equipment-purchase and rental,100.00,0.00,100.00
Children and Young Peoples Services,Head of Early Help Inclusion & Vulnerable Children.,085955,Auckland,Supplies and Services,328041,Clothing uniforms and laundry E328,05-Feb-2021,000009407788607,WWW.THEWORKS.CO.UK,5310,Clothing uniforms and laundry,29.99,0.00,29.99
"Regeneration, Economy and Growth",Culture Sport and Tourism,011207,Physical Activity 011207,Supplies and Services,304999,Equipment and Materials,05-Feb-2021,000009407788631,MailChimp,5818,Misc equipment tools and materials,142.62,0.00,142.62
Children and Young Peoples Services,Head of Childrens Social Care,085352,Tow Law CU,Supplies and Services,324117,Provisions E324,05-Feb-2021,000009407788667,ASDA GROCERIES ONLINE,5411,Catering costs - provisions,129.00,0.00,129.00
Children and Young Peoples Services,Head of Childrens Social Care,085352,Tow Law CU,Supplies and Services,324117,Provisions E324,05-Feb-2021,000009407788671,ASDA GROCERIES ONLINE,5411,Catering costs - provisions,-0.65,0.00,-0.65
Children and Young Peoples Services,Head of Education and Skills,071732,Dean Bank Childcare,Supplies and Services,304403,Equipment and Materials,05-Feb-2021,000009407788717,AMZNMKTPLACE AMAZON.CO,5999,Other consumables,7.99,1.33,6.66
Children and Young Peoples Services,Head of Education and Skills,071732,Dean Bank Childcare,Supplies and Services,304403,Equipment and Materials,05-Feb-2021,000009407788723,AMZNMKTPLACE AMAZON.CO,5999,Other consumables,4.05,0.68,3.37
Children and Young Peoples Services,Head of Childrens Social Care,085334,West Rainton Satelite Home,Supplies and Services,304221,Equipment and Materials,05-Feb-2021,000009407788771,SCREWFIX DIRECT,5211,Direct materials,8.49,0.00,8.49
Children and Young Peoples Services,Head of Childrens Social Care,085334,West Rainton Satelite Home,Supplies and Services,324117,Provisions E324,05-Feb-2021,000009407788775,ALDI 12 774,5411,Catering costs - provisions,17.09,0.00,17.09
Children and Young Peoples Services,Head of Childrens Social Care,085332,Middlestone Moor CU,Supplies and Services,324117,Provisions E324,05-Feb-2021,000009407788789,TESCO STORES 2916,5411,Catering costs - provisions,10.00,0.00,10.00
Children and Young Peoples Services,Head of Childrens Social Care,085332,Middlestone Moor CU,Supplies and Services,348037,Subsistence E348,05-Feb-2021,000009407788793,GREGGS PLC,5812,Subsistence,4.55,0.00,4.55
Children and Young Peoples Services,Head of Early Help Inclusion & Vulnerable Children.,088112,Seaham & Central Durham 0-19 Targeted Family Support,Employees,040149,Recruitment Instruction and Training,05-Feb-2021,000009407788907,NE-AS.ORG.UK,8398,Training-all costs,15.00,0.00,15.00
Neighbourhoods and Climate Change,Environmental Services,010367,C&G - South Grounds Maintenance,Supplies and Services,304221,Equipment and Materials,05-Feb-2021,000009407788913,CARRS BILLINGTON SPENN,5599,Direct materials,103.61,0.00,103.61
Resources BK0010,People & Talent Management,010984,Training and Development,Employees,040149,Recruitment Instruction and Training,05-Feb-2021,000009407788935,IQMS.CO.UK,8244,Training-all costs,894.00,0.00,894.00
Neighbourhoods and Climate Change,Environmental Services,011058,C&G - Wharton Park,Third Party Payments,430100,Rendered by Private Contractors,05-Feb-2021,000009407788943,THE FEED WAREHOUSE LTD,5995,Payments to sub-contractors,39.99,0.00,39.99
"Regeneration, Economy and Growth",Development and Housing,031576,B& B - Temp Accom,Supplies and Services,364320,Grants to Voluntary Organisations,05-Feb-2021,000009407788955,HI NEWCASTLE WASHI,7011,Accommodation assistance,450.00,0.00,450.00
"Regeneration, Economy and Growth",Development and Housing,031576,B& B - Temp Accom,Supplies and Services,364320,Grants to Voluntary Organisations,05-Feb-2021,000009407788959,HI NEWCASTLE WASHI,7011,Accommodation assistance,450.00,0.00,450.00
"Regeneration, Economy and Growth",Development and Housing,031576,B& B - Temp Accom,Supplies and Services,364320,Grants to Voluntary Organisations,05-Feb-2021,000009407788963,HI NEWCASTLE WASHI,7011,Accommodation assistance,465.00,0.00,465.00
Resources BK0010,Transformation,060131,County Records,Third Party Payments,430100,Rendered by Private Contractors,05-Feb-2021,000009407789031,EB DECOLONISING THE C,7399,Payments to sub-contractors,16.76,0.00,16.76
Children and Young Peoples Services,Head of Childrens Social Care,085551,Short Break Services-Park Hse Sher,Supplies and Services,324117,Provisions E324,05-Feb-2021,000009407789049,J FREEMAN & SONS LTD,5499,Catering costs - provisions,239.26,0.00,239.26
Children and Young Peoples Services,Head of Childrens Social Care,085551,Short Break Services-Park Hse Sher,Supplies and Services,324117,Provisions E324,05-Feb-2021,000009407789053,JR HOLLAND FOODSERVICE,5499,Catering costs - provisions,395.50,0.00,395.50
Children and Young Peoples Services,Head of Early Help Inclusion & Vulnerable Children.,071489,Winter Family Fund,Supplies and Services,364301,Grants to Voluntary Organisations,05-Feb-2021,000009407789075,WILKO.COM,5399,Hardship,46.00,0.00,46.00
Children and Young Peoples Services,Head of Early Help Inclusion & Vulnerable Children.,071489,Winter Family Fund,Supplies and Services,364301,Grants to Voluntary Organisations,05-Feb-2021,000009407789079,ASDA GEORGE COM LEEDS,5411,Hardship,212.00,0.00,212.00
Children and Young Peoples Services,Head of Early Help Inclusion & Vulnerable Children.,071489,Winter Family Fund,Supplies and Services,364301,Grants to Voluntary Organisations,05-Feb-2021,000009407789085,ASDA GEORGE COM LEEDS,5411,Hardship,309.91,0.00,309.91
Children and Young Peoples Services,Head of Early Help Inclusion & Vulnerable Children.,071489,Winter Family Fund,Supplies and Services,364301,Grants to Voluntary Organisations,05-Feb-2021,000009407789091,ASDA STORES,5411,Hardship,219.20,0.00,219.20
Children and Young Peoples Services,Head of Early Help Inclusion & Vulnerable Children.,071489,Winter Family Fund,Supplies and Services,364301,Grants to Voluntary Organisations,05-Feb-2021,000009407789097,ARGOS LTD,5310,Hardship,270.92,0.00,270.92
Children and Young Peoples Services,Head of Childrens Social Care,085342,16 Hickstead Rise (previously 9 Cedar Ave),Supplies and Services,308011,Furniture,05-Feb-2021,000009407789221,PBS EASTBOURNE LIM,5712,Furniture repair and replacement,299.00,0.00,299.00
Children and Young Peoples Services,Head of Childrens Social Care,085342,16 Hickstead Rise (previously 9 Cedar Ave),Supplies and Services,304403,Equipment and Materials,05-Feb-2021,000009407789223,AMZNMKTPLACE AMAZON.CO,5999,Other consumables,95.90,0.00,95.90
Children and Young Peoples Services,Head of Childrens Social Care,085342,16 Hickstead Rise (previously 9 Cedar Ave),Supplies and Services,348037,Subsistence E348,05-Feb-2021,000009407789227,KFC THINFORD DURHAM PR,5814,Subsistence,12.08,0.00,12.08
Children and Young Peoples Services,Head of Childrens Social Care,085342,16 Hickstead Rise (previously 9 Cedar Ave),Supplies and Services,324117,Provisions E324,05-Feb-2021,000009407789229,TESCO STORES 2916,5411,Catering costs - provisions,14.10,0.00,14.10
Children and Young Peoples Services,Head of Education and Skills,078554,Adult Skills-Main,Supplies and Services,352001,Conference Expenses,05-Feb-2021,000009407789239,HTTP://ACE.APPRENTICES,7392,Conferencesseminars fees etc,250.00,0.00,250.00
Children and Young Peoples Services,Head of Childrens Social Care,085352,Tow Law CU,Supplies and Services,304403,Equipment and Materials,05-Feb-2021,000009407789243,AMZNMktplace,5999,Other consumables,314.99,52.50,262.49
Children and Young Peoples Services,Head of Childrens Social Care,085352,Tow Law CU,Supplies and Services,324117,Provisions E324,05-Feb-2021,000009407789257,ASDA GROCERIES ONLINE,5411,Catering costs - provisions,91.74,0.00,91.74
Children and Young Peoples Services,Head of Childrens Social Care,085352,Tow Law CU,Supplies and Services,324117,Provisions E324,05-Feb-2021,000009407789265,ASDA GROCERIES ONLINE,5411,Catering costs - provisions,-2.69,0.00,-2.69
Children and Young Peoples Services,Head of Early Help Inclusion & Vulnerable Children.,071489,Winter Family Fund,Supplies and Services,364301,Grants to Voluntary Organisations,05-Feb-2021,000009407789283,ASDA GEORGE COM LEEDS,5411,Hardship,327.94,0.00,327.94
Children and Young Peoples Services,Head of Early Help Inclusion & Vulnerable Children.,071489,Winter Family Fund,Supplies and Services,364301,Grants to Voluntary Organisations,05-Feb-2021,000009407789287,ASDA GEORGE COM LEEDS,5411,Hardship,41.45,0.00,41.45
"Regeneration, Economy and Growth",Development and Housing,031576,B& B - Temp Accom,Supplies and Services,364320,Grants to Voluntary Organisations,05-Feb-2021,000009407789311,THE HONEST LAWYER,7011,Accommodation assistance,319.80,0.00,319.80
"Regeneration, Economy and Growth",Development and Housing,031576,B& B - Temp Accom,Transport,235073,Public Transport,05-Feb-2021,000009407789317,BLUELINE TAXIS,4121,Travel-clients/students/children,32.10,0.00,32.10
Adult and Health Services,Head of Adults,055643,Hawthorn House LD Respite Unit,Supplies and Services,324117,Provisions E324,05-Feb-2021,000009407789323,FREEMAN CATERING BUTCH,5422,Catering costs - provisions,23.13,0.00,23.13
Adult and Health Services,Head of Adults,055643,Hawthorn House LD Respite Unit,Supplies and Services,324117,Provisions E324,05-Feb-2021,000009407789327,JR HOLLAND FOODSERVICE,5499,Catering costs - provisions,16.44,0.00,16.44
Children and Young Peoples Services,Head of Education and Skills,070102,Engagement with Young People,Supplies and Services,304259,Equipment and Materials,05-Feb-2021,000009407789333,AMZNMktplace,5999,Equipment-purchase and rental,69.90,11.70,58.20
Children and Young Peoples Services,Head of Education and Skills,070102,Engagement with Young People,Supplies and Services,304259,Equipment and Materials,05-Feb-2021,000009407789339,AMZNMktplace,5999,Equipment-purchase and rental,99.90,16.65,83.25
Children and Young Peoples Services,Head of Education and Skills,070102,Engagement with Young People,Supplies and Services,304259,Equipment and Materials,05-Feb-2021,000009407789339 - 1,AMZNMktplace,5999,Equipment-purchase and rental,0.05,,0.05
Children and Young Peoples Services,Head of Early Help Inclusion & Vulnerable Children.,088102,Consett & Stanley 0-19 Targeted Family Support,Supplies and Services,364301,Grants to Voluntary Organisations,05-Feb-2021,000009407789369,ASDA GEORGE COM LEEDS,5411,Hardship,335.00,0.00,335.00
Children and Young Peoples Services,Head of Early Help Inclusion & Vulnerable Children.,088103,Consett & Stanley 0-19 Community Family Hub,Supplies and Services,364301,Grants to Voluntary Organisations,05-Feb-2021,000009407789373,WWW.JOHNLEWIS.COM,5311,Hardship,-110.00,0.00,-110.00
Children and Young Peoples Services,Head of Early Help Inclusion & Vulnerable Children.,085954,Walworth,Transfer Payments,515140,Social Services Clients,05-Feb-2021,000009407789401,JD SPORTS INTERNET,5941,Clothing allowances,145.00,0.00,145.00
Children and Young Peoples Services,Head of Early Help Inclusion & Vulnerable Children.,088111,Easington & Peterlee 0-19 Community Family Hub,Supplies and Services,312009,Newspapers books and periodicals E312,05-Feb-2021,000009407789463,WWW.THEWORKS.CO.UK,5310,Newspapers books and periodicals,44.00,0.00,44.00
Children and Young Peoples Services,Head of Childrens Social Care,085333,Coxhoe Satelite Home,Supplies and Services,342222,Computers and Communications,05-Feb-2021,000009407789509,PAYPAL PYPLGIFTSUK,4816,Comp hardware purch-network servers,30.00,0.00,30.00
"Regeneration, Economy and Growth",Transport and Contracted Services,031704,Care Connect - CCTV Countywide,Supplies and Services,384956,Miscellaneous Expenses,05-Feb-2021,000009407789513,SECURITY INDUSTRY,7393,Licences,190.00,0.00,190.00
"Regeneration, Economy and Growth",Development and Housing,031576,B& B - Temp Accom,Supplies and Services,364320,Grants to Voluntary Organisations,05-Feb-2021,000009407789553,HI NEWCASTLE WASHI,7011,Accommodation assistance,260.00,0.00,260.00
Children and Young Peoples Services,Head of Childrens Social Care,085351,Framwellgate Moor CU,Supplies and Services,348037,Subsistence E348,05-Feb-2021,000009407789575,RED FISH BAR,5814,Subsistence,5.90,0.00,5.90
Children and Young Peoples Services,Head of Childrens Social Care,085351,Framwellgate Moor CU,Supplies and Services,344033,Telephones,05-Feb-2021,000009407789579,VESTA VODAFONE,4814,Telephones general-all costs,20.00,0.00,20.00
Children and Young Peoples Services,Head of Childrens Social Care,085351,Framwellgate Moor CU,Supplies and Services,348037,Subsistence E348,05-Feb-2021,000009407789585,THE FARMERS ARMS,5812,Subsistence,48.00,0.00,48.00
Children and Young Peoples Services,Head of Childrens Social Care,085351,Framwellgate Moor CU,Supplies and Services,348037,Subsistence E348,05-Feb-2021,000009407789587,MCDONALDS,5812,Subsistence,9.34,0.00,9.34
Children and Young Peoples Services,Head of Childrens Social Care,085342,16 Hickstead Rise (previously 9 Cedar Ave),Supplies and Services,324117,Provisions E324,05-Feb-2021,000009407789611,COOPLANDS BAKERY,5462,Catering costs - provisions,10.45,0.00,10.45
Children and Young Peoples Services,Head of Childrens Social Care,085342,16 Hickstead Rise (previously 9 Cedar Ave),Supplies and Services,324117,Provisions E324,05-Feb-2021,000009407789617,TESCO STORES 2916,5411,Catering costs - provisions,115.95,0.00,115.95
Children and Young Peoples Services,Head of Education and Skills,071802,Louisa Cent Nursery,Supplies and Services,324117,Provisions E324,05-Feb-2021,000009407789621,ASDA GROCERIES ONLINE,5411,Catering costs - provisions,146.90,0.00,146.90
Children and Young Peoples Services,Head of Education and Skills,071802,Louisa Cent Nursery,Supplies and Services,324117,Provisions E324,05-Feb-2021,000009407789623,ALDI 11 774,5411,Catering costs - provisions,3.37,0.00,3.37
Children and Young Peoples Services,Head of Education and Skills,071802,Louisa Cent Nursery,Supplies and Services,324117,Provisions E324,05-Feb-2021,000009407789629,ASDA GROCERIES ONLINE,5411,Catering costs - provisions,-1.56,0.00,-1.56
"Regeneration, Economy and Growth",Development and Housing,030772,CLLD South,Employees,040149,Recruitment Instruction and Training,05-Feb-2021,000009407789657,clearcheck.co.uk,8999,Training-all costs,8.00,0.00,8.00
Adult and Health Services,Commissioning inc Supporting People,052100,Supporting the Provider Market,Supplies and Services,312009,Newspapers books and periodicals E312,05-Feb-2021,000009407789731,Amazon.co.uk MF6VB4ZW4,5969,Newspapers books and periodicals,16.60,0.00,16.60
Adult and Health Services,Head of Adults,055643,Hawthorn House LD Respite Unit,Supplies and Services,324117,Provisions E324,05-Feb-2021,000009417000125,BATLEYS PERTH,5300,Catering costs - provisions,40.38,6.73,33.65
Adult and Health Services,Head of Adults,055643,Hawthorn House LD Respite Unit,Supplies and Services,324117,Provisions E324,05-Feb-2021,000009417000125 - 1,BATLEYS PERTH,5300,Catering costs - provisions,82.74,,82.74
"Regeneration, Economy and Growth",Business Durham CL0850,030689,Inward Investment and Aftercare,Supplies and Services,342033,Computers and Communications,06-Feb-2021,000009407788253,STK Shutterstock,7333,Computer hardware,19.00,0.00,19.00
"Regeneration, Economy and Growth",Business Durham CL0850,030689,Inward Investment and Aftercare,Supplies and Services,342222,Computers and Communications,06-Feb-2021,000009407788263,FASTHOSTS INTERNET,4816,Comp hardware purch-network servers,254.89,0.00,254.89
"Regeneration, Economy and Growth",Business Durham CL0850,030689,Inward Investment and Aftercare,Supplies and Services,342222,Computers and Communications,06-Feb-2021,000009407788269,FASTHOSTS INTERNET,4816,Comp hardware purch-network servers,44.38,0.00,44.38
Children and Young Peoples Services,Head of Childrens Social Care,085341,High Etherley Satelite Home,Supplies and Services,348037,Subsistence E348,06-Feb-2021,000009407788397,MCDONALDS,5814,Subsistence,7.76,0.00,7.76
Children and Young Peoples Services,Head of Childrens Social Care,085341,High Etherley Satelite Home,Supplies and Services,324117,Provisions E324,06-Feb-2021,000009407788403,ASDA SUPERSTORE,5411,Catering costs - provisions,7.12,0.00,7.12
Children and Young Peoples Services,Head of Childrens Social Care,085352,Tow Law CU,Supplies and Services,324117,Provisions E324,06-Feb-2021,000009407788489,ASDA SUPERSTORE,5411,Catering costs - provisions,41.54,0.00,41.54
Children and Young Peoples Services,Head of Early Help Inclusion & Vulnerable Children.,071489,Winter Family Fund,Supplies and Services,384700,Miscellaneous Expenses,06-Feb-2021,000009407788503,Amazon.co.uk MF3M37J14,5969,Miscellaneous grants,29.00,4.83,24.17
Children and Young Peoples Services,Head of Early Help Inclusion & Vulnerable Children.,085956,Lumley,Supplies and Services,324117,Provisions E324,06-Feb-2021,000009407788593,TESCO STORES 6329,5411,Catering costs - provisions,116.65,0.00,116.65
Children and Young Peoples Services,Head of Childrens Social Care,085551,Short Break Services-Park Hse Sher,Supplies and Services,324117,Provisions E324,06-Feb-2021,000009407788661,ALDI 12 774,5411,Catering costs - provisions,23.72,0.00,23.72
Children and Young Peoples Services,Head of Childrens Social Care,085342,16 Hickstead Rise (previously 9 Cedar Ave),Supplies and Services,348037,Subsistence E348,06-Feb-2021,000009407788693,ShakeNCake,5812,Subsistence,18.85,0.00,18.85
Children and Young Peoples Services,Head of Childrens Social Care,085342,16 Hickstead Rise (previously 9 Cedar Ave),Supplies and Services,304999,Equipment and Materials,06-Feb-2021,000009407788707,SAVERS HEALTH & BEAUTY,5912,Misc equipment tools and materials,15.91,0.00,15.91
Children and Young Peoples Services,Head of Education and Skills,071732,Dean Bank Childcare,Supplies and Services,324117,Provisions E324,06-Feb-2021,000009407788729,ASDA STORES LTD,5411,Catering costs - provisions,34.31,0.00,34.31
Children and Young Peoples Services,Head of Childrens Social Care,085334,West Rainton Satelite Home,Supplies and Services,324117,Provisions E324,06-Feb-2021,000009407788779,SPAR,5411,Catering costs - provisions,11.58,0.00,11.58
Children and Young Peoples Services,Head of Childrens Social Care,085334,West Rainton Satelite Home,Transport,215995,Running Costs of Vehicles,06-Feb-2021,000009407788787,WEST RAINTON SERVICE S,5541,Vehicle running expenses,49.00,0.00,49.00
Children and Young Peoples Services,Head of Childrens Social Care,085334,West Rainton Satelite Home,Supplies and Services,384999,Miscellaneous Expenses,06-Feb-2021,000009407788863,Amazon.co.uk MF9AN53L4,5969,Other expenses,16.98,0.00,16.98
Children and Young Peoples Services,Head of Early Help Inclusion & Vulnerable Children.,071489,Winter Family Fund,Supplies and Services,304259,Equipment and Materials,06-Feb-2021,000009407789101,Amazon.co.uk MF4623JW4,5969,Equipment-purchase and rental,81.00,0.00,81.00
Children and Young Peoples Services,Head of Childrens Social Care,085334,West Rainton Satelite Home,Supplies and Services,324117,Provisions E324,06-Feb-2021,000009407789349,B&M 681 - DURHAM,5399,Catering costs - provisions,17.08,0.00,17.08
Children and Young Peoples Services,Head of Early Help Inclusion & Vulnerable Children.,085957,Secure Management,Supplies and Services,304403,Equipment and Materials,06-Feb-2021,000009407789405,AMZNMktplace,5999,Other consumables,7.35,1.23,6.12
Children and Young Peoples Services,Head of Early Help Inclusion & Vulnerable Children.,085957,Secure Management,Supplies and Services,304403,Equipment and Materials,06-Feb-2021,000009407789413,AMZNMktplace,5999,Other consumables,7.35,1.23,6.12
Children and Young Peoples Services,Head of Early Help Inclusion & Vulnerable Children.,085957,Secure Management,Supplies and Services,304403,Equipment and Materials,06-Feb-2021,000009407789417,AMZNMktplace,5999,Other consumables,7.35,1.23,6.12
Children and Young Peoples Services,Head of Early Help Inclusion & Vulnerable Children.,085957,Secure Management,Supplies and Services,304403,Equipment and Materials,06-Feb-2021,000009407789429,AMZNMktplace,5999,Other consumables,23.99,4.00,19.99
Children and Young Peoples Services,Head of Childrens Social Care,085332,Middlestone Moor CU,Supplies and Services,324117,Provisions E324,06-Feb-2021,000009407789543,ASDA SUPERSTORE 4987,5411,Catering costs - provisions,17.98,0.00,17.98
Children and Young Peoples Services,Head of Childrens Social Care,085351,Framwellgate Moor CU,Supplies and Services,324117,Provisions E324,06-Feb-2021,000009407789591,SAINSBURYS SACAT 0776,5411,Catering costs - provisions,26.55,0.00,26.55
Children and Young Peoples Services,Head of Childrens Social Care,085333,Coxhoe Satelite Home,Supplies and Services,328041,Clothing uniforms and laundry E328,06-Feb-2021,000009407789711,JustFab UK Limited,5631,Clothing uniforms and laundry,35.00,0.00,35.00
Adult and Health Services,Commissioning inc Supporting People,052100,Supporting the Provider Market,Supplies and Services,312009,Newspapers books and periodicals E312,06-Feb-2021,000009407789737,Amazon.co.uk MF0MZ5354,5969,Newspapers books and periodicals,16.60,0.00,16.60
Adult and Health Services,Commissioning inc Supporting People,052100,Supporting the Provider Market,Supplies and Services,312009,Newspapers books and periodicals E312,06-Feb-2021,000009407789741,Amazon.co.uk MF0T803I4,5969,Newspapers books and periodicals,16.60,0.00,16.60
Adult and Health Services,Commissioning inc Supporting People,052100,Supporting the Provider Market,Supplies and Services,312009,Newspapers books and periodicals E312,06-Feb-2021,000009407789753,Amazon.co.uk MF2GZ2374,5969,Newspapers books and periodicals,16.60,0.00,16.60
Adult and Health Services,Commissioning inc Supporting People,052100,Supporting the Provider Market,Supplies and Services,312009,Newspapers books and periodicals E312,06-Feb-2021,000009407789781,Amazon.co.uk MF4WG4J44,5969,Newspapers books and periodicals,16.60,0.00,16.60
Adult and Health Services,Commissioning inc Supporting People,052100,Supporting the Provider Market,Supplies and Services,312009,Newspapers books and periodicals E312,06-Feb-2021,000009407789795,Amazon.co.uk MF5WZ6JM4,5969,Newspapers books and periodicals,16.60,0.00,16.60
"Regeneration, Economy and Growth",Development and Housing,031623,Rough,Supplies and Services,352001,Conference Expenses,06-Feb-2021,000009411964483,AYCLIFFE BIZ,7011,Conferencesseminars fees etc,114.00,0.00,114.00
"Regeneration, Economy and Growth",Development and Housing,031623,Rough,Supplies and Services,352001,Conference Expenses,06-Feb-2021,000009411964489,AYCLIFFE BIZ,7011,Conferencesseminars fees etc,114.00,0.00,114.00
"Regeneration, Economy and Growth",Business Durham CL0850,030689,Inward Investment and Aftercare,Supplies and Services,336005,Advertising E336,07-Feb-2021,000009407788259,LINKEDIN-630 9923314,7311,Advertising other than for staff,50.48,0.00,50.48
Children and Young Peoples Services,Head of Education and Skills,054640,Durham Learning Resources 054640,Supplies and Services,384999,Miscellaneous Expenses,07-Feb-2021,000009407788293,Amazon.co.uk MF2H35J74,5969,Other expenses,235.60,0.00,235.60
Resources BK0010,Digital and Customer Services,065432,Web Development Group,Supplies and Services,342053,Computers and Communications,07-Feb-2021,000009407788315,WPMU DEV INCSUBFEE.COM,7372,Computer software,13.92,0.00,13.92
Children and Young Peoples Services,Head of Childrens Social Care,085341,High Etherley Satelite Home,Supplies and Services,348037,Subsistence E348,07-Feb-2021,000009407788405,SumUp Spudfellas,5814,Subsistence,28.35,0.00,28.35
Children and Young Peoples Services,Head of Early Help Inclusion & Vulnerable Children.,085954,Walworth,Supplies and Services,324117,Provisions E324,07-Feb-2021,000009407788597,TESCO STORES 6329,5411,Catering costs - provisions,90.60,0.00,90.60
Children and Young Peoples Services,Head of Childrens Social Care,085342,16 Hickstead Rise (previously 9 Cedar Ave),Supplies and Services,328041,Clothing uniforms and laundry E328,07-Feb-2021,000009407788697,SP ULTAMODAN,5691,Clothing uniforms and laundry,81.45,0.00,81.45
Children and Young Peoples Services,Head of Childrens Social Care,085342,16 Hickstead Rise (previously 9 Cedar Ave),Supplies and Services,328041,Clothing uniforms and laundry E328,07-Feb-2021,000009407788701,PRETTYLITTLETHING.COM,5691,Clothing uniforms and laundry,34.24,0.00,34.24
Children and Young Peoples Services,Head of Childrens Social Care,085342,16 Hickstead Rise (previously 9 Cedar Ave),Supplies and Services,328041,Clothing uniforms and laundry E328,07-Feb-2021,000009407788705,ADIDASWWW.ADIDAS.CO.UK,5655,Clothing uniforms and laundry,44.98,0.00,44.98
Children and Young Peoples Services,Head of Education and Skills,071732,Dean Bank Childcare,Supplies and Services,304403,Equipment and Materials,07-Feb-2021,000009407788737,AMZNMKTPLACE AMAZON.CO,5999,Other consumables,17.98,3.00,14.98
Children and Young Peoples Services,Head of Childrens Social Care,085334,West Rainton Satelite Home,Supplies and Services,304403,Equipment and Materials,07-Feb-2021,000009407788783,AMZNMktplace,5999,Other consumables,62.97,0.00,62.97
Resources BK0010,Business Support,065503,Business Support - Spectrum,Supplies and Services,304259,Equipment and Materials,07-Feb-2021,000009407789107,AMZNMKTPLACE AMAZON.CO,5999,Equipment-purchase and rental,267.30,44.55,222.75
Children and Young Peoples Services,Head of Early Help Inclusion & Vulnerable Children.,071489,Winter Family Fund,Supplies and Services,338045,Services,07-Feb-2021,000009407789107 - 1,AMZNMKTPLACE AMAZON.CO,5999,Legal expenses 338045,0.09,,0.09
Children and Young Peoples Services,Head of Early Help Inclusion & Vulnerable Children.,071489,Winter Family Fund,Supplies and Services,364301,Grants to Voluntary Organisations,07-Feb-2021,000009407789109,ASDA GEORGE COM LEEDS,5411,Hardship,-19.50,0.00,-19.50
Adult and Health Services,Head of Adults,055643,Hawthorn House LD Respite Unit,Supplies and Services,324117,Provisions E324,07-Feb-2021,000009407789201,SAINSBURYS SACAT 0776,5411,Catering costs - provisions,13.55,0.00,13.55
Children and Young Peoples Services,Head of Early Help Inclusion & Vulnerable Children.,071489,Winter Family Fund,Supplies and Services,364301,Grants to Voluntary Organisations,07-Feb-2021,000009407789293,WILKO.COM,5399,Hardship,51.50,0.00,51.50
Children and Young Peoples Services,Head of Early Help Inclusion & Vulnerable Children.,071489,Winter Family Fund,Supplies and Services,364301,Grants to Voluntary Organisations,07-Feb-2021,000009407789297,WILKO.COM,5399,Hardship,31.50,0.00,31.50
Children and Young Peoples Services,Head of Early Help Inclusion & Vulnerable Children.,071489,Winter Family Fund,Supplies and Services,364301,Grants to Voluntary Organisations,07-Feb-2021,000009407789303,WILKO.COM,5399,Hardship,40.75,0.00,40.75
Children and Young Peoples Services,Head of Early Help Inclusion & Vulnerable Children.,071489,Winter Family Fund,Supplies and Services,364301,Grants to Voluntary Organisations,07-Feb-2021,000009407789305,ASDA GEORGE COM LEEDS,5411,Hardship,199.00,0.00,199.00
Children and Young Peoples Services,Head of Early Help Inclusion & Vulnerable Children.,085955,Auckland,Supplies and Services,312009,Newspapers books and periodicals E312,07-Feb-2021,000009407789423,Amazon.co.uk MF11V4J14,5969,Newspapers books and periodicals,21.30,0.00,21.30
Children and Young Peoples Services,Head of Early Help Inclusion & Vulnerable Children.,085957,Secure Management,Supplies and Services,304403,Equipment and Materials,07-Feb-2021,000009407789435,AMZNMktplace,5999,Other consumables,143.52,23.92,119.60
Children and Young Peoples Services,Head of Early Help Inclusion & Vulnerable Children.,085957,Secure Management,Supplies and Services,304403,Equipment and Materials,07-Feb-2021,000009407789435 - 1,AMZNMktplace,5999,Other consumables,0.16,,0.16
Children and Young Peoples Services,Head of Early Help Inclusion & Vulnerable Children.,085957,Secure Management,Supplies and Services,304403,Equipment and Materials,07-Feb-2021,000009407789437,AMZNMktplace,5999,Other consumables,53.96,9.00,44.96
Children and Young Peoples Services,Head of Early Help Inclusion & Vulnerable Children.,085956,Lumley,Supplies and Services,384999,Miscellaneous Expenses,07-Feb-2021,000009407789443,AMZNMKTPLACE AMAZON.CO,5999,Other expenses,16.99,2.83,14.16
Children and Young Peoples Services,Head of Early Help Inclusion & Vulnerable Children.,088111,Easington & Peterlee 0-19 Community Family Hub,Supplies and Services,364301,Grants to Voluntary Organisations,07-Feb-2021,000009407789459,AMZNMktplace,5999,Hardship,21.98,3.66,18.32
Children and Young Peoples Services,Head of Childrens Social Care,085332,Middlestone Moor CU,Supplies and Services,324117,Provisions E324,07-Feb-2021,000009407789549,ASDA STORES,5411,Catering costs - provisions,20.62,0.00,20.62
Children and Young Peoples Services,Head of Childrens Social Care,085351,Framwellgate Moor CU,Supplies and Services,304999,Equipment and Materials,07-Feb-2021,000009407789595,cvfees.com,5817,Misc equipment tools and materials,1.95,0.00,1.95
Children and Young Peoples Services,Head of Childrens Social Care,085351,Framwellgate Moor CU,Supplies and Services,304999,Equipment and Materials,07-Feb-2021,000009407789599,cvfees.com,5817,Misc equipment tools and materials,1.00,0.00,1.00
Children and Young Peoples Services,Head of Childrens Social Care,085351,Framwellgate Moor CU,Supplies and Services,304999,Equipment and Materials,07-Feb-2021,000009407789605,SUPERDRUG STORES PLC,5912,Misc equipment tools and materials,3.29,0.00,3.29
Children and Young Peoples Services,Head of Childrens Social Care,085351,Framwellgate Moor CU,Supplies and Services,304999,Equipment and Materials,07-Feb-2021,000009407789609,SUPERDRUG STORES PLC,5912,Misc equipment tools and materials,31.94,0.00,31.94
Adult and Health Services,Commissioning inc Supporting People,052100,Supporting the Provider Market,Supplies and Services,312009,Newspapers books and periodicals E312,07-Feb-2021,000009407789745,Amazon.co.uk MF0VS1J24,5969,Newspapers books and periodicals,16.60,0.00,16.60
Adult and Health Services,Commissioning inc Supporting People,052100,Supporting the Provider Market,Supplies and Services,312009,Newspapers books and periodicals E312,07-Feb-2021,000009407789751,Amazon.co.uk MF13X2JI4,5969,Newspapers books and periodicals,16.60,0.00,16.60
Adult and Health Services,Commissioning inc Supporting People,052100,Supporting the Provider Market,Supplies and Services,312009,Newspapers books and periodicals E312,07-Feb-2021,000009407789761,Amazon.co.uk MF2VB1JU4,5969,Newspapers books and periodicals,16.60,0.00,16.60
Adult and Health Services,Commissioning inc Supporting People,052100,Supporting the Provider Market,Supplies and Services,312009,Newspapers books and periodicals E312,07-Feb-2021,000009407789765,Amazon.co.uk MF2V27J34,5969,Newspapers books and periodicals,16.60,0.00,16.60
Adult and Health Services,Commissioning inc Supporting People,052100,Supporting the Provider Market,Supplies and Services,312009,Newspapers books and periodicals E312,07-Feb-2021,000009407789771,Amazon.co.uk MF2170J24,5969,Newspapers books and periodicals,16.60,0.00,16.60
Adult and Health Services,Commissioning inc Supporting People,052100,Supporting the Provider Market,Supplies and Services,312009,Newspapers books and periodicals E312,07-Feb-2021,000009407789775,Amazon.co.uk MF33N8JB4,5969,Newspapers books and periodicals,16.60,0.00,16.60
Adult and Health Services,Commissioning inc Supporting People,052100,Supporting the Provider Market,Supplies and Services,312009,Newspapers books and periodicals E312,07-Feb-2021,000009407789779,Amazon.co.uk MF34R4JK4,5969,Newspapers books and periodicals,16.60,0.00,16.60
Adult and Health Services,Commissioning inc Supporting People,052100,Supporting the Provider Market,Supplies and Services,312009,Newspapers books and periodicals E312,07-Feb-2021,000009407789787,Amazon.co.uk MF5HS9JZ4,5969,Newspapers books and periodicals,16.60,0.00,16.60
Adult and Health Services,Commissioning inc Supporting People,052100,Supporting the Provider Market,Supplies and Services,312009,Newspapers books and periodicals E312,07-Feb-2021,000009407789791,Amazon.co.uk MF5NL3JA4,5969,Newspapers books and periodicals,16.60,0.00,16.60
Adult and Health Services,Commissioning inc Supporting People,052100,Supporting the Provider Market,Supplies and Services,312009,Newspapers books and periodicals E312,07-Feb-2021,000009407789799,Amazon.co.uk MF53M6JW4,5969,Newspapers books and periodicals,16.60,0.00,16.60
Adult and Health Services,Commissioning inc Supporting People,052100,Supporting the Provider Market,Supplies and Services,312009,Newspapers books and periodicals E312,07-Feb-2021,000009407789801,Amazon.co.uk MF63K9JN4,5969,Newspapers books and periodicals,16.60,0.00,16.60
Adult and Health Services,Commissioning inc Supporting People,052100,Supporting the Provider Market,Supplies and Services,312009,Newspapers books and periodicals E312,07-Feb-2021,000009407789805,Amazon.co.uk MF7NF6JS4,5969,Newspapers books and periodicals,16.60,0.00,16.60
Adult and Health Services,Commissioning inc Supporting People,052100,Supporting the Provider Market,Supplies and Services,312009,Newspapers books and periodicals E312,07-Feb-2021,000009407789809,Amazon.co.uk MF71L8JV4,5969,Newspapers books and periodicals,16.60,0.00,16.60
Adult and Health Services,Commissioning inc Supporting People,052100,Supporting the Provider Market,Supplies and Services,312009,Newspapers books and periodicals E312,07-Feb-2021,000009407789813,Amazon.co.uk MF73Y2JS4,5969,Newspapers books and periodicals,16.60,0.00,16.60
Adult and Health Services,Commissioning inc Supporting People,052100,Supporting the Provider Market,Supplies and Services,312009,Newspapers books and periodicals E312,07-Feb-2021,000009407789821,Amazon.co.uk MF8101JO4,5969,Newspapers books and periodicals,16.60,0.00,16.60
Adult and Health Services,Commissioning inc Supporting People,052100,Supporting the Provider Market,Supplies and Services,312009,Newspapers books and periodicals E312,07-Feb-2021,000009407789829,Amazon.co.uk MF8132J44,5969,Newspapers books and periodicals,16.60,0.00,16.60
Adult and Health Services,Commissioning inc Supporting People,052100,Supporting the Provider Market,Supplies and Services,312009,Newspapers books and periodicals E312,07-Feb-2021,000009407789833,Amazon.co.uk MF9NK0J34,5969,Newspapers books and periodicals,16.60,0.00,16.60
Adult and Health Services,Commissioning inc Supporting People,052100,Supporting the Provider Market,Supplies and Services,312009,Newspapers books and periodicals E312,07-Feb-2021,000009407789839,Amazon.co.uk MF9NR5JX4,5969,Newspapers books and periodicals,16.60,0.00,16.60
Adult and Health Services,Commissioning inc Supporting People,052100,Supporting the Provider Market,Supplies and Services,312009,Newspapers books and periodicals E312,07-Feb-2021,000009407789841,Amazon.co.uk MF9VB0JE4,5969,Newspapers books and periodicals,16.60,0.00,16.60
Adult and Health Services,Commissioning inc Supporting People,052100,Supporting the Provider Market,Supplies and Services,312009,Newspapers books and periodicals E312,07-Feb-2021,000009407789845,Amazon.co.uk MF0YX8TD4,5969,Newspapers books and periodicals,16.60,0.00,16.60
Resources BK0010,Legal & Democratic Services,067953,Coroner County Durham & Darlington,Supplies and Services,332047,Printing Stationery and Gen Off Exps,07-Feb-2021,000009407789877,AMZNMktplace,5999,Stationery,41.00,6.85,34.15
Children and Young Peoples Services,Head of Education and Skills,071732,Dean Bank Childcare,Supplies and Services,304403,Equipment and Materials,07-Feb-2021,000009411964269,AMZNMKTPLACE AMAZON.CO,5999,Other consumables,13.99,2.33,11.66
Resources BK0010,Digital and Customer Services,065432,Web Development Group,Supplies and Services,342053,Computers and Communications,08-Feb-2021,000009407788317,WPMU DEV INCSUBFEE.COM,7372,Computer software,0.38,0.00,0.38
Children and Young Peoples Services,Head of Childrens Social Care,085352,Tow Law CU,Supplies and Services,384999,Miscellaneous Expenses,08-Feb-2021,000009407788673,Amazon.co.uk MF1SI9TU4,5969,Other expenses,18.99,3.17,15.82
Children and Young Peoples Services,Head of Childrens Social Care,085341,High Etherley Satelite Home,Supplies and Services,324117,Provisions E324,08-Feb-2021,000009411963375,SPAR - GEM WEST AUCKLA,5411,Catering costs - provisions,3.65,0.00,3.65
Children and Young Peoples Services,Head of Childrens Social Care,085341,High Etherley Satelite Home,Supplies and Services,324117,Provisions E324,08-Feb-2021,000009411963391,TESCO STORES 6329,5411,Catering costs - provisions,95.37,0.00,95.37
Children and Young Peoples Services,Head of Education and Skills,071801,Selby Cottage Childcare Centre,Supplies and Services,304999,Equipment and Materials,08-Feb-2021,000009411963473,Amazon Prime MF53O9AU4,5968,Misc equipment tools and materials,7.99,0.00,7.99
"Regeneration, Economy and Growth",Development and Housing,031576,B& B - Temp Accom,Supplies and Services,364320,Grants to Voluntary Organisations,08-Feb-2021,000009411963529,THE HONEST LAWYER,7011,Accommodation assistance,284.85,0.00,284.85
"Regeneration, Economy and Growth",Development and Housing,031576,B& B - Temp Accom,Supplies and Services,364320,Grants to Voluntary Organisations,08-Feb-2021,000009411963537,THE HONEST LAWYER,7011,Accommodation assistance,319.80,0.00,319.80
Children and Young Peoples Services,Head of Childrens Social Care,085501,Child Care Cases Legal Expenses,Supplies and Services,304403,Equipment and Materials,08-Feb-2021,000009411963567,SUNDERLAND CC,7523,Other consumables,-11.00,0.00,-11.00
Children and Young Peoples Services,Head of Childrens Social Care,085380,Operations Manager LAC Resources,Supplies and Services,384999,Miscellaneous Expenses,08-Feb-2021,000009411964005,Amazon.co.uk MF2TC5A94,5969,Other expenses,12.99,0.00,12.99
Children and Young Peoples Services,Head of Childrens Social Care,085332,Middlestone Moor CU,Supplies and Services,304259,Equipment and Materials,08-Feb-2021,000009411964017,ARGOS LTD,5310,Equipment-purchase and rental,89.99,0.00,89.99
"Regeneration, Economy and Growth",Development and Housing,031576,B& B - Temp Accom,Supplies and Services,364320,Grants to Voluntary Organisations,08-Feb-2021,000009411964111,BUDGET H EXPRESS HOTEL,7011,Accommodation assistance,76.26,12.71,63.55
"Regeneration, Economy and Growth",Development and Housing,031576,B& B - Temp Accom,Supplies and Services,364320,Grants to Voluntary Organisations,08-Feb-2021,000009411964111 - 1,BUDGET H EXPRESS HOTEL,7011,Accommodation assistance,190.74,,190.74
Children and Young Peoples Services,Head of Early Help Inclusion & Vulnerable Children.,085955,Auckland,Supplies and Services,304403,Equipment and Materials,08-Feb-2021,000009411964139,AMZNMktplace,5999,Other consumables,76.00,12.68,63.32
Children and Young Peoples Services,Head of Early Help Inclusion & Vulnerable Children.,085952,Secure Education,Supplies and Services,324117,Provisions E324,08-Feb-2021,000009411964145,TESCO STORES 6329,5411,Catering costs - provisions,129.02,0.00,129.02
Children and Young Peoples Services,Head of Early Help Inclusion & Vulnerable Children.,085955,Auckland,Supplies and Services,304403,Equipment and Materials,08-Feb-2021,000009411964155,AMZNMktplace,5999,Other consumables,111.46,18.58,92.88
"Regeneration, Economy and Growth",Culture Sport and Tourism,054775,Durham Town Hall 054775,Supplies and Services,304403,Equipment and Materials,08-Feb-2021,000009411964185,AMZN Installments pmt,5999,Other consumables,29.80,0.00,29.80
Children and Young Peoples Services,Head of Education and Skills,071732,Dean Bank Childcare,Supplies and Services,324117,Provisions E324,08-Feb-2021,000009411964281,ASDA GROCERIES ONLINE,5411,Catering costs - provisions,50.26,0.00,50.26
Children and Young Peoples Services,Head of Education and Skills,071732,Dean Bank Childcare,Supplies and Services,324117,Provisions E324,08-Feb-2021,000009411964287,Wm Morrisons Store Pic,5411,Catering costs - provisions,68.69,0.00,68.69
Children and Young Peoples Services,Head of Education and Skills,071732,Dean Bank Childcare,Supplies and Services,324117,Provisions E324,08-Feb-2021,000009411964291,ASDA GROCERIES ONLINE,5411,Catering costs - provisions,-0.72,0.00,-0.72
Children and Young Peoples Services,Head of Childrens Social Care,085334,West Rainton Satelite Home,Supplies and Services,324117,Provisions E324,08-Feb-2021,000009411964313,TESCO STORES 2371,5411,Catering costs - provisions,64.75,0.00,64.75
Children and Young Peoples Services,Head of Childrens Social Care,085332,Middlestone Moor CU,Supplies and Services,348037,Subsistence E348,08-Feb-2021,000009411964347,SYNCHRONICITY CARE LTD,5812,Subsistence,5.40,0.00,5.40
Children and Young Peoples Services,Head of Childrens Social Care,085332,Middlestone Moor CU,Supplies and Services,324117,Provisions E324,08-Feb-2021,000009411964353,iZ Thames fruit a,5499,Catering costs - provisions,24.00,0.00,24.00
"Regeneration, Economy and Growth",Development and Housing,031500,Housing Solutions - Core Team,Supplies and Services,352001,Conference Expenses,08-Feb-2021,000009411964399,TOAST LETTINGS,7011,Conferencesseminars fees etc,420.00,0.00,420.00
"Regeneration, Economy and Growth",Development and Housing,031500,Housing Solutions - Core Team,Supplies and Services,352001,Conference Expenses,08-Feb-2021,000009411964405,TOAST LETTINGS,7011,Conferencesseminars fees etc,480.00,0.00,480.00
"Regeneration, Economy and Growth",Development and Housing,030771,Durham Advance Flexible Fund,Supplies and Services,338064,Services,08-Feb-2021,000009411964433,ACCESS SCREENING,5734,Disclosure & Barring (DBS) Fees,49.39,0.00,49.39
"Regeneration, Economy and Growth",Development and Housing,031623,Rough,Supplies and Services,352001,Conference Expenses,08-Feb-2021,000009411964465,AYCLIFFE BIZ,7011,Conferencesseminars fees etc,152.00,0.00,152.00
"Regeneration, Economy and Growth",Development and Housing,031623,Rough,Supplies and Services,352001,Conference Expenses,08-Feb-2021,000009411964473,AYCLIFFE BIZ,7011,Conferencesseminars fees etc,152.00,0.00,152.00
"Regeneration, Economy and Growth",Development and Housing,031623,Rough,Transport,235057,Public Transport,08-Feb-2021,000009411964499,BLUE LINE TAXIS,4121,Staff travelling,43.20,0.00,43.20
Children and Young Peoples Services,Head of Early Help Inclusion & Vulnerable Children.,088117,East Area - Teenage Parent Programme,Supplies and Services,324117,Provisions E324,08-Feb-2021,000009411964531,ASDA GROCERIES ONLINE,5411,Catering costs - provisions,67.89,0.00,67.89
Children and Young Peoples Services,Head of Early Help Inclusion & Vulnerable Children.,088117,East Area - Teenage Parent Programme,Supplies and Services,324117,Provisions E324,08-Feb-2021,000009411964541,ASDA GROCERIES ONLINE,5411,Catering costs - provisions,21.36,0.00,21.36
Resources BK0010,People & Talent Management,010984,Training and Development,Employees,040149,Recruitment Instruction and Training,08-Feb-2021,000009411964591,PCS Brentwood Open Lea,8220,Training-all costs,198.00,0.00,198.00
"Regeneration, Economy and Growth",Development and Housing,031576,B& B - Temp Accom,Supplies and Services,364320,Grants to Voluntary Organisations,08-Feb-2021,000009411964633,THE HONEST LAWYER,7011,Accommodation assistance,79.95,0.00,79.95
"Regeneration, Economy and Growth",Development and Housing,031500,Housing Solutions - Core Team,Employees,040149,Recruitment Instruction and Training,08-Feb-2021,000009411964639,WWW.ISLINGTON.GOV.UK,9399,Training-all costs,50.00,0.00,50.00
"Regeneration, Economy and Growth",Development and Housing,031578,Client Travel Reimbursements,Transport,235073,Public Transport,08-Feb-2021,000009411964651,BLUELINE TAXIS,4121,Travel-clients/students/children,33.10,0.00,33.10
Children and Young Peoples Services,Head of Early Help Inclusion & Vulnerable Children.,071489,Winter Family Fund,Supplies and Services,364301,Grants to Voluntary Organisations,08-Feb-2021,000009411964709,AMZNMktplace,5999,Hardship,24.98,4.17,20.81
Children and Young Peoples Services,Head of Early Help Inclusion & Vulnerable Children.,071489,Winter Family Fund,Supplies and Services,364301,Grants to Voluntary Organisations,08-Feb-2021,000009411964717,WILKO.COM,5399,Hardship,49.00,0.00,49.00
Children and Young Peoples Services,Head of Early Help Inclusion & Vulnerable Children.,071489,Winter Family Fund,Supplies and Services,364301,Grants to Voluntary Organisations,08-Feb-2021,000009411964725,WILKO.COM,5399,Hardship,47.00,0.00,47.00
Children and Young Peoples Services,Head of Early Help Inclusion & Vulnerable Children.,071489,Winter Family Fund,Supplies and Services,364301,Grants to Voluntary Organisations,08-Feb-2021,000009411964733,WILKO.COM,5399,Hardship,25.00,0.00,25.00
Children and Young Peoples Services,Head of Early Help Inclusion & Vulnerable Children.,071489,Winter Family Fund,Supplies and Services,364301,Grants to Voluntary Organisations,08-Feb-2021,000009411964739,ASDA GEORGE COM LEEDS,5411,Hardship,282.45,0.00,282.45
Children and Young Peoples Services,Head of Early Help Inclusion & Vulnerable Children.,071489,Winter Family Fund,Supplies and Services,364301,Grants to Voluntary Organisations,08-Feb-2021,000009411964749,ASDA GEORGE COM LEEDS,5411,Hardship,122.50,0.00,122.50
Children and Young Peoples Services,Head of Childrens Social Care,085333,Coxhoe Satelite Home,Supplies and Services,324117,Provisions E324,08-Feb-2021,000009411964915,ASDA SUPERSTORE 4987,5411,Catering costs - provisions,160.44,0.00,160.44
Children and Young Peoples Services,Head of Childrens Social Care,085342,16 Hickstead Rise (previously 9 Cedar Ave),Supplies and Services,304403,Equipment and Materials,08-Feb-2021,000009411964983,AMZNMKTPLACE AMAZON.CO,5999,Other consumables,201.99,0.00,201.99
Children and Young Peoples Services,Head of Education and Skills,078554,Adult Skills-Main,Employees,040149,Recruitment Instruction and Training,08-Feb-2021,000009411965033,COMMUNICATE-ED,8299,Training-all costs,60.00,0.00,60.00
Adult and Health Services,Head of Adults,055643,Hawthorn House LD Respite Unit,Supplies and Services,324117,Provisions E324,08-Feb-2021,000009411965071,JR HOLLAND FOODSERVICE,5499,Catering costs - provisions,7.48,0.00,7.48
Children and Young Peoples Services,Head of Education and Skills,070264,EDC Premises,Supplies and Services,324117,Provisions E324,08-Feb-2021,000009411965083,CATERING APPLIANCE SUP,5811,Catering costs - provisions,41.93,6.99,34.94
Children and Young Peoples Services,Head of Education and Skills,070102,Engagement with Young People,Supplies and Services,304259,Equipment and Materials,08-Feb-2021,000009411965093,PAYPAL EXECUTIVEON,5699,Equipment-purchase and rental,341.25,0.00,341.25
Resources BK0010,Digital and Customer Services,065335,School Services - Implementations,Supplies and Services,304639,Equipment and Materials,08-Feb-2021,000009411965105,KICKTEK LTD,5732,Technicians-supplies,73.24,0.00,73.24
Children and Young Peoples Services,Head of Early Help Inclusion & Vulnerable Children.,085956,Lumley,Supplies and Services,384999,Miscellaneous Expenses,08-Feb-2021,000009411965151,CLEAR PROSPECTS LTD,7221,Other expenses,74.36,0.00,74.36
Children and Young Peoples Services,Head of Early Help Inclusion & Vulnerable Children.,085956,Lumley,Supplies and Services,308011,Furniture,08-Feb-2021,000009411965159,ARGOS LTD,5310,Furniture repair and replacement,153.95,0.00,153.95
Resources BK0010,Legal & Democratic Services,067801,Registrars,Supplies and Services,340001,Postages E340,08-Feb-2021,000009411965171,ROYAL MAIL ONLINE SHOP,9402,Postages,147.72,0.00,147.72
Children and Young Peoples Services,Head of Childrens Social Care,085333,Coxhoe Satelite Home,Supplies and Services,324117,Provisions E324,08-Feb-2021,000009411965365,ASDA SUPERSTORE 4987,5411,Catering costs - provisions,18.00,0.00,18.00
Children and Young Peoples Services,Head of Childrens Social Care,085333,Coxhoe Satelite Home,Supplies and Services,348037,Subsistence E348,08-Feb-2021,000009411965373,MCDONALDS,5814,Subsistence,22.36,0.00,22.36
Adult and Health Services,Commissioning inc Supporting People,052100,Supporting the Provider Market,Supplies and Services,312009,Newspapers books and periodicals E312,08-Feb-2021,000009411965417,Amazon.co.uk MF9AP2AT4,5969,Newspapers books and periodicals,16.60,0.00,16.60
Neighbourhoods and Climate Change,Technical Services CM0300,010010,Gilesgate DSHI 08/09,Supplies and Services,372009,Subscriptions E372,08-Feb-2021,000009411965425,CREATIVE_FED,8699,Subscriptions 372009,25.00,0.00,25.00
Children and Young Peoples Services,Head of Early Help Inclusion & Vulnerable Children.,071489,Winter Family Fund,Supplies and Services,364301,Grants to Voluntary Organisations,08-Feb-2021,000009414335829,AMZNMKTPLACE AMAZON.CO,5999,Hardship,33.99,5.67,28.32
Children and Young Peoples Services,Head of Early Help Inclusion & Vulnerable Children.,085955,Auckland,Supplies and Services,304403,Equipment and Materials,08-Feb-2021,000009414336381,AMZNMKTPLACE AMAZON.CO,5999,Other consumables,24.99,4.17,20.82
Children and Young Peoples Services,Head of Early Help Inclusion & Vulnerable Children.,085955,Auckland,Supplies and Services,304403,Equipment and Materials,08-Feb-2021,000009414336389,AMZNMKTPLACE AMAZON.CO,5999,Other consumables,33.50,5.58,27.92
"Regeneration, Economy and Growth",Development and Housing,031576,B& B - Temp Accom,Supplies and Services,348037,Subsistence E348,09-Feb-2021,000007428061548,CROXDALE INN,5812,Subsistence,49.00,0.00,49.00
"Regeneration, Economy and Growth",Culture Sport and Tourism,011290,Community Testing,Supplies and Services,304259,Equipment and Materials,09-Feb-2021,000009411963621,AMZNMktplace,5999,Equipment-purchase and rental,451.80,75.30,376.50
"Regeneration, Economy and Growth",Culture Sport and Tourism,011290,Community Testing,Supplies and Services,304259,Equipment and Materials,09-Feb-2021,000009411963621 - 1,AMZNMktplace,5999,Equipment-purchase and rental,0.10,,0.10
"Regeneration, Economy and Growth",Business Durham CL0850,030689,Inward Investment and Aftercare,Supplies and Services,304999,Equipment and Materials,09-Feb-2021,000009414335803,MAILCHIMP MONTHLY,5968,Misc equipment tools and materials,77.19,0.00,77.19
Children and Young Peoples Services,Head of Early Help Inclusion & Vulnerable Children.,071489,Winter Family Fund,Supplies and Services,364301,Grants to Voluntary Organisations,09-Feb-2021,000009414335837,ARGOS LTD,5310,Hardship,82.95,0.00,82.95
Children and Young Peoples Services,Head of Childrens Social Care,085633,Families First Chester-Le-Street,Supplies and Services,338045,Services,09-Feb-2021,000009414335847,WWW.DURHAM.GOV.UK,9399,Legal expenses 338045,22.00,0.00,22.00
Children and Young Peoples Services,Head of Education and Skills,071801,Selby Cottage Childcare Centre,Supplies and Services,324117,Provisions E324,09-Feb-2021,000009414335863,ASDA GROCERIES ONLINE,5411,Catering costs - provisions,70.90,0.00,70.90
Children and Young Peoples Services,Head of Education and Skills,071801,Selby Cottage Childcare Centre,Supplies and Services,324117,Provisions E324,09-Feb-2021,000009414335871,TESCO STORES 2371,5411,Catering costs - provisions,43.60,0.00,43.60
Resources BK0010,Transformation,060131,County Records,Supplies and Services,342053,Computers and Communications,09-Feb-2021,000009414335883,ZOOM.US 888-799-9666,4814,Computer software,119.90,0.00,119.90
"Regeneration, Economy and Growth",Culture Sport and Tourism,011217,Commercial Management 011217,Supplies and Services,342053,Computers and Communications,09-Feb-2021,000009414335895,ZOOM.US 888-799-9666,4814,Computer software,119.90,0.00,119.90
Children and Young Peoples Services,Head of Childrens Social Care,085760,Safeguarding and Professional Practice Strategic Mgr,Supplies and Services,304403,Equipment and Materials,09-Feb-2021,000009414335901,AMZNMktplace,5999,Other consumables,14.98,0.00,14.98
Resources BK0010,Digital and Customer Services,065230,IT Renewals Fund,Supplies and Services,342033,Computers and Communications,09-Feb-2021,000009414335905,AMZNMktplace,5999,Computer hardware,41.18,6.86,34.32
"Regeneration, Economy and Growth",Development and Housing,031576,B& B - Temp Accom,Supplies and Services,364320,Grants to Voluntary Organisations,09-Feb-2021,000009414335943,HI NEWCASTLE WASHI,7011,Accommodation assistance,65.00,0.00,65.00
Children and Young Peoples Services,Head of Education and Skills,075021,Youth Employment Initiative,Supplies and Services,364301,Grants to Voluntary Organisations,09-Feb-2021,000009414335963,DARLINGTON BC INTERNET,9399,Hardship,11.00,0.00,11.00
Children and Young Peoples Services,Head of Education and Skills,075021,Youth Employment Initiative,Supplies and Services,364301,Grants to Voluntary Organisations,09-Feb-2021,000009414335971,GEN REGISTER OFFICE,9399,Hardship,14.00,0.00,14.00
"Regeneration, Economy and Growth",Culture Sport and Tourism,011290,Community Testing,Supplies and Services,304259,Equipment and Materials,09-Feb-2021,000009414335973,DISPLAY STANDS LTD,8999,Equipment-purchase and rental,83.07,13.85,69.22
"Regeneration, Economy and Growth",Culture Sport and Tourism,011290,Community Testing,Supplies and Services,304259,Equipment and Materials,09-Feb-2021,000009414335979,AMZNMktplace,5999,Equipment-purchase and rental,66.00,11.00,55.00
"Regeneration, Economy and Growth",Culture Sport and Tourism,054820,Gala Theatre - Overheads,Supplies and Services,304259,Equipment and Materials,09-Feb-2021,000009414335983,AMZNMktplace,5999,Equipment-purchase and rental,21.18,3.54,17.64
"Regeneration, Economy and Growth",Culture Sport and Tourism,011215,Museums Heritage & Collections 011215,Supplies and Services,304259,Equipment and Materials,09-Feb-2021,000009414335987,ATHENA CRAFTS,5970,Equipment-purchase and rental,65.93,10.99,54.94
"Regeneration, Economy and Growth",Culture Sport and Tourism,030708,VCD - Marketing & Information,Supplies and Services,384199,Miscellaneous Expenses,09-Feb-2021,000009414335991,LNK.BIO,5734,Other hired and contracted services,18.27,0.00,18.27
"Regeneration, Economy and Growth",Culture Sport and Tourism,030705,Visit County Durham 030705,Supplies and Services,384199,Miscellaneous Expenses,09-Feb-2021,000009414335997,FASTHOSTS INTERNET,4816,Other hired and contracted services,30.00,5.00,25.00
Children and Young Peoples Services,Head of Childrens Social Care,085332,Middlestone Moor CU,Supplies and Services,324117,Provisions E324,09-Feb-2021,000009414336035,TESCO STORES 2371,5411,Catering costs - provisions,157.71,0.00,157.71
Children and Young Peoples Services,Head of Early Help Inclusion & Vulnerable Children.,071489,Winter Family Fund,Supplies and Services,384700,Miscellaneous Expenses,09-Feb-2021,000009414336239,THE FLOORING STORE,5713,Miscellaneous grants,400.00,0.00,400.00
Children and Young Peoples Services,Head of Early Help Inclusion & Vulnerable Children.,071489,Winter Family Fund,Supplies and Services,384700,Miscellaneous Expenses,09-Feb-2021,000009414336251,ASDA GROCERIES ONLINE,5411,Miscellaneous grants,44.06,0.00,44.06
Children and Young Peoples Services,Head of Early Help Inclusion & Vulnerable Children.,071489,Winter Family Fund,Supplies and Services,384700,Miscellaneous Expenses,09-Feb-2021,000009414336261,ASDA GROCERIES ONLINE,5411,Miscellaneous grants,69.63,0.00,69.63
Children and Young Peoples Services,Head of Childrens Social Care,085332,Middlestone Moor CU,Supplies and Services,324117,Provisions E324,09-Feb-2021,000009414336269,ASDA STORES LTD,5411,Catering costs - provisions,10.00,0.00,10.00
"Regeneration, Economy and Growth",Development and Housing,031576,B& B - Temp Accom,Supplies and Services,364320,Grants to Voluntary Organisations,09-Feb-2021,000009414336355,THE HONEST LAWYER,7011,Accommodation assistance,239.85,0.00,239.85
"Regeneration, Economy and Growth",Development and Housing,030772,CLLD South,Employees,040149,Recruitment Instruction and Training,09-Feb-2021,000009414336413,BRITISH RED CROSS,8398,Training-all costs,151.20,25.20,126.00
Children and Young Peoples Services,Head of Education and Skills,071732,Dean Bank Childcare,Supplies and Services,304259,Equipment and Materials,09-Feb-2021,000009414336539,Amazon Music MF7TE10H4,5735,Equipment-purchase and rental,14.99,0.00,14.99
Children and Young Peoples Services,Head of Education and Skills,071732,Dean Bank Childcare,Supplies and Services,324117,Provisions E324,09-Feb-2021,000009414336547,WM MORRISONS STORE,5411,Catering costs - provisions,431.24,0.00,431.24
Children and Young Peoples Services,Head of Childrens Social Care,085332,Middlestone Moor CU,Supplies and Services,304999,Equipment and Materials,09-Feb-2021,000009414336565,Amazon Prime MF7SH60T4,5968,Misc equipment tools and materials,7.99,0.00,7.99
Neighbourhoods and Climate Change,Environmental Services,010301,C&G - North Grounds Maintenance,Supplies and Services,304403,Equipment and Materials,09-Feb-2021,000009414336573,BESCOL,5231,Other consumables,105.56,0.00,105.56
"Regeneration, Economy and Growth",Development and Housing,030771,Durham Advance Flexible Fund,Supplies and Services,328041,Clothing uniforms and laundry E328,09-Feb-2021,000009414336595,NEXT DIRECTORY,5965,Clothing uniforms and laundry,153.99,0.00,153.99
"Regeneration, Economy and Growth",Development and Housing,031623,Rough,Transport,235057,Public Transport,09-Feb-2021,000009414336603,BLUE LINE TAXIS,4121,Staff travelling,6.30,0.00,6.30
"Regeneration, Economy and Growth",Development and Housing,031623,Rough,Supplies and Services,324117,Provisions E324,09-Feb-2021,000009414336611,TESCO STORES 4358,5411,Catering costs - provisions,10.00,0.00,10.00
Children and Young Peoples Services,Head of Early Help Inclusion & Vulnerable Children.,085957,Secure Management,Supplies and Services,312009,Newspapers books and periodicals E312,09-Feb-2021,000009414336623,AMZNMktplace,5999,Newspapers books and periodicals,73.50,0.00,73.50
Children and Young Peoples Services,Head of Early Help Inclusion & Vulnerable Children.,088112,Seaham & Central Durham 0-19 Targeted Family Support,Supplies and Services,328041,Clothing uniforms and laundry E328,09-Feb-2021,000009414336645,ARGOS LTD,5310,Clothing uniforms and laundry,259.99,0.00,259.99
Children and Young Peoples Services,Head of Early Help Inclusion & Vulnerable Children.,071489,Winter Family Fund,Supplies and Services,364301,Grants to Voluntary Organisations,09-Feb-2021,000009414336839,AMZNMktplace,5999,Hardship,8.99,1.50,7.49
Children and Young Peoples Services,Head of Early Help Inclusion & Vulnerable Children.,088116,South Area - Teenage Parent Programme,Supplies and Services,384302,Miscellaneous Expenses,09-Feb-2021,000009414336843,AMZNMKTPLACE AMAZON.CO,5999,Activity expenses,77.50,0.00,77.50
Children and Young Peoples Services,Head of Early Help Inclusion & Vulnerable Children.,071489,Winter Family Fund,Supplies and Services,364301,Grants to Voluntary Organisations,09-Feb-2021,000009414336849,TESCO STORES 2371,5411,Hardship,27.50,0.00,27.50
Children and Young Peoples Services,Head of Early Help Inclusion & Vulnerable Children.,071489,Winter Family Fund,Supplies and Services,364301,Grants to Voluntary Organisations,09-Feb-2021,000009414336855,ARGOS LTD,5310,Hardship,126.95,0.00,126.95
Children and Young Peoples Services,Head of Early Help Inclusion & Vulnerable Children.,071489,Winter Family Fund,Supplies and Services,364301,Grants to Voluntary Organisations,09-Feb-2021,000009414336865,ARGOS LTD,5310,Hardship,97.00,0.00,97.00
Children and Young Peoples Services,Head of Childrens Social Care,085625,Families First Spennymoor,Supplies and Services,364301,Grants to Voluntary Organisations,09-Feb-2021,000009414336869,WWW.DURHAM.GOV.UK,9399,Hardship,11.00,0.00,11.00
Adult and Health Services,Head of Adults,055643,Hawthorn House LD Respite Unit,Supplies and Services,324117,Provisions E324,09-Feb-2021,000009414336935,SAINSBURYS SACAT 0776,5411,Catering costs - provisions,7.85,0.00,7.85
"Regeneration, Economy and Growth",Development and Housing,030771,Durham Advance Flexible Fund,Transport,235057,Public Transport,09-Feb-2021,000009414336949,GO NORTH EAST LIMITED,4131,Staff travelling,30.00,0.00,30.00
"Regeneration, Economy and Growth",Corporate Property and Land,020082,Bldg Serv - R&M Div 82- Lifts,Supplies and Services,384999,Miscellaneous Expenses,09-Feb-2021,000009414336961,CITY OF NEWCASTLE INTE,9399,Other expenses,246.00,0.00,246.00
Children and Young Peoples Services,Head of Childrens Social Care,085333,Coxhoe Satelite Home,Supplies and Services,324117,Provisions E324,09-Feb-2021,000009414336967,TESCO STORES 2371,5411,Catering costs - provisions,48.46,0.00,48.46
Children and Young Peoples Services,Head of Childrens Social Care,085333,Coxhoe Satelite Home,Supplies and Services,304221,Equipment and Materials,09-Feb-2021,000009414336977,B & Q 1343,5200,Direct materials,20.00,0.00,20.00
Adult and Health Services,Head of Adults,055643,Hawthorn House LD Respite Unit,Supplies and Services,324117,Provisions E324,09-Feb-2021,000009414337047,JR HOLLAND FOODSERVICE,5499,Catering costs - provisions,13.89,0.00,13.89
Children and Young Peoples Services,Head of Childrens Social Care,085334,West Rainton Satelite Home,Supplies and Services,324117,Provisions E324,09-Feb-2021,000009414337091,TESCO STORES 2371,5411,Catering costs - provisions,166.17,0.00,166.17
Children and Young Peoples Services,Head of Early Help Inclusion & Vulnerable Children.,085957,Secure Management,Supplies and Services,304403,Equipment and Materials,09-Feb-2021,000009414337129,AMZNMktplace,5999,Other consumables,39.96,0.00,39.96
Children and Young Peoples Services,Head of Early Help Inclusion & Vulnerable Children.,088111,Easington & Peterlee 0-19 Community Family Hub,Supplies and Services,312009,Newspapers books and periodicals E312,09-Feb-2021,000009414337167,Amazon.co.uk MF5M811S4,5969,Newspapers books and periodicals,65.54,0.00,65.54
Children and Young Peoples Services,Head of Early Help Inclusion & Vulnerable Children.,088111,Easington & Peterlee 0-19 Community Family Hub,Supplies and Services,312009,Newspapers books and periodicals E312,09-Feb-2021,000009414337177,Amazon.co.uk MF7GZ7154,5969,Newspapers books and periodicals,48.84,0.00,48.84
Children and Young Peoples Services,Head of Early Help Inclusion & Vulnerable Children.,088111,Easington & Peterlee 0-19 Community Family Hub,Supplies and Services,312009,Newspapers books and periodicals E312,09-Feb-2021,000009414337187,Amazon.co.uk MF9LR4134,5969,Newspapers books and periodicals,78.57,0.00,78.57
"Regeneration, Economy and Growth",Development and Housing,031576,B& B - Temp Accom,Supplies and Services,364320,Grants to Voluntary Organisations,09-Feb-2021,000009414337247,TOAST LETTINGS,7011,Accommodation assistance,240.00,0.00,240.00
"Regeneration, Economy and Growth",Development and Housing,031576,B& B - Temp Accom,Supplies and Services,364320,Grants to Voluntary Organisations,09-Feb-2021,000009414337253,THE HONEST LAWYER,7011,Accommodation assistance,239.85,0.00,239.85
Children and Young Peoples Services,Head of Education and Skills,071802,Louisa Cent Nursery,Supplies and Services,324117,Provisions E324,09-Feb-2021,000009414337321,ASDA SUPERSTORE,5411,Catering costs - provisions,17.06,0.00,17.06
"Regeneration, Economy and Growth",Development and Housing,031500,Housing Solutions - Core Team,Supplies and Services,352001,Conference Expenses,09-Feb-2021,000009414337385,TOAST LETTINGS,7011,Conferencesseminars fees etc,490.00,0.00,490.00
"Regeneration, Economy and Growth",Development and Housing,031500,Housing Solutions - Core Team,Supplies and Services,352001,Conference Expenses,09-Feb-2021,000009414337395,TOAST LETTINGS,7011,Conferencesseminars fees etc,490.00,0.00,490.00
"Regeneration, Economy and Growth",Development and Housing,031500,Housing Solutions - Core Team,Supplies and Services,352001,Conference Expenses,09-Feb-2021,000009414337399,TOAST LETTINGS,7011,Conferencesseminars fees etc,490.00,0.00,490.00
"Regeneration, Economy and Growth",Development and Housing,031500,Housing Solutions - Core Team,Supplies and Services,352001,Conference Expenses,09-Feb-2021,000009414337407,TOAST LETTINGS,7011,Conferencesseminars fees etc,490.00,0.00,490.00
Adult and Health Services,Commissioning inc Supporting People,052100,Supporting the Provider Market,Supplies and Services,312009,Newspapers books and periodicals E312,09-Feb-2021,000009414337443,Amazon.co.uk MF1VA30A4,5969,Newspapers books and periodicals,16.60,0.00,16.60
Adult and Health Services,Commissioning inc Supporting People,052100,Supporting the Provider Market,Supplies and Services,312009,Newspapers books and periodicals E312,09-Feb-2021,000009414337447,Amazon.co.uk MF70560G4,5969,Newspapers books and periodicals,16.60,0.00,16.60
Adult and Health Services,Commissioning inc Supporting People,052100,Supporting the Provider Market,Supplies and Services,312009,Newspapers books and periodicals E312,09-Feb-2021,000009414337455,Amazon.co.uk MF9VM30S4,5969,Newspapers books and periodicals,16.60,0.00,16.60
Resources BK0010,Business Support,065501,Business Support - Executive Support,Supplies and Services,304335,Equipment and Materials,09-Feb-2021,000009414337471,AMZNMktplace,5999,ICT supplies etc,17.99,0.00,17.99
"Regeneration, Economy and Growth",Development and Housing,030771,Durham Advance Flexible Fund,Employees,040149,Recruitment Instruction and Training,09-Feb-2021,000009414337533,HTTPS://WWW.CITB.CO.UK,8249,Training-all costs,99.00,0.00,99.00
Children and Young Peoples Services,Head of Childrens Social Care,085561,Social Work Academy,Supplies and Services,304403,Equipment and Materials,09-Feb-2021,000009416998363,AMZNMKTPLACE AMAZON.CO,5999,Other consumables,450.00,75.00,375.00
Children and Young Peoples Services,Head of Childrens Social Care,085561,Social Work Academy,Supplies and Services,304403,Equipment and Materials,09-Feb-2021,000009416998363 - 1,AMZNMKTPLACE AMAZON.CO,5999,Other consumables,148.50,,148.50
Resources BK0010,Business Support,065504,Business Support - Meadowfield,Supplies and Services,304259,Equipment and Materials,09-Feb-2021,000009416998535,AMZNMKTPLACE AMAZON.CO,5999,Equipment-purchase and rental,10.99,1.83,9.16
Children and Young Peoples Services,Head of Early Help Inclusion & Vulnerable Children.,088116,South Area - Teenage Parent Programme,Supplies and Services,384302,Miscellaneous Expenses,09-Feb-2021,000009416999843,AMZNMKTPLACE AMAZON.CO,5999,Activity expenses,79.74,13.32,66.42
Children and Young Peoples Services,Head of Early Help Inclusion & Vulnerable Children.,088116,South Area - Teenage Parent Programme,Supplies and Services,384302,Miscellaneous Expenses,09-Feb-2021,000009416999853,AMZNMKTPLACE AMAZON.CO,5999,Activity expenses,53.16,8.88,44.28
Children and Young Peoples Services,Head of Early Help Inclusion & Vulnerable Children.,085956,Lumley,Supplies and Services,308011,Furniture,09-Feb-2021,000009417000447,ARGOS LTD,5310,Furniture repair and replacement,-30.00,0.00,-30.00
"Regeneration, Economy and Growth",Transport and Contracted Services,032061,Traffic 032061,Supplies and Services,372009,Subscriptions E372,09-Feb-2021,000009417000467,THE CHARTERED INSTITUT,8398,Subscriptions 372009,81.00,0.00,81.00
Resources BK0010,Business Support,065501,Business Support - Executive Support,Supplies and Services,332047,Printing Stationery and Gen Off Exps,09-Feb-2021,000009417000953,AMZNMKTPLACE AMAZON.CO,5999,Stationery,8.59,1.43,7.16
Resources BK0010,Digital and Customer Services,065481,Technical Services 065481,Supplies and Services,342033,Computers and Communications,10-Feb-2021,000007428060986,RS COMPONENTS,5065,Computer hardware,20.32,0.00,20.32
Resources BK0010,Digital and Customer Services,065481,Technical Services 065481,Supplies and Services,342033,Computers and Communications,10-Feb-2021,000007436287792,RS COMPONENTS,5065,Computer hardware,105.84,0.00,105.84
Resources BK0010,Digital and Customer Services,065481,Technical Services 065481,Supplies and Services,342033,Computers and Communications,10-Feb-2021,000007436287796,RS COMPONENTS,5065,Computer hardware,36.77,0.00,36.77
"Regeneration, Economy and Growth",Business Durham CL0850,030689,Inward Investment and Aftercare,Supplies and Services,304999,Equipment and Materials,10-Feb-2021,000009414335811,MAILCHIMP MONTHLY,5968,Misc equipment tools and materials,2.12,0.00,2.12
Children and Young Peoples Services,Head of Childrens Social Care,085561,Social Work Academy,Supplies and Services,304403,Equipment and Materials,10-Feb-2021,000009414335907,AMZNMktplace,5999,Other consumables,115.65,0.00,115.65
"Regeneration, Economy and Growth",Culture Sport and Tourism,030708,VCD - Marketing & Information,Supplies and Services,384199,Miscellaneous Expenses,10-Feb-2021,000009414335999,LNK.BIO,5734,Other hired and contracted services,0.50,0.00,0.50
Children and Young Peoples Services,Head of Early Help Inclusion & Vulnerable Children.,085955,Auckland,Supplies and Services,332047,Printing Stationery and Gen Off Exps,10-Feb-2021,000009414336633,Amazon.co.uk MF8SD4104,5969,Stationery,24.99,4.17,20.82
Children and Young Peoples Services,Head of Childrens Social Care,085351,Framwellgate Moor CU,Supplies and Services,372009,Subscriptions E372,10-Feb-2021,000009414337301,NETFLIX.COM,4899,Subscriptions 372009,11.99,0.00,11.99
Children and Young Peoples Services,Head of Childrens Social Care,085341,High Etherley Satelite Home,Supplies and Services,324117,Provisions E324,10-Feb-2021,000009416998181,SAINSBURYS SACAT 2199,5411,Catering costs - provisions,10.93,0.00,10.93
Children and Young Peoples Services,Head of Childrens Social Care,085341,High Etherley Satelite Home,Supplies and Services,324117,Provisions E324,10-Feb-2021,000009416998199,B&M 035 - SHILDON,5399,Catering costs - provisions,105.07,0.00,105.07
"Regeneration, Economy and Growth",Business Durham CL0850,030689,Inward Investment and Aftercare,Supplies and Services,336005,Advertising E336,10-Feb-2021,000009416998239,LINKEDIN IRELAND,7311,Advertising other than for staff,62.13,0.00,62.13
"Regeneration, Economy and Growth",Business Durham CL0850,030689,Inward Investment and Aftercare,Third Party Payments,430100,Rendered by Private Contractors,10-Feb-2021,000009416998245,BLS monday.com,7399,Payments to sub-contractors,148.80,0.00,148.80
Children and Young Peoples Services,Head of Early Help Inclusion & Vulnerable Children.,071489,Winter Family Fund,Supplies and Services,364301,Grants to Voluntary Organisations,10-Feb-2021,000009416998279,SAINSBURY`S,5411,Hardship,23.95,0.00,23.95
Children and Young Peoples Services,Head of Early Help Inclusion & Vulnerable Children.,071489,Winter Family Fund,Supplies and Services,364301,Grants to Voluntary Organisations,10-Feb-2021,000009416998287,ASDA GEORGE COM LEEDS,5411,Hardship,285.00,0.00,285.00
Children and Young Peoples Services,Head of Early Help Inclusion & Vulnerable Children.,071489,Winter Family Fund,Supplies and Services,364301,Grants to Voluntary Organisations,10-Feb-2021,000009416998295,ARGOS LTD,5310,Hardship,43.94,0.00,43.94
Children and Young Peoples Services,Head of Early Help Inclusion & Vulnerable Children.,071489,Winter Family Fund,Supplies and Services,364301,Grants to Voluntary Organisations,10-Feb-2021,000009416998301,ARGOS LTD,5310,Hardship,100.00,0.00,100.00
Children and Young Peoples Services,Head of Early Help Inclusion & Vulnerable Children.,071489,Winter Family Fund,Supplies and Services,364301,Grants to Voluntary Organisations,10-Feb-2021,000009416998309,ARGOS LTD,5310,Hardship,28.95,0.00,28.95
Children and Young Peoples Services,Head of Education and Skills,071801,Selby Cottage Childcare Centre,Supplies and Services,384999,Miscellaneous Expenses,10-Feb-2021,000009416998321,Amazon.co.uk MF4YY4P84,5969,Other expenses,43.02,7.17,35.85
Children and Young Peoples Services,Head of Education and Skills,071801,Selby Cottage Childcare Centre,Supplies and Services,384999,Miscellaneous Expenses,10-Feb-2021,000009416998321 - 1,Amazon.co.uk MF4YY4P84,5969,Other expenses,16.39,,16.39
"Regeneration, Economy and Growth",Development and Housing,031576,B& B - Temp Accom,Transport,235073,Public Transport,10-Feb-2021,000009416998331,BLUE LINE TAXIS,4121,Travel-clients/students/children,20.80,0.00,20.80
"Regeneration, Economy and Growth",Development and Housing,031576,B& B - Temp Accom,Supplies and Services,364320,Grants to Voluntary Organisations,10-Feb-2021,000009416998337,THE HONEST LAWYER,7011,Accommodation assistance,79.00,0.00,79.00
Children and Young Peoples Services,Head of Childrens Social Care,085561,Social Work Academy,Supplies and Services,304403,Equipment and Materials,10-Feb-2021,000009416998373,AMZNMKTPLACE AMAZON.CO,5999,Other consumables,66.30,0.00,66.30
Resources BK0010,Digital and Customer Services,065481,Technical Services 065481,Supplies and Services,342033,Computers and Communications,10-Feb-2021,000009416998381,Amazon.co.uk MF7G02P84,5969,Computer hardware,26.99,4.50,22.49
Children and Young Peoples Services,Head of Childrens Social Care,085561,Social Work Academy,Supplies and Services,304403,Equipment and Materials,10-Feb-2021,000009416998387,AMZNMKTPLACE AMAZON.CO,5999,Other consumables,66.30,0.00,66.30
Children and Young Peoples Services,Head of Childrens Social Care,085561,Social Work Academy,Supplies and Services,304403,Equipment and Materials,10-Feb-2021,000009416998399,AMZNMKTPLACE AMAZON.CO,5999,Other consumables,66.30,0.00,66.30
Children and Young Peoples Services,Head of Childrens Social Care,085561,Social Work Academy,Supplies and Services,304403,Equipment and Materials,10-Feb-2021,000009416998405,AMZNMKTPLACE AMAZON.CO,5999,Other consumables,66.30,0.00,66.30
Children and Young Peoples Services,Head of Childrens Social Care,085561,Social Work Academy,Supplies and Services,304403,Equipment and Materials,10-Feb-2021,000009416998415,AMZNMKTPLACE AMAZON.CO,5999,Other consumables,66.30,0.00,66.30
Neighbourhoods and Climate Change,Environmental Services,010367,C&G - South Grounds Maintenance,Supplies and Services,304221,Equipment and Materials,10-Feb-2021,000009416998733,SCREWFIX DIRECT,5211,Direct materials,99.71,0.00,99.71
Children and Young Peoples Services,Head of Early Help Inclusion & Vulnerable Children.,088104,BA/BC/Crook 0-19 Targeted Family Support,Supplies and Services,312009,Newspapers books and periodicals E312,10-Feb-2021,000009416998795,Amazon.co.uk MF2KY5PF4,5969,Newspapers books and periodicals,34.80,0.00,34.80
Children and Young Peoples Services,Head of Early Help Inclusion & Vulnerable Children.,071489,Winter Family Fund,Supplies and Services,384700,Miscellaneous Expenses,10-Feb-2021,000009416998807,ASDA GEORGE COM LEEDS,5411,Miscellaneous grants,79.00,13.17,65.83
Children and Young Peoples Services,Head of Early Help Inclusion & Vulnerable Children.,088104,BA/BC/Crook 0-19 Targeted Family Support,Supplies and Services,312009,Newspapers books and periodicals E312,10-Feb-2021,000009416998819,Amazon.co.uk MF9MM2GR4,5969,Newspapers books and periodicals,173.66,0.00,173.66
"Regeneration, Economy and Growth",Culture Sport and Tourism,054233,Bishop Auckland Town Hall Library,Supplies and Services,324117,Provisions E324,10-Feb-2021,000009416998845,WILKO RETAIL LIMITED,5399,Catering costs - provisions,11.00,0.00,11.00
"Regeneration, Economy and Growth",Development and Housing,030770,Durham Advance,Supplies and Services,304403,Equipment and Materials,10-Feb-2021,000009416998865,AMZNMktplace,5999,Other consumables,29.99,0.00,29.99
"Regeneration, Economy and Growth",Development and Housing,031576,B& B - Temp Accom,Supplies and Services,352001,Conference Expenses,10-Feb-2021,000009416999089,TOAST LETTINGS,7011,Conferencesseminars fees etc,140.00,0.00,140.00
"Regeneration, Economy and Growth",Development and Housing,031576,B& B - Temp Accom,Supplies and Services,352001,Conference Expenses,10-Feb-2021,000009416999097,BUDGET H EXPRESS HOTEL,7011,Conferencesseminars fees etc,25.44,4.24,21.20
"Regeneration, Economy and Growth",Development and Housing,031576,B& B - Temp Accom,Supplies and Services,352001,Conference Expenses,10-Feb-2021,000009416999097 - 1,BUDGET H EXPRESS HOTEL,7011,Conferencesseminars fees etc,63.56,,63.56
"Regeneration, Economy and Growth",Development and Housing,031576,B& B - Temp Accom,Supplies and Services,352001,Conference Expenses,10-Feb-2021,000009416999107,HI NEWCASTLE WASHI,7011,Conferencesseminars fees etc,37.14,6.19,30.95
"Regeneration, Economy and Growth",Development and Housing,031576,B& B - Temp Accom,Supplies and Services,352001,Conference Expenses,10-Feb-2021,000009416999107 - 1,HI NEWCASTLE WASHI,7011,Conferencesseminars fees etc,92.86,,92.86
Children and Young Peoples Services,Head of Childrens Social Care,085334,West Rainton Satelite Home,Supplies and Services,304403,Equipment and Materials,10-Feb-2021,000009416999217,AMZNMktplace,5999,Other consumables,38.98,0.00,38.98
"Regeneration, Economy and Growth",Development and Housing,031500,Housing Solutions - Core Team,Supplies and Services,352001,Conference Expenses,10-Feb-2021,000009416999287,TOAST LETTINGS,7011,Conferencesseminars fees etc,240.00,0.00,240.00
"Regeneration, Economy and Growth",Development and Housing,030771,Durham Advance Flexible Fund,Supplies and Services,384700,Miscellaneous Expenses,10-Feb-2021,000009416999305,DUE DILIGENCE CHECKING,7399,Miscellaneous grants,61.60,0.00,61.60
"Regeneration, Economy and Growth",Development and Housing,031623,Rough,Supplies and Services,304999,Equipment and Materials,10-Feb-2021,000009416999327,DUNCAN BELTON TA K,6513,Misc equipment tools and materials,400.00,0.00,400.00
"Regeneration, Economy and Growth",Development and Housing,031623,Rough,Supplies and Services,304999,Equipment and Materials,10-Feb-2021,000009416999339,DUNCAN BELTON TA K,6513,Misc equipment tools and materials,500.00,0.00,500.00
"Regeneration, Economy and Growth",Development and Housing,031623,Rough,Supplies and Services,304999,Equipment and Materials,10-Feb-2021,000009416999353,DUNCAN BELTON TA K,6513,Misc equipment tools and materials,500.00,0.00,500.00
"Regeneration, Economy and Growth",Development and Housing,031623,Rough,Supplies and Services,304999,Equipment and Materials,10-Feb-2021,000009416999361,DUNCAN BELTON TA K,6513,Misc equipment tools and materials,500.00,0.00,500.00
"Regeneration, Economy and Growth",Development and Housing,031623,Rough,Supplies and Services,304999,Equipment and Materials,10-Feb-2021,000009416999379,DUNCAN BELTON TA K,6513,Misc equipment tools and materials,150.00,0.00,150.00
Children and Young Peoples Services,Head of Early Help Inclusion & Vulnerable Children.,085957,Secure Management,Supplies and Services,340001,Postages E340,10-Feb-2021,000009416999405,TSB Returns Ltd,4215,Postages,2.50,0.00,2.50
Children and Young Peoples Services,Head of Early Help Inclusion & Vulnerable Children.,085957,Secure Management,Supplies and Services,332047,Printing Stationery and Gen Off Exps,10-Feb-2021,000009416999421,Amazon.co.uk MF2RV4P44,5969,Stationery,27.22,4.54,22.68
Children and Young Peoples Services,Head of Early Help Inclusion & Vulnerable Children.,085956,Lumley,Transfer Payments,515140,Social Services Clients,10-Feb-2021,000009416999431,PRETTYLITTLETHING.COM,5691,Clothing allowances,18.00,0.00,18.00
Children and Young Peoples Services,Head of Early Help Inclusion & Vulnerable Children.,085956,Lumley,Transfer Payments,515140,Social Services Clients,10-Feb-2021,000009416999445,PRETTYLITTLETHING.COM,5691,Clothing allowances,67.00,0.00,67.00
Children and Young Peoples Services,Head of Early Help Inclusion & Vulnerable Children.,085962,Aycliffe Secure - Durham,Supplies and Services,324117,Provisions E324,10-Feb-2021,000009416999459,TESCO STORES 6329,5411,Catering costs - provisions,74.00,0.00,74.00
Children and Young Peoples Services,Head of Early Help Inclusion & Vulnerable Children.,085956,Lumley,Supplies and Services,304403,Equipment and Materials,10-Feb-2021,000009416999471,AMZNMktplace,5999,Other consumables,9.99,0.00,9.99
Children and Young Peoples Services,Head of Early Help Inclusion & Vulnerable Children.,085956,Lumley,Supplies and Services,304403,Equipment and Materials,10-Feb-2021,000009416999487,AMZNMktplace,5999,Other consumables,8.99,1.50,7.49
Children and Young Peoples Services,Head of Early Help Inclusion & Vulnerable Children.,085965,Barnard,Transfer Payments,515140,Social Services Clients,10-Feb-2021,000009416999507,JD SPORTS INTERNET,5941,Clothing allowances,63.99,0.00,63.99
Children and Young Peoples Services,Head of Early Help Inclusion & Vulnerable Children.,085956,Lumley,Transfer Payments,515140,Social Services Clients,10-Feb-2021,000009416999527,JD SPORTS INTERNET,5941,Clothing allowances,23.99,0.00,23.99
Children and Young Peoples Services,Head of Early Help Inclusion & Vulnerable Children.,085954,Walworth,Transfer Payments,515140,Social Services Clients,10-Feb-2021,000009416999541,JD SPORTS INTERNET,5941,Clothing allowances,-15.00,0.00,-15.00
Children and Young Peoples Services,Head of Early Help Inclusion & Vulnerable Children.,085956,Lumley,Transfer Payments,515140,Social Services Clients,10-Feb-2021,000009416999555,JD SPORTS INTERNET,5941,Clothing allowances,-38.99,0.00,-38.99
Children and Young Peoples Services,Head of Childrens Social Care,085632,Families First Seaham,Supplies and Services,304259,Equipment and Materials,10-Feb-2021,000009416999601,SUNDERLAND CC,9399,Equipment-purchase and rental,33.00,0.00,33.00
Neighbourhoods and Climate Change,Environmental Services,011058,C&G - Wharton Park,Third Party Payments,430100,Rendered by Private Contractors,10-Feb-2021,000009416999695,SCREWFIX DIRECT,5211,Payments to sub-contractors,13.88,0.00,13.88
Children and Young Peoples Services,Head of Early Help Inclusion & Vulnerable Children.,088106,Ferryhill & N.Aycliffe 0-19 Targeted Family Support,Supplies and Services,304259,Equipment and Materials,10-Feb-2021,000009416999835,AMZNMktplace,5999,Equipment-purchase and rental,26.94,4.49,22.45
Children and Young Peoples Services,Head of Early Help Inclusion & Vulnerable Children.,088106,Ferryhill & N.Aycliffe 0-19 Targeted Family Support,Supplies and Services,304259,Equipment and Materials,10-Feb-2021,000009416999835 - 1,AMZNMktplace,5999,Equipment-purchase and rental,0.03,,0.03
Children and Young Peoples Services,Head of Early Help Inclusion & Vulnerable Children.,088106,Ferryhill & N.Aycliffe 0-19 Targeted Family Support,Supplies and Services,364301,Grants to Voluntary Organisations,10-Feb-2021,000009416999859,ARGOS LTD,5310,Hardship,103.95,0.00,103.95
"Regeneration, Economy and Growth",Development and Housing,031500,Housing Solutions - Core Team,Supplies and Services,324117,Provisions E324,10-Feb-2021,000009416999867,ASDA GROCERIES ONLINE,5411,Catering costs - provisions,539.30,0.00,539.30
"Regeneration, Economy and Growth",Development and Housing,031500,Housing Solutions - Core Team,Supplies and Services,324117,Provisions E324,10-Feb-2021,000009416999875,ASDA GROCERIES ONLINE,5411,Catering costs - provisions,-8.56,0.00,-8.56
Neighbourhoods and Climate Change,Environmental Services,010367,C&G - South Grounds Maintenance,Supplies and Services,304999,Equipment and Materials,10-Feb-2021,000009416999921,Snowballs,5251,Misc equipment tools and materials,20.02,0.00,20.02
Neighbourhoods and Climate Change,Environmental Services,010367,C&G - South Grounds Maintenance,Supplies and Services,304259,Equipment and Materials,10-Feb-2021,000009416999933,HALFORDS 0526,5940,Equipment-purchase and rental,32.00,0.00,32.00
Neighbourhoods and Climate Change,Environmental Services,010367,C&G - South Grounds Maintenance,Supplies and Services,304221,Equipment and Materials,10-Feb-2021,000009416999945,B & Q 1120,5200,Direct materials,7.97,0.00,7.97
Adult and Health Services,Head of Adults,055643,Hawthorn House LD Respite Unit,Supplies and Services,304403,Equipment and Materials,10-Feb-2021,000009417000007,AMZNMktplace,5999,Other consumables,32.98,0.00,32.98
Adult and Health Services,Head of Adults,055643,Hawthorn House LD Respite Unit,Supplies and Services,304403,Equipment and Materials,10-Feb-2021,000009417000017,AMZNMktplace,5999,Other consumables,11.96,0.00,11.96
Adult and Health Services,Head of Adults,055643,Hawthorn House LD Respite Unit,Supplies and Services,324117,Provisions E324,10-Feb-2021,000009417000035,SAINSBURYS 0776,5411,Catering costs - provisions,9.20,0.00,9.20
Adult and Health Services,Head of Adults,055643,Hawthorn House LD Respite Unit,Supplies and Services,324117,Provisions E324,10-Feb-2021,000009417000045,SAINSBURYS 0776,5411,Catering costs - provisions,102.00,0.00,102.00
Adult and Health Services,Head of Adults,055301,Stanley Pathways,Supplies and Services,340001,Postages E340,10-Feb-2021,000009417000093,POST OFFICE COUNTER,9402,Postages,2.25,0.00,2.25
Children and Young Peoples Services,Head of Childrens Social Care,085352,Tow Law CU,Supplies and Services,338048,Services,10-Feb-2021,000009417000115,NSL MOTO,9222,Court costs 338048,60.00,0.00,60.00
Adult and Health Services,Head of Adults,055643,Hawthorn House LD Respite Unit,Supplies and Services,324117,Provisions E324,10-Feb-2021,000009417000139,JR HOLLAND FOODSERVICE,5499,Catering costs - provisions,27.39,0.00,27.39
Neighbourhoods and Climate Change,Environmental Services,010301,C&G - North Grounds Maintenance,Supplies and Services,304403,Equipment and Materials,10-Feb-2021,000009417000159,BESCOL,5231,Other consumables,95.33,0.00,95.33
Children and Young Peoples Services,Head of Early Help Inclusion & Vulnerable Children.,088103,Consett & Stanley 0-19 Community Family Hub,Supplies and Services,340001,Postages E340,10-Feb-2021,000009417000213,POST OFFICE COUNTER,9402,Postages,9.15,0.00,9.15
Children and Young Peoples Services,Head of Early Help Inclusion & Vulnerable Children.,088102,Consett & Stanley 0-19 Targeted Family Support,Supplies and Services,364301,Grants to Voluntary Organisations,10-Feb-2021,000009417000221,ASDA GEORGE COM LEEDS,5411,Hardship,155.00,0.00,155.00
Children and Young Peoples Services,Head of Early Help Inclusion & Vulnerable Children.,088103,Consett & Stanley 0-19 Community Family Hub,Supplies and Services,364301,Grants to Voluntary Organisations,10-Feb-2021,000009417000231,ASDA GEORGE COM LEEDS,5411,Hardship,299.75,0.00,299.75
Children and Young Peoples Services,Head of Early Help Inclusion & Vulnerable Children.,088103,Consett & Stanley 0-19 Community Family Hub,Supplies and Services,304259,Equipment and Materials,10-Feb-2021,000009417000241,ARGOS LTD,5310,Equipment-purchase and rental,136.00,0.00,136.00
Children and Young Peoples Services,Head of Childrens Social Care,085363,LAC & Permanence Team 3,Supplies and Services,338045,Services,10-Feb-2021,000009417000255,Durham County CNCL,9399,Legal expenses 338045,22.00,0.00,22.00
Resources BK0010,Digital and Customer Services,065335,School Services - Implementations,Supplies and Services,304639,Equipment and Materials,10-Feb-2021,000009417000295,REPLACEBASE,5732,Technicians-supplies,17.36,0.00,17.36
Resources BK0010,Digital and Customer Services,065335,School Services - Implementations,Supplies and Services,304303,Equipment and Materials,10-Feb-2021,000009417000307,AMZNMktplace,5999,Network for resale,109.50,18.25,91.25
Children and Young Peoples Services,Head of Childrens Social Care,085334,West Rainton Satelite Home,Supplies and Services,304999,Equipment and Materials,10-Feb-2021,000009417000387,HOME BARGAINS,5251,Misc equipment tools and materials,26.14,0.00,26.14
Children and Young Peoples Services,Head of Childrens Social Care,085334,West Rainton Satelite Home,Supplies and Services,304999,Equipment and Materials,10-Feb-2021,000009417000401,HOME BARGAINS,5251,Misc equipment tools and materials,1.77,0.00,1.77
Children and Young Peoples Services,Head of Early Help Inclusion & Vulnerable Children.,085957,Secure Management,Supplies and Services,304403,Equipment and Materials,10-Feb-2021,000009417000431,AMZNMktplace,5999,Other consumables,29.40,4.90,24.50
Children and Young Peoples Services,Head of Early Help Inclusion & Vulnerable Children.,085957,Secure Management,Supplies and Services,304403,Equipment and Materials,10-Feb-2021,000009417000431 - 1,AMZNMktplace,5999,Other consumables,0.05,,0.05
Children and Young Peoples Services,Head of Childrens Social Care,085371,Young Peoples Service Team 1,Supplies and Services,384999,Miscellaneous Expenses,10-Feb-2021,000009417000545,Amazon.co.uk MF2940GL4,5969,Other expenses,5.99,1.00,4.99
"Regeneration, Economy and Growth",Development and Housing,031576,B& B - Temp Accom,Supplies and Services,364320,Grants to Voluntary Organisations,10-Feb-2021,000009417000587,BUDGET H EXPRESS HOTEL,7011,Accommodation assistance,267.00,0.00,267.00
Resources BK0010,Corporate Finance & Commercial Services,069800,Corporate Procurement 069800,Employees,040149,Recruitment Instruction and Training,10-Feb-2021,000009417000725,WWW.CIPS.ORG,8699,Training-all costs,187.00,0.00,187.00
Children and Young Peoples Services,Head of Childrens Social Care,085332,Middlestone Moor CU,Supplies and Services,324117,Provisions E324,10-Feb-2021,000009417000763,LIDL GB SPENNYMOOR,5411,Catering costs - provisions,21.96,0.00,21.96
Children and Young Peoples Services,Head of Childrens Social Care,085331,New Lea Childrens Home,Supplies and Services,304403,Equipment and Materials,10-Feb-2021,000009417000819,BARRINGTON INTERNATION,5734,Other consumables,66.60,0.00,66.60
Neighbourhoods and Climate Change,Environmental Services,031200,North Pennines Core,Supplies and Services,344033,Telephones,10-Feb-2021,000009417001115,ZOOM.US 888-799-9666,4814,Telephones general-all costs,305.98,0.00,305.98
Resources BK0010,Digital and Customer Services,065481,Technical Services 065481,Supplies and Services,342033,Computers and Communications,10-Feb-2021,000009419897559,RS COMPONENTS,5065,Computer hardware,703.60,0.00,703.60
Resources BK0010,Digital and Customer Services,065481,Technical Services 065481,Supplies and Services,342033,Computers and Communications,10-Feb-2021,000009419897565,RS COMPONENTS,5065,Computer hardware,875.93,0.00,875.93
"Regeneration, Economy and Growth",Culture Sport and Tourism,054502,HM Prison Frankland,Supplies and Services,342033,Computers and Communications,10-Feb-2021,000009419897575,AMZNMKTPLACE AMAZON.CO,5999,Computer hardware,3.99,0.67,3.32
Children and Young Peoples Services,Head of Childrens Social Care,085624,Families First Crook,Supplies and Services,304240,Equipment and Materials,10-Feb-2021,000009419897813,IKEA LTD SHOP ONLINE,5712,Equipment purchased from donations,155.00,25.83,129.17
Children and Young Peoples Services,Head of Early Help Inclusion & Vulnerable Children.,088117,East Area - Teenage Parent Programme,Supplies and Services,304403,Equipment and Materials,10-Feb-2021,000009419898267,AMZNMKTPLACE AMAZON.CO,5999,Other consumables,73.07,0.00,73.07
Adult and Health Services,Head of Adults,055643,Hawthorn House LD Respite Unit,Supplies and Services,304403,Equipment and Materials,10-Feb-2021,000009419898425,AMZNMKTPLACE AMAZON.CO,5999,Other consumables,21.95,0.00,21.95
Children and Young Peoples Services,Head of Childrens Social Care,085372,Young Peoples Service Team 2,Supplies and Services,384956,Miscellaneous Expenses,10-Feb-2021,000009419898613,TVLICENSING.CO.UK,7392,Licences,157.50,0.00,157.50
Resources BK0010,Legal & Democratic Services,067953,Coroner County Durham & Darlington,Supplies and Services,304335,Equipment and Materials,10-Feb-2021,000009419898819,AMZNMKTPLACE AMAZON.CO,5999,ICT supplies etc,44.98,7.50,37.48
Resources BK0010,Digital and Customer Services,065481,Technical Services 065481,Supplies and Services,342033,Computers and Communications,11-Feb-2021,000007428060960,RS COMPONENTS,5065,Computer hardware,121.90,0.00,121.90
Adult and Health Services,Head of Adults,055302,Durham Pathways,Supplies and Services,304403,Equipment and Materials,11-Feb-2021,000007428061060,AMZNMKTPLACE AMAZON.CO,5999,Other consumables,18.53,3.09,15.44
Children and Young Peoples Services,Head of Early Help Inclusion & Vulnerable Children.,071489,Winter Family Fund,Supplies and Services,364301,Grants to Voluntary Organisations,11-Feb-2021,000007428061898,ARGOS LTD,5310,Hardship,108.95,0.00,108.95
Children and Young Peoples Services,Head of Early Help Inclusion & Vulnerable Children.,088115,North Area - Teenage Parent Programme,Supplies and Services,384302,Miscellaneous Expenses,11-Feb-2021,000007428062136,AMZNMKTPLACE AMAZON.CO,5999,Activity expenses,50.94,8.49,42.45
Children and Young Peoples Services,Head of Early Help Inclusion & Vulnerable Children.,088115,North Area - Teenage Parent Programme,Supplies and Services,384302,Miscellaneous Expenses,11-Feb-2021,000007428062136 - 1,AMZNMKTPLACE AMAZON.CO,5999,Activity expenses,0.03,,0.03
Children and Young Peoples Services,Head of Childrens Social Care,085351,Framwellgate Moor CU,Supplies and Services,328041,Clothing uniforms and laundry E328,11-Feb-2021,000007428062292,ARGOS LTD,5310,Clothing uniforms and laundry,24.99,0.00,24.99
Children and Young Peoples Services,Head of Childrens Social Care,085351,Framwellgate Moor CU,Supplies and Services,304259,Equipment and Materials,11-Feb-2021,000007428062296,SPORTSDIRECT.COM,5941,Equipment-purchase and rental,24.99,0.00,24.99
"Regeneration, Economy and Growth",Business Durham CL0850,030689,Inward Investment and Aftercare,Supplies and Services,342033,Computers and Communications,11-Feb-2021,000009416998257,AdRoll_EMEA,7372,Computer hardware,27.08,0.00,27.08
"Regeneration, Economy and Growth",Business Durham CL0850,030689,Inward Investment and Aftercare,Supplies and Services,342033,Computers and Communications,11-Feb-2021,000009416998261,AdRoll_EMEA,7372,Computer hardware,0.74,0.00,0.74
Children and Young Peoples Services,Head of Early Help Inclusion & Vulnerable Children.,071489,Winter Family Fund,Supplies and Services,364301,Grants to Voluntary Organisations,11-Feb-2021,000009419897521,SP THE RUGS OUTLET,5734,Hardship,65.00,0.00,65.00
Children and Young Peoples Services,Head of Early Help Inclusion & Vulnerable Children.,071489,Winter Family Fund,Supplies and Services,364301,Grants to Voluntary Organisations,11-Feb-2021,000009419897525,AMZNMktplace,5999,Hardship,62.97,10.50,52.47
Children and Young Peoples Services,Head of Education and Skills,071801,Selby Cottage Childcare Centre,Supplies and Services,324117,Provisions E324,11-Feb-2021,000009419897533,ASDA GROCERIES ONLINE,5411,Catering costs - provisions,0.01,0.00,0.01
Children and Young Peoples Services,Head of Education and Skills,071801,Selby Cottage Childcare Centre,Supplies and Services,324117,Provisions E324,11-Feb-2021,000009419897537,ASDA GROCERIES ONLINE,5411,Catering costs - provisions,244.45,0.00,244.45
Children and Young Peoples Services,Head of Childrens Social Care,085561,Social Work Academy,Supplies and Services,384999,Miscellaneous Expenses,11-Feb-2021,000009419897555,Amazon.co.uk MF42Q7G24,5969,Other expenses,513.25,0.00,513.25
Children and Young Peoples Services,Head of Childrens Social Care,085561,Social Work Academy,Supplies and Services,304403,Equipment and Materials,11-Feb-2021,000009419897569,AMZNMKTPLACE AMAZON.CO,5999,Other consumables,388.50,0.00,388.50
Children and Young Peoples Services,Head of Childrens Social Care,085561,Social Work Academy,Supplies and Services,384999,Miscellaneous Expenses,11-Feb-2021,000009419897577,Amazon.co.uk MF2DA5X94,5969,Other expenses,18.50,0.00,18.50
Children and Young Peoples Services,Head of Childrens Social Care,085561,Social Work Academy,Supplies and Services,384999,Miscellaneous Expenses,11-Feb-2021,000009419897583,Amazon.co.uk MF68P0X84,5969,Other expenses,227.58,37.97,189.61
Children and Young Peoples Services,Head of Childrens Social Care,085561,Social Work Academy,Supplies and Services,384999,Miscellaneous Expenses,11-Feb-2021,000009419897587,Amazon.co.uk MF69M8VW4,5969,Other expenses,223.73,37.29,186.44
Children and Young Peoples Services,Head of Childrens Social Care,085561,Social Work Academy,Supplies and Services,384999,Miscellaneous Expenses,11-Feb-2021,000009419897593,Amazon.co.uk MF9DT8XO4,5969,Other expenses,55.50,0.00,55.50
Children and Young Peoples Services,Head of Childrens Social Care,085561,Social Work Academy,Supplies and Services,384999,Miscellaneous Expenses,11-Feb-2021,000009419897599,Amazon.co.uk MF4GZ7VI4,5969,Other expenses,182.10,30.40,151.70
Children and Young Peoples Services,Head of Childrens Social Care,085561,Social Work Academy,Supplies and Services,384999,Miscellaneous Expenses,11-Feb-2021,000009419897603,Amazon.co.uk MF6FS5VS4,5969,Other expenses,52.52,8.76,43.76
Children and Young Peoples Services,Head of Childrens Social Care,085561,Social Work Academy,Supplies and Services,384999,Miscellaneous Expenses,11-Feb-2021,000009419897607,Amazon.co.uk MF6MB1VQ4,5969,Other expenses,91.05,15.20,75.85
Children and Young Peoples Services,Head of Childrens Social Care,085561,Social Work Academy,Supplies and Services,384999,Miscellaneous Expenses,11-Feb-2021,000009419897613,Amazon.co.uk MF8CP8VM4,5969,Other expenses,13.13,2.19,10.94
Children and Young Peoples Services,Head of Childrens Social Care,085561,Social Work Academy,Supplies and Services,384999,Miscellaneous Expenses,11-Feb-2021,000009419897615,Amazon.co.uk MF8FT0VR4,5969,Other expenses,26.26,4.38,21.88
"Regeneration, Economy and Growth",Development and Housing,031576,B& B - Temp Accom,Supplies and Services,364320,Grants to Voluntary Organisations,11-Feb-2021,000009419897637,TOAST LETTINGS,7011,Accommodation assistance,420.00,0.00,420.00
"Regeneration, Economy and Growth",Development and Housing,031576,B& B - Temp Accom,Supplies and Services,364320,Grants to Voluntary Organisations,11-Feb-2021,000009419897641,TOAST LETTINGS,7011,Accommodation assistance,455.00,0.00,455.00
"Regeneration, Economy and Growth",Development and Housing,031576,B& B - Temp Accom,Supplies and Services,364320,Grants to Voluntary Organisations,11-Feb-2021,000009419897645,THE HONEST LAWYER,7011,Accommodation assistance,500.00,0.00,500.00
"Regeneration, Economy and Growth",Development and Housing,031576,B& B - Temp Accom,Supplies and Services,364320,Grants to Voluntary Organisations,11-Feb-2021,000009419897647,THE HONEST LAWYER,7011,Accommodation assistance,59.95,0.00,59.95
"Regeneration, Economy and Growth",Development and Housing,030771,Durham Advance Flexible Fund,Supplies and Services,304259,Equipment and Materials,11-Feb-2021,000009419897651,SECURITY INDUSTRY,7393,Equipment-purchase and rental,190.00,0.00,190.00
Adult and Health Services,Head of Adults,055302,Durham Pathways,Supplies and Services,304403,Equipment and Materials,11-Feb-2021,000009419897673,AMZNMKTPLACE AMAZON.CO,5999,Other consumables,10.56,1.76,8.80
Adult and Health Services,Head of Adults,055302,Durham Pathways,Supplies and Services,304403,Equipment and Materials,11-Feb-2021,000009419897677,AMZNMKTPLACE AMAZON.CO,5999,Other consumables,4.27,0.71,3.56
Adult and Health Services,Head of Adults,055302,Durham Pathways,Supplies and Services,304403,Equipment and Materials,11-Feb-2021,000009419897683,AMZNMKTPLACE AMAZON.CO,5999,Other consumables,5.15,0.86,4.29
Adult and Health Services,Head of Adults,055302,Durham Pathways,Supplies and Services,304403,Equipment and Materials,11-Feb-2021,000009419897687,AMZNMktplace,5999,Other consumables,31.50,0.00,31.50
Adult and Health Services,Head of Adults,055302,Durham Pathways,Supplies and Services,304403,Equipment and Materials,11-Feb-2021,000009419897693,AMZNMktplace,5999,Other consumables,6.99,1.17,5.82
"Regeneration, Economy and Growth",Culture Sport and Tourism,011290,Community Testing,Supplies and Services,304259,Equipment and Materials,11-Feb-2021,000009419897701,DISPLAY STANDS LTD,8999,Equipment-purchase and rental,415.95,69.33,346.62
"Regeneration, Economy and Growth",Culture Sport and Tourism,011290,Community Testing,Supplies and Services,304259,Equipment and Materials,11-Feb-2021,000009419897707,WWW.EDULAB.COM,5999,Equipment-purchase and rental,97.06,0.00,97.06
"Regeneration, Economy and Growth",Culture Sport and Tourism,011290,Community Testing,Supplies and Services,304259,Equipment and Materials,11-Feb-2021,000009419897713,WWW.EDULAB.COM,5999,Equipment-purchase and rental,97.06,0.00,97.06
"Regeneration, Economy and Growth",Culture Sport and Tourism,011290,Community Testing,Supplies and Services,304259,Equipment and Materials,11-Feb-2021,000009419897715,AMZ Ascot City,5999,Equipment-purchase and rental,-21.24,-3.54,-17.70
"Regeneration, Economy and Growth",Culture Sport and Tourism,011290,Community Testing,Supplies and Services,304259,Equipment and Materials,11-Feb-2021,000009419897715 - 1,AMZ Ascot City,5999,Equipment-purchase and rental,0.06,,0.06
Dedicated Schools Grant BG0015,DSG High Needs Block,079050,SENSS-Sensory,Supplies and Services,304403,Equipment and Materials,11-Feb-2021,000009419897723,AMZNMktplace,5999,Other consumables,4.49,0.75,3.74
Children and Young Peoples Services,Head of Early Help Inclusion & Vulnerable Children.,088116,South Area - Teenage Parent Programme,Supplies and Services,304259,Equipment and Materials,11-Feb-2021,000009419897819,AMZNMktplace,5999,Equipment-purchase and rental,74.40,12.40,62.00
Children and Young Peoples Services,Head of Early Help Inclusion & Vulnerable Children.,088116,South Area - Teenage Parent Programme,Supplies and Services,304259,Equipment and Materials,11-Feb-2021,000009419897819 - 1,AMZNMktplace,5999,Equipment-purchase and rental,0.05,,0.05
Children and Young Peoples Services,Head of Early Help Inclusion & Vulnerable Children.,088104,BA/BC/Crook 0-19 Targeted Family Support,Supplies and Services,332047,Printing Stationery and Gen Off Exps,11-Feb-2021,000009419897823,BAKER ROSS,5970,Stationery,86.65,14.44,72.21
Children and Young Peoples Services,Head of Early Help Inclusion & Vulnerable Children.,088104,BA/BC/Crook 0-19 Targeted Family Support,Supplies and Services,332047,Printing Stationery and Gen Off Exps,11-Feb-2021,000009419897827,WWW.THEWORKS.CO.UK,5310,Stationery,240.00,0.00,240.00
Children and Young Peoples Services,Head of Childrens Social Care,085380,Operations Manager LAC Resources,Supplies and Services,328041,Clothing uniforms and laundry E328,11-Feb-2021,000009419897833,ARGOS LTD,5310,Clothing uniforms and laundry,303.95,0.00,303.95
"Regeneration, Economy and Growth",Development and Housing,030770,Durham Advance,Supplies and Services,332047,Printing Stationery and Gen Off Exps,11-Feb-2021,000009419897839,WHSMITH.CO.UK,5943,Stationery,59.99,0.00,59.99
Children and Young Peoples Services,Head of Childrens Social Care,085332,Middlestone Moor CU,Supplies and Services,384999,Miscellaneous Expenses,11-Feb-2021,000009419897843,WRIGHTS STEMS,5992,Other expenses,25.00,0.00,25.00
Children and Young Peoples Services,Head of Early Help Inclusion & Vulnerable Children.,085957,Secure Management,Supplies and Services,384999,Miscellaneous Expenses,11-Feb-2021,000009419897893,Amazon.co.uk MF0UL9VO4,5969,Other expenses,38.34,6.39,31.95
Children and Young Peoples Services,Head of Early Help Inclusion & Vulnerable Children.,085965,Barnard,Supplies and Services,304259,Equipment and Materials,11-Feb-2021,000009419897899,JD SPORTS INTERNET,5941,Equipment-purchase and rental,24.99,0.00,24.99
Neighbourhoods and Climate Change,Environmental Services,010900,Fleet - Meadowfield Fleet,Transport,215013,Running Costs of Vehicles,11-Feb-2021,000009419897941,DVLA VEHICLE TAX,9311,Vehicle Excise Duty (VED),167.50,0.00,167.50
Neighbourhoods and Climate Change,Environmental Services,010900,Fleet - Meadowfield Fleet,Transport,215013,Running Costs of Vehicles,11-Feb-2021,000009419897943,DVLA VEHICLE TAX,9311,Vehicle Excise Duty (VED),167.50,0.00,167.50
Neighbourhoods and Climate Change,Environmental Services,010900,Fleet - Meadowfield Fleet,Transport,215013,Running Costs of Vehicles,11-Feb-2021,000009419897949,DVLA VEHICLE TAX,9311,Vehicle Excise Duty (VED),167.50,0.00,167.50
Neighbourhoods and Climate Change,Environmental Services,010864,Fleet - Hackworth Road Fleet,Transport,215013,Running Costs of Vehicles,11-Feb-2021,000009419897951,DVLA VEHICLE TAX,9311,Vehicle Excise Duty (VED),167.50,0.00,167.50
Neighbourhoods and Climate Change,Environmental Services,010900,Fleet - Meadowfield Fleet,Transport,215013,Running Costs of Vehicles,11-Feb-2021,000009419897955,DVLA VEHICLE TAX,9311,Vehicle Excise Duty (VED),167.50,0.00,167.50
Neighbourhoods and Climate Change,Environmental Services,010900,Fleet - Meadowfield Fleet,Transport,215013,Running Costs of Vehicles,11-Feb-2021,000009419897961,DVLA VEHICLE TAX,9311,Vehicle Excise Duty (VED),167.50,0.00,167.50
Neighbourhoods and Climate Change,Environmental Services,010864,Fleet - Hackworth Road Fleet,Transport,215013,Running Costs of Vehicles,11-Feb-2021,000009419897963,DVLA VEHICLE TAX,9311,Vehicle Excise Duty (VED),167.50,0.00,167.50
Neighbourhoods and Climate Change,Environmental Services,010864,Fleet - Hackworth Road Fleet,Transport,215013,Running Costs of Vehicles,11-Feb-2021,000009419897969,DVLA VEHICLE TAX,9311,Vehicle Excise Duty (VED),167.50,0.00,167.50
Neighbourhoods and Climate Change,Environmental Services,010900,Fleet - Meadowfield Fleet,Transport,215013,Running Costs of Vehicles,11-Feb-2021,000009419897973,DVLA VEHICLE TAX,9311,Vehicle Excise Duty (VED),167.50,0.00,167.50
Neighbourhoods and Climate Change,Environmental Services,010900,Fleet - Meadowfield Fleet,Transport,215013,Running Costs of Vehicles,11-Feb-2021,000009419897977,DVLA VEHICLE TAX,9311,Vehicle Excise Duty (VED),12.50,0.00,12.50
Neighbourhoods and Climate Change,Environmental Services,010900,Fleet - Meadowfield Fleet,Transport,215013,Running Costs of Vehicles,11-Feb-2021,000009419897983,DVLA VEHICLE TAX,9311,Vehicle Excise Duty (VED),167.50,0.00,167.50
Neighbourhoods and Climate Change,Environmental Services,010864,Fleet - Hackworth Road Fleet,Transport,215013,Running Costs of Vehicles,11-Feb-2021,000009419897985,DVLA VEHICLE TAX,9311,Vehicle Excise Duty (VED),167.50,0.00,167.50
Neighbourhoods and Climate Change,Environmental Services,010900,Fleet - Meadowfield Fleet,Transport,215013,Running Costs of Vehicles,11-Feb-2021,000009419897989,DVLA VEHICLE TAX,9311,Vehicle Excise Duty (VED),167.50,0.00,167.50
Neighbourhoods and Climate Change,Environmental Services,010561,Fleet - Morrison Busty Fleet,Transport,215013,Running Costs of Vehicles,11-Feb-2021,000009419897993,DVLA VEHICLE TAX,9311,Vehicle Excise Duty (VED),167.50,0.00,167.50
Neighbourhoods and Climate Change,Environmental Services,010900,Fleet - Meadowfield Fleet,Transport,215013,Running Costs of Vehicles,11-Feb-2021,000009419897999,DVLA VEHICLE TAX,9311,Vehicle Excise Duty (VED),167.50,0.00,167.50
Neighbourhoods and Climate Change,Environmental Services,010900,Fleet - Meadowfield Fleet,Transport,215013,Running Costs of Vehicles,11-Feb-2021,000009419898001,DVLA VEHICLE TAX,9311,Vehicle Excise Duty (VED),167.50,0.00,167.50
Neighbourhoods and Climate Change,Environmental Services,010900,Fleet - Meadowfield Fleet,Transport,215013,Running Costs of Vehicles,11-Feb-2021,000009419898005,DVLA VEHICLE TAX,9311,Vehicle Excise Duty (VED),167.50,0.00,167.50
